Workbook

Sheet BD
A1: CNPJ | B1: PRESTADOR | D1: CÓDIGO RECEITA | F1: MESES | H1: Período Apuração
A2: 07.658.605/0001-13 | B2: ARACONS CONSTRUTORA LTDA | D2: 1708 | F2: JANEIRO | H2: 01/2017
A3: 43.952.332/0001-89 | B3: B V M CONSTRUTORA LTDA | D3: 5952 | F3: FEVEREIRO | H3: 02/2017
A4: 29.050.480/0001-87 | B4: BEATRIZ MICHETTI CARDOSO BORGHI RAYMUNDO EIRELI - ME | D4: 2631 | F4: MARÇO | H4: 03/2017
A5: 72.908.817/0001-73 | B5: BOSCH REXROTH LTDA | D5: 8146 | F5: ABRIL | H5: 04/2017
A6: 18.656.829/0001-02 | B6: CALDEMAX MANUTENCAO INDUSTRIAL LTDA - EPP | D6: 1112 | F6: MAIO | H6: 05/2017
A7: 26.389.015/0001-87 | B7: DATA ENGENHARIA LTDA | D7: 1317 | F7: JUNHO | H7: 06/2017
A8: 64.924.186/0001-58 | B8: ENGEVAP ENGENHARIA E EQUIPAMENTOS LTDA | D8: TAXA MUNICIPAL | F8: JULHO | H8: 07/2017
A9: 18.007.280/0001-25 | B9: GEOCOM AGRO BRASIL LTDA | D9: ISSQN | F9: AGOSTO | H9: 08/2017
A10: 57.188.443/0001-75 | B10: HEROM INDUSTRIA E COMERCIO LTDA | D10: DARE-SP | F10: SETEMBRO | H10: 09/2017
A11: 15.113.935/0001-51 | B11: INTERATIVA ISOLACOES TERMICAS LTDA - ME | D11: 7716 | F11: OUTUBRO | H11: 10/2017
A12: 06.273.867/0001-05 | B12: JTR MANUTENCAO INDUSTRIAL LTDA - ME | D12: 8144 | F12: NOVEMBRO | H12: 11/2017
A13: 26020622860 | B13: JULIANO MARANGON | F13: DEZEMBRO | H13: 12/2017
A14: 20.077.473/0001-02 | B14: M. C. L. PRETACAO DE SERVICOS - EIRELI | H14: 01/2018
A15: 01.411.572/0001-26 | B15: MODELO MANUTENCAO DEMOLICOES LOCACOES LTDA | H15: 02/2018
A16: 03.259.193/0001-98 | B16: MOVEQUIP INDUSTRIA E COMERCIO LTDA EPP | H16: 03/2018
A17: 11.365.744/0001-26 | B17: OMNIGEO IMPERMEABILICAO LTDA | H17: 04/2018
A18: 58.357.682/0001-74 | B18: PIPEFIT INSTALACOES INDUSTRIA E COMERCIO LTDA | D18: Ctrl + G = Chama o formulário para cadastro | H18: 05/2018
A19: 64.675.671/0002-16 | B19: QUIMIGEL INDUSTRIA, COM. E SERV. AEREOS ESPEC. LTDA | H19: 06/2018
A20: 48.635.379/0005-66 | B20: SANA AGRO AEREA LTDA | H20: 07/2018
A21: 08.880.416/0001-53 | B21: SANTOS TERRAPLENAGEM E SERVIÇOS LTDA - EPP | H21: 08/2018
A22: 03.028.612/0001-80 | B22: SJ SISTEMAS DE INCENDIO LTDA | H22: 09/2018
A23: 049253870001-48 | B23: SOMOV S A | H23: 10/2018
A24: 04.925.387/0016-24 | B24: SOMOV S/A | H24: 11/2018
A25: 02.936.084/0001-03 | B25: SOSSAI TURISMO LTDA EPP | H25: 12/2018
A26: 33.574.575/0019-04 | B26: SULZER BRASIL S.A. | H26: 01/2019
A27: 05.162.464/0001-18 | B27: TESPRO TECNOLOGIA EM AUTOMACAO LTDA EPP | H27: 02/2019
A28: 05.729.768/0001-14 | B28: TGM IND. COM. DE TURBINAS E TRANSMISSOES LTDA | H28: 03/2019
A29: 04.397.250/0001-68 | B29: THOMAZ E THOMAZ LTDA | H29: 04/2019
A30: 17.312.448/0004-96 | B30: TRACBEL SA | H30: 05/2019
A31: 11.746.817/0001-20 | B31: TRATLUB TRANS, PUR COM DE OLEO MINERAL LTDA | H31: 06/2019
A32: 60.244.217/0001-79 | B32: WELDING SOLDAGEM E INSPECOES LTDA. | H32: 07/2019
A33: 22.471.211/0001-45 | B33: WUSTENSERVICE SERVICOS E LOCACOES LTDA ME | H33: 08/2019
A34: 01.521.460/0001-28 | B34: F. MECAL MECANICA E CALDEIRARIA LTDA EPP | H34: 09/2019
A35: 11.266.165/0002-07 | B35: WSC AGROPECUARIA S/A | H35: 10/2019
A36: 54.846.951/0002-96 | B36: FERRARI AGROINDUSTRA S/A | H36: 11/2019
A37: 47.961.628/002-06 | B37: EMPRESA SAO JOSE LTDA | H37: 12/2019
A38: 54.846.951/0001-05 | B38: FERRARI AGROINDUSTRIA S/A | H38: 01/2020
A39: 15.668.769/001-50 | B39: VALCIR SCARABELOT - ME | H39: 02/2020
A40: 05.755.048/0001-23 | B40: HG COMERCIO DE PECAS LTDA | H40: 03/2020
A41: 54.305.743/0011-70 | B41: HPE AUTOMOTORES DO BRASIL LTDA | H41: 04/2020
A42: 26.690.623/0001-27 | B42: MOTORA IND DIST PECAS LTDA EPP | H42: 05/2020
A43: 21.023.400/0001-92 | B43: NIGRO E CAMARGO LTDA - ME | H43: 06/2020
A44: 54.846.951/0012-68 | B44: FERRARI AGROINDÚSTRIA S/A | H44: 07/2020
A45: 8788555000151 | B45: WSC PARTICIPAÇÕES SOCIETÁRIAS LTDA | H45: 08/2020
A46: 21948647000110 | B46: FERRARI PARTICIPAÇÕES SOCIETÁRIAS LTDA | H46: 09/2020
A47: 11266165000126 | B47: WSC AGROPECUÁRIA S/A | H47: 10/2020
A48: 54846951000709 | B48: FERRARI AGROINDUSTRA S/A | H48: 11/2020
A49: 22044808000103 | B49: FERRARI AGROPECUARIA E ADMINISTRADORA DE BENS S/A | H49: 12/2020
A50: 22044808000375 | B50: FERRARI AGROPECUARIA E ADMINISTRADORA DE BENS S/A | H50: 01/2021
A51: 22731951000173 | B51: WSC AGROPECUARIA E ADMINISTRADORA DE BENS S/A | H51: 02/2021
A52: 22731951000335 | B52: WSC AGROPECUARIA E ADMINISTRADORA DE BENS S/A | H52: 03/2021
A53: 22044808000456 | B53: FERRARI AGROPECUARIA E ADMINISTRADORA DE BENS S/A | H53: 04/2021
A54: 54846951000962 | B54: FERRARI AGROINDUSTRA S/A | H54: 05/2021
A55: 54846951001187 | B55: FERRARI AGROINDUSTRA S/A | H55: 06/2021
A56: 54846951001420 | B56: FERRARI AGROINDUSTRA S/A | H56: 07/2021
A57: 38.278.706/0001-92 | B57: SÃO LUIZ AGROINDUSTRIA S.A | H57: 08/2021
A58: 38.278.706/0008-69 | B58: SÃO LUIZ AGROINDUSTRIA S/A | H58: 09/2021
H59: 10/2021
H60: 11/2021
H61: 12/2021
H62: 01/2022
H63: 02/2022
H64: 03/2022
H65: 04/2022
H66: 05/2022
H67: 06/2022
H68: 07/2022
H69: 08/2022
H70: 09/2022
H71: 10/2022
H72: 11/2022
H73: 12/2022
H74: 01/2023
H75: 02/2023
H76: 03/2023
H77: 04/2023
H78: 05/2023
H79: 06/2023
H80: 07/2023
H81: 08/2023
H82: 09/2023
H83: 10/2023
H84: 11/2023
H85: 12/2023
B10006: BEATRIZ M.C. B. RAYMUNDO EIRELLI - ME
B10007: SANTOS TERRAPLENAGEM E SERVIÇOS LTDA ME
B10008: QUIMIGEL IND. COM. SERVIÇOS AERO ESPEC. LTDA
B10009: WUSTENSERVICE SERVIÇOS E LOCAÇÕES EIRELI
B10010: OMNIGEO IPERMEABILIZAÇÃO LTDA
B10011: TGM IND. E COM. TURBINAS E TRANSMISSÕES LTDA
B10012: GEOCOM AGRO BRASIL LTDA

Sheet JANEIRO
A1: Data Dig. | B1: CNPJ/CPF | C1: Prestador | D1: Documento/NF | E1: Cód. Receita | F1: Valor | G1: Base de Cálculo | H1: Vlr.Principal | I1: Multa | J1: Juros | K1: Vlr. Total Recolhido | L1: Competência | M1: Observações | N1: Usuário | O1: Salvo?
A2: 2023-04-04 | B2: 38.278.706/0001-92 | C2: SÃO LUIZ AGROINDUSTRIA S.A | E2: ISSQN | F2: 864.02 | G2: 0 | H2: =F2-G2 -> 864.02 | I2: 0 | J2: 0 | K2: =F2+I2+J2 -> 864.02 | L2: 01/2022 | M2: CASA BRANCA | N2: Mariane Americo Vergilio | O2: 04/04/2023 às 15:54:11
A3: 2023-04-04 | B3: 38.278.706/0001-92 | C3: SÃO LUIZ AGROINDUSTRIA S.A | E3: ISSQN | F3: 289.43 | G3: 0 | H3: =F3-G3 -> 289.43 | I3: 0 | J3: 0 | K3: =F3+I3+J3 -> 289.43 | L3: 01/2022 | M3: DESCALVADO | N3: Mariane Americo Vergilio | O3: 04/04/2023 às 15:55:57
A4: 2023-04-04 | B4: 38.278.706/0001-92 | C4: SÃO LUIZ AGROINDUSTRIA S.A | E4: ISSQN | F4: 262.73 | G4: 0 | H4: 262.73 | I4: 0 | J4: 0 | K4: 262.73 | L4: 01/2022 | M4: ESPIRITO SANTO DO PINHAL | N4: Mariane Americo Vergilio | O4: 04/04/2023 às 15:57:26
A5: 2023-04-04 | B5: 38.278.706/0001-92 | C5: SÃO LUIZ AGROINDUSTRIA S.A | E5: ISSQN | F5: =8465.17+38+84.16 -> 8587.33 | G5: 0 | H5: 8587.33 | I5: =0.39+3.8+8.38+1.91+9.25 -> 23.73 | K5: =F5+I5+J5 -> 8611.06 | L5: 01/2022 | M5: PIRASSUNUNGA | N5: Mariane Americo Vergilio | O5: 04/04/2023 às 15:59:06
A6: 2023-04-04 | B6: 38.278.706/0001-92 | C6: SÃO LUIZ AGROINDUSTRIA S.A | E6: ISSQN | F6: 764.53 | G6: 0 | H6: 764.53 | I6: 0 | J6: 0 | K6: 764.53 | L6: 01/2022 | M6: PORTO FERREIRA | N6: Mariane Americo Vergilio | O6: 04/04/2023 às 16:07:37
A7: 2023-04-04 | B7: 38.278.706/0001-92 | C7: SÃO LUIZ AGROINDUSTRIA S.A | E7: ISSQN | F7: 1630.6 | G7: 0 | H7: 1630.6 | I7: 0 | J7: 0 | K7: 1630.6 | L7: 01/2022 | M7: SANTA CRUZ DAS PALMEIRAS | N7: Mariane Americo Vergilio | O7: 04/04/2023 às 16:08:44
A8: 2023-04-04 | B8: 38.278.706/0001-92 | C8: SÃO LUIZ AGROINDUSTRIA S.A | E8: ISSQN | F8: 238.56 | G8: 0 | H8: 238.56 | I8: 0 | J8: 0 | K8: 238.56 | L8: 01/2022 | M8: SANTA ROSA DE VITERBO | N8: Mariane Americo Vergilio | O8: 04/04/2023 às 16:10:18
A9: 2023-04-04 | B9: 38.278.706/0001-92 | C9: SÃO LUIZ AGROINDUSTRIA S.A | E9: ISSQN | F9: 110.47 | G9: 0 | H9: 110.47 | I9: 1.45 | J9: 0 | K9: 111.92 | L9: 01/2022 | M9: SÃO JOÃO DA BOA VISTA | N9: Mariane Americo Vergilio | O9: 04/04/2023 às 16:12:25
A10: 2023-04-04 | B10: 38.278.706/0001-92 | C10: SÃO LUIZ AGROINDUSTRIA S.A | E10: ISSQN | F10: 388.46 | G10: 0 | H10: 388.46 | I10: 0 | J10: 0 | K10: 388.46 | L10: 01/2022 | M10: SÃO JOSE DO RIO PARDO | N10: Mariane Americo Vergilio | O10: 04/04/2023 às 16:14:51
A11: 2023-04-04 | B11: 38.278.706/0001-92 | C11: SÃO LUIZ AGROINDUSTRIA S.A | E11: ISSQN | F11: 691.02 | G11: 0 | H11: 691.02 | I11: 0 | J11: 0 | K11: 691.02 | L11: 01/2022 | M11: TAMBAU | N11: Mariane Americo Vergilio | O11: 04/04/2023 às 16:16:28
A12: 2023-04-04 | B12: 38.278.706/0001-92 | C12: SÃO LUIZ AGROINDUSTRIA S.A | E12: ISSQN | F12: 20.37 | G12: 0 | H12: 20.37 | I12: 0 | J12: 0 | K12: 20.37 | L12: 01/2022 | M12: TAPIRATIBA | N12: Mariane Americo Vergilio | O12: 04/04/2023 às 16:17:18
A13: 2023-04-14 | B13: 38.278.706/0001-92 | C13: SÃO LUIZ AGROINDUSTRIA S.A | E13: ISSQN | F13: 10.29 | G13: 0 | H13: 10.29 | I13: 0 | J13: 0 | K13: 10.29 | L13: 01/2023 | M13: AGUAI | N13: Mariane Americo Vergilio | O13: 14/04/2023 às 15:43:02
A14: 2023-04-14 | B14: 38.278.706/0001-92 | C14: SÃO LUIZ AGROINDUSTRIA S.A | E14: ISSQN | F14: 736.77 | G14: 0 | H14: 736.77 | I14: 0 | J14: 0 | K14: 736.77 | L14: 01/2023 | M14: CASA BRANCA | N14: Mariane Americo Vergilio | O14: 14/04/2023 às 15:44:31
A15: 2023-04-14 | B15: 38.278.706/0001-92 | C15: SÃO LUIZ AGROINDUSTRIA S.A | E15: ISSQN | F15: 12118.6 | G15: 0 | H15: 12118.6 | I15: 0 | J15: 0 | K15: 12118.6 | L15: 01/2023 | M15: PIRASSUNUNGA | N15: Mariane Americo Vergilio | O15: 14/04/2023 às 15:46:09
A16: 2023-04-14 | B16: 38.278.706/0001-92 | C16: SÃO LUIZ AGROINDUSTRIA S.A | E16: ISSQN | F16: 28.47 | G16: 0 | H16: 28.47 | I16: 0 | J16: 0 | K16: 28.47 | L16: 01/2023 | M16: PORTO FERREIRA | N16: Mariane Americo Vergilio | O16: 14/04/2023 às 15:52:12
A17: 2023-04-17 | B17: 38.278.706/0001-92 | C17: SÃO LUIZ AGROINDUSTRIA S.A | E17: ISSQN | F17: 412.5 | G17: 0 | H17: 412.5 | I17: 0 | J17: 0 | K17: 412.5 | L17: 01/2023 | M17: SANTA CRUZ DAS PALMEIRAS | N17: Mariane Americo Vergilio | O17: 17/04/2023 às 07:12:20
A18: 2023-04-17 | B18: 38.278.706/0001-92 | C18: SÃO LUIZ AGROINDUSTRIA S.A | E18: ISSQN | F18: 14.6 | G18: 0 | H18: 14.6 | I18: 0 | J18: 0 | K18: 14.6 | L18: 01/2023 | M18: SÃO JOSE DO RIO PARDO | N18: Mariane Americo Vergilio | O18: 17/04/2023 às 07:15:16
A19: 2023-04-17 | B19: 38.278.706/0001-92 | C19: SÃO LUIZ AGROINDUSTRIA S.A | E19: ISSQN | F19: 1969.06 | G19: 0 | H19: 1969.06 | I19: 0 | J19: 0 | K19: 1969.06 | L19: 01/2023 | M19: TAMBAU | N19: Mariane Americo Vergilio | O19: 17/04/2023 às 07:17:26
A20: 2023-04-17 | B20: 38.278.706/0001-92 | C20: SÃO LUIZ AGROINDUSTRIA S.A | E20: ISSQN | F20: 1.74 | G20: 0 | H20: 1.74 | I20: 0 | J20: 0 | K20: 1.74 | L20: 01/2023 | M20: VARGEM GRANDE DO SUL | N20: Mariane Americo Vergilio | O20: 17/04/2023 às 07:18:19
A21: 2023-08-21 | B21: 38.278.706/0008-69 | C21: SÃO LUIZ AGROINDUSTRIA S/A | E21: ISSQN | F21: 1092.94 | G21: 0 | H21: 1092.94 | I21: 0 | J21: 0 | K21: 1092.94 | L21: 01/2023 | M21: STA CRUZ DAS PALMEIRAS | N21: Mariane Americo Vergilio | O21: 21/08/2023 às 13:49:52
G22: 0 | H22: 0 | K22: 0
G23: 0 | H23: 0 | K23: 0
G24: 0 | H24: 0 | K24: 0
H167: =F167 -> 0 | K167: =H167+I167+J167 -> 0
H168: 0 | K168: 0
H169: 0 | K169: 0
H170: 0 | K170: 0
H171: 0 | K171: 0
H172: 0 | K172: 0
H173: 0 | K173: 0
H174: 0 | K174: 0

Sheet FEVEREIRO
A1: Data Dig. | B1: CNPJ/CPF | C1: Prestador | D1: Documento/NF | E1: Cód. Receita | F1: Valor | G1: Base de Cálculo | H1: Vlr.Principal | I1: Multa | J1: Juros | K1: Vlr. Total Recolhido | L1: Competência | M1: Observações | N1: Usuário | O1: Salvo?
A2: 2023-04-04 | B2: 38.278.706/0001-92 | C2: SÃO LUIZ AGROINDUSTRIA S.A | E2: ISSQN | F2: 437.74 | G2: 0 | H2: =F2-G2 -> 437.74 | I2: 0 | J2: 0 | K2: =H2+I2+J2 -> 437.74 | L2: 02/2022 | M2: CASA BRANCA | N2: Mariane Americo Vergilio | O2: 04/04/2023 às 16:30:16
A3: 2023-04-04 | B3: 38.278.706/0001-92 | C3: SÃO LUIZ AGROINDUSTRIA S.A | E3: ISSQN | F3: 8.53 | G3: 0 | H3: =F3-G3 -> 8.53 | I3: 0 | J3: 0 | K3: =H3+I3+J3 -> 8.53 | L3: 02/2022 | M3: ITOBI | N3: Mariane Americo Vergilio | O3: 04/04/2023 às 16:31:40
A4: 2023-04-04 | B4: 38.278.706/0001-92 | C4: SÃO LUIZ AGROINDUSTRIA S.A | E4: ISSQN | F4: 9672.5 | G4: 0 | H4: 9672.5 | I4: 0 | J4: 0 | K4: 9672.5 | L4: 02/2022 | M4: PIRASSUNUNGA | N4: Mariane Americo Vergilio | O4: 04/04/2023 às 16:32:50
A5: 2023-04-04 | B5: 38.278.706/0001-92 | C5: SÃO LUIZ AGROINDUSTRIA S.A | E5: ISSQN | F5: 945.42 | G5: 0 | H5: 945.42 | I5: 0 | J5: 0 | K5: 945.42 | L5: 02/2022 | M5: SANTA CRUZ DAS PALMEIRAS | N5: Mariane Americo Vergilio | O5: 04/04/2023 às 16:35:28
A6: 2023-04-04 | B6: 38.278.706/0001-92 | C6: SÃO LUIZ AGROINDUSTRIA S.A | E6: ISSQN | F6: 87.89 | G6: 0 | H6: 87.89 | I6: 0 | J6: 0 | K6: 87.89 | L6: 02/2022 | M6: SANTA ROSA DE VITERBO | N6: Mariane Americo Vergilio | O6: 04/04/2023 às 16:37:22
A7: 2023-04-04 | B7: 38.278.706/0001-92 | C7: SÃO LUIZ AGROINDUSTRIA S.A | E7: ISSQN | F7: 78.29 | G7: 0 | H7: 78.29 | I7: 0 | J7: 0 | K7: 78.29 | L7: 02/2022 | M7: SÃO JOSE DO RIO PARDO | N7: Mariane Americo Vergilio | O7: 04/04/2023 às 16:38:36
A8: 2023-04-04 | B8: 38.278.706/0001-92 | C8: SÃO LUIZ AGROINDUSTRIA S.A | E8: ISSQN | F8: 273.16 | G8: 0 | H8: 273.16 | I8: 0 | J8: 0 | K8: 273.16 | L8: 02/2022 | M8: TAMBAU | N8: Mariane Americo Vergilio | O8: 04/04/2023 às 16:39:32
A9: 2023-04-17 | B9: 38.278.706/0001-92 | C9: SÃO LUIZ AGROINDUSTRIA S.A | E9: ISSQN | F9: 1973.28 | G9: 0 | H9: 1973.28 | I9: 0 | J9: 0 | K9: 1973.28 | L9: 02/2023 | M9: CASA BRANCA | N9: Mariane Americo Vergilio | O9: 17/04/2023 às 07:25:11
A10: 2023-04-17 | B10: 38.278.706/0001-92 | C10: SÃO LUIZ AGROINDUSTRIA S.A | E10: ISSQN | F10: 14703.77 | G10: 0 | H10: 14703.77 | I10: =7.25+37.52 -> 44.77 | J10: 0 | K10: 14748.54 | L10: 02/2023 | M10: PIRASSUNUNGA | N10: Mariane Americo Vergilio | O10: 17/04/2023 às 07:26:53
A11: 2023-04-17 | B11: 38.278.706/0001-92 | C11: SÃO LUIZ AGROINDUSTRIA S.A | E11: ISSQN | F11: 1060.48 | G11: 0 | H11: 1060.48 | I11: 0 | J11: 0 | K11: 1060.48 | L11: 02/2023 | M11: SANTA CRUZ DAS PALMEIRAS | N11: Mariane Americo Vergilio | O11: 17/04/2023 às 07:28:47
A12: 2023-04-17 | B12: 38.278.706/0001-92 | C12: SÃO LUIZ AGROINDUSTRIA S.A | E12: ISSQN | F12: 67.47 | G12: 0 | H12: 67.47 | I12: 0 | J12: 0 | K12: 67.47 | L12: 02/2023 | M12: SANTA RITA DO PASSA QUATRO | N12: Mariane Americo Vergilio | O12: 17/04/2023 às 07:29:54
A13: 2023-04-17 | B13: 38.278.706/0001-92 | C13: SÃO LUIZ AGROINDUSTRIA S.A | E13: ISSQN | F13: 577.83 | G13: 0 | H13: 577.83 | I13: 0 | J13: 0 | K13: 577.83 | L13: 02/2023 | M13: SANTA ROSA DE VITERBO | N13: Mariane Americo Vergilio | O13: 17/04/2023 às 07:32:09
A14: 2023-04-17 | B14: 38.278.706/0001-92 | C14: SÃO LUIZ AGROINDUSTRIA S.A | E14: ISSQN | F14: 728.39 | G14: 0 | H14: 728.39 | I14: 0 | J14: 0 | K14: 728.39 | L14: 02/2023 | M14: SÃO JOSE DO RIO PARDO | N14: Mariane Americo Vergilio | O14: 17/04/2023 às 07:33:02
A15: 2023-04-17 | B15: 38.278.706/0001-92 | C15: SÃO LUIZ AGROINDUSTRIA S.A | E15: ISSQN | F15: 402.13 | G15: 0 | H15: 402.13 | I15: 0 | J15: 0 | K15: 402.13 | L15: 02/2023 | M15: TAMBAU | N15: Mariane Americo Vergilio | O15: 17/04/2023 às 07:34:09
A16: 2023-04-17 | B16: 38.278.706/0001-92 | C16: SÃO LUIZ AGROINDUSTRIA S.A | E16: ISSQN | F16: 14.97 | G16: 0 | H16: 14.97 | I16: 0 | J16: 0 | K16: 14.97 | L16: 02/2023 | M16: TAPIRATIBA | N16: Mariane Americo Vergilio | O16: 17/04/2023 às 07:34:55
A17: 2023-08-21 | B17: 38.278.706/0008-69 | C17: SÃO LUIZ AGROINDUSTRIA S/A | E17: ISSQN | F17: 2766.43 | G17: 0 | H17: 2766.43 | I17: 15.56 | J17: 2.92 | K17: 2784.91 | L17: 02/2023 | M17: STA CRUZ DAS PALMEIRAS | N17: Mariane Americo Vergilio | O17: 21/08/2023 às 13:50:47

Sheet MARÇO
A1: Data Dig. | B1: CNPJ/CPF | C1: Prestador | D1: DocumentoNF | E1: Cód. Receita | F1: Valor | G1: Base de Cálculo | H1: Vlr.Principal | I1: Multa | J1: Juros | K1: Vlr. Total Recolhido | L1: Competência | M1: Observações | N1: Usuário | O1: Salvo?
A2: 2023-04-05 | B2: 38.278.706/0001-92 | C2: SÃO LUIZ AGROINDUSTRIA S.A | E2: ISSQN | F2: 55.56 | G2: 0 | H2: =F2-G2 -> 55.56 | I2: =1.75+0.56+1.11 -> 3.42 | J2: 0 | K2: =H2+I2+J2 -> 58.98 | L2: 03/2022 | M2: AGUAI | N2: Mariane Americo Vergilio | O2: 05/04/2023 às 08:38:27
A3: 2023-04-05 | B3: 38.278.706/0001-92 | C3: SÃO LUIZ AGROINDUSTRIA S.A | E3: ISSQN | F3: 103.39 | G3: 0 | H3: =F3-G3 -> 103.39 | I3: 0 | J3: 0 | K3: =H3+I3+J3 -> 103.39 | L3: 03/2022 | M3: ANALANDIA | N3: Mariane Americo Vergilio | O3: 05/04/2023 às 08:40:14
A4: 2023-04-05 | B4: 38.278.706/0001-92 | C4: SÃO LUIZ AGROINDUSTRIA S.A | E4: ISSQN | F4: 4847.58 | G4: 0 | H4: 4847.58 | I4: 0 | J4: 0 | K4: 4847.58 | L4: 03/2022 | M4: CASA BRANCA | N4: Mariane Americo Vergilio | O4: 05/04/2023 às 08:41:29
A5: 2023-04-05 | B5: 38.278.706/0001-92 | C5: SÃO LUIZ AGROINDUSTRIA S.A | E5: ISSQN | F5: 82.82 | G5: 0 | H5: 82.82 | I5: 0 | J5: 0 | K5: 82.82 | L5: 03/2022 | M5: MOCOCA | N5: Mariane Americo Vergilio | O5: 05/04/2023 às 08:44:04
A6: 2023-04-05 | B6: 38.278.706/0001-92 | C6: SÃO LUIZ AGROINDUSTRIA S.A | E6: ISSQN | F6: 38.14 | G6: 0 | H6: 38.14 | I6: =0.39+1.93+0.39 -> 2.71 | J6: 0 | K6: 40.85 | L6: 03/2022 | M6: MOGI GUAÇU | N6: Mariane Americo Vergilio | O6: 05/04/2023 às 08:44:59
A7: 2023-04-05 | B7: 38.278.706/0001-92 | C7: SÃO LUIZ AGROINDUSTRIA S.A | E7: ISSQN | F7: 17372.4 | G7: 0 | H7: 17372.4 | I7: =10.69+103.58 -> 114.27 | J7: 0 | K7: 17486.67 | L7: 03/2022 | M7: PIRASSUNUNGA | N7: Mariane Americo Vergilio | O7: 05/04/2023 às 08:47:05
A8: 2023-04-05 | B8: 38.278.706/0001-92 | C8: SÃO LUIZ AGROINDUSTRIA S.A | E8: ISSQN | F8: 200.05 | G8: 0 | H8: 200.05 | I8: 0 | J8: 0 | K8: 200.05 | L8: 03/2022 | M8: PORTO FERREIRA | N8: Mariane Americo Vergilio | O8: 05/04/2023 às 08:50:15
A9: 2023-04-05 | B9: 38.278.706/0001-92 | C9: SÃO LUIZ AGROINDUSTRIA S.A | E9: ISSQN | F9: 3768.88 | G9: 0 | H9: 3768.88 | I9: 0 | J9: 0 | K9: 3768.88 | L9: 03/2022 | M9: SANTA CRUZ DAS PALMEIRAS | N9: Mariane Americo Vergilio | O9: 05/04/2023 às 09:06:48
A10: 2023-04-05 | B10: 38.278.706/0001-92 | C10: SÃO LUIZ AGROINDUSTRIA S.A | E10: ISSQN | F10: 280.39 | G10: 0 | H10: 280.39 | I10: 0 | J10: 0 | K10: 280.39 | L10: 03/2022 | M10: SANTA RITA DO PASSA QUATRO | N10: Mariane Americo Vergilio | O10: 05/04/2023 às 09:11:54
A11: 2023-04-05 | B11: 38.278.706/0001-92 | C11: SÃO LUIZ AGROINDUSTRIA S.A | E11: ISSQN | F11: 691.76 | G11: 0 | H11: 691.76 | I11: 0 | J11: 0 | K11: 691.76 | L11: 03/2022 | M11: SANTA ROSA DE VITERBO | N11: Mariane Americo Vergilio | O11: 05/04/2023 às 09:13:13
A12: 2023-04-05 | B12: 38.278.706/0001-92 | C12: SÃO LUIZ AGROINDUSTRIA S.A | E12: ISSQN | F12: 946.71 | G12: 0 | H12: 946.71 | I12: 1.45 | J12: 0 | K12: 948.16 | L12: 03/2022 | M12: SÃO JOÃO DA BOA VISTA | N12: Mariane Americo Vergilio | O12: 05/04/2023 às 09:14:37
A13: 2023-04-05 | B13: 38.278.706/0001-92 | C13: SÃO LUIZ AGROINDUSTRIA S.A | E13: ISSQN | F13: 531.71 | G13: 0 | H13: 531.71 | I13: 0 | J13: 0 | K13: 531.71 | L13: 03/2022 | M13: SÃO JOSE DO RIO PARDO | N13: Mariane Americo Vergilio | O13: 05/04/2023 às 09:18:07
A14: 2023-04-05 | B14: 38.278.706/0001-92 | C14: SÃO LUIZ AGROINDUSTRIA S.A | E14: ISSQN | F14: 3951.05 | G14: 0 | H14: 3951.05 | I14: 0 | J14: 0 | K14: 3951.05 | L14: 03/2022 | M14: TAMBAU | N14: Mariane Americo Vergilio | O14: 05/04/2023 às 09:20:17
A15: 2023-04-05 | B15: 38.278.706/0001-92 | C15: SÃO LUIZ AGROINDUSTRIA S.A | E15: ISSQN | F15: 7.61 | G15: 0 | H15: =F15-G15 -> 7.61 | I15: 0 | J15: 0 | K15: 7.61 | L15: 03/2022 | M15: VARGEM GRANDE DO SUL | N15: Mariane Americo Vergilio | O15: 05/04/2023 às 09:21:36
A16: 2023-04-26 | B16: 38.278.706/0001-92 | C16: SÃO LUIZ AGROINDUSTRIA S.A | E16: ISSQN | F16: 43.48 | G16: 0 | H16: =F16-G16 -> 43.48 | I16: 0 | J16: 0 | K16: =H16+I16+J16 -> 43.48 | L16: 03/2023 | M16: AGUAI | N16: Mariane Americo Vergilio | O16: 26/04/2023 às 13:22:20
A17: 2023-04-26 | B17: 38.278.706/0001-92 | C17: SÃO LUIZ AGROINDUSTRIA S.A | E17: ISSQN | F17: 79.04 | G17: 0 | H17: 79.04 | I17: 0 | J17: 0 | K17: =H17+I17+J17 -> 79.04 | L17: 03/2023 | M17: ANALANDIA | N17: Mariane Americo Vergilio | O17: 26/04/2023 às 13:22:42
A18: 2023-04-26 | B18: 38.278.706/0001-92 | C18: SÃO LUIZ AGROINDUSTRIA S.A | E18: ISSQN | F18: 2125.19 | G18: 0 | H18: 2125.19 | I18: 0 | J18: 0 | K18: =H18+I18+J18 -> 2125.19 | L18: 03/2023 | M18: CASA BRANCA | N18: Mariane Americo Vergilio | O18: 26/04/2023 às 13:23:14
A19: 2023-04-26 | B19: 38.278.706/0001-92 | C19: SÃO LUIZ AGROINDUSTRIA S.A | E19: ISSQN | F19: 58.11 | G19: 0 | H19: 58.11 | I19: 0 | J19: 0 | K19: 58.11 | L19: 03/2023 | M19: ITOBI | N19: Mariane Americo Vergilio | O19: 26/04/2023 às 13:23:36
A20: 2023-04-26 | B20: 38.278.706/0001-92 | C20: SÃO LUIZ AGROINDUSTRIA S.A | E20: ISSQN | F20: 252.52 | G20: 0 | H20: 252.52 | I20: 0 | J20: 0 | K20: 252.52 | L20: 03/2023 | M20: MOCOCA | N20: Mariane Americo Vergilio | O20: 26/04/2023 às 13:26:17
A21: 2023-04-26 | B21: 38.278.706/0001-92 | C21: SÃO LUIZ AGROINDUSTRIA S.A | E21: ISSQN | F21: 15037.11 | G21: 0 | H21: 15037.11 | I21: 0 | J21: 0 | K21: 15037.11 | L21: 03/2023 | M21: PIRASSUNUNGA | N21: Mariane Americo Vergilio | O21: 26/04/2023 às 13:27:06
A22: 2023-04-26 | B22: 38.278.706/0001-92 | C22: SÃO LUIZ AGROINDUSTRIA S.A | E22: ISSQN | F22: 190.05 | G22: 0 | H22: 190.05 | I22: 0 | J22: 0 | K22: 190.05 | L22: 03/2023 | M22: PORTO FERREIRA | N22: Mariane Americo Vergilio | O22: 26/04/2023 às 13:27:29
A23: 2023-04-26 | B23: 38.278.706/0001-92 | C23: SÃO LUIZ AGROINDUSTRIA S.A | E23: ISSQN | F23: 1818.06 | G23: 0 | H23: 1818.06 | I23: 0 | J23: 0 | K23: 1818.06 | L23: 03/2023 | M23: SANTA CRUZ DAS PALMEIRAS | N23: Mariane Americo Vergilio | O23: 26/04/2023 às 13:27:55
A24: 2023-04-26 | B24: 38.278.706/0001-92 | C24: SÃO LUIZ AGROINDUSTRIA S.A | E24: ISSQN | F24: 23.41 | G24: 0 | H24: 23.41 | I24: 0 | J24: 0 | K24: 23.41 | L24: 03/2023 | M24: SANTA RITA DO PASSA QUATRO | N24: Mariane Americo Vergilio | O24: 26/04/2023 às 13:28:26
A25: 2023-04-26 | B25: 38.278.706/0001-92 | C25: SÃO LUIZ AGROINDUSTRIA S.A | E25: ISSQN | F25: 105.37 | G25: 0 | H25: 105.37 | I25: 0 | J25: 0 | K25: 105.37 | L25: 03/2023 | M25: SANTA ROSA DE VITERBO | N25: Mariane Americo Vergilio | O25: 26/04/2023 às 13:28:51
A26: 2023-04-26 | B26: 38.278.706/0001-92 | C26: SÃO LUIZ AGROINDUSTRIA S.A | E26: ISSQN | F26: 803.82 | G26: 0 | H26: 803.82 | I26: 0 | J26: 0 | K26: 803.82 | L26: 03/2023 | M26: SÃO JOSE DO RIO PARDO | N26: Mariane Americo Vergilio | O26: 26/04/2023 às 13:29:31
A27: 2023-04-26 | B27: 38.278.706/0001-92 | C27: SÃO LUIZ AGROINDUSTRIA S.A | E27: ISSQN | F27: 2114.9 | G27: 0 | H27: 2114.9 | I27: 0 | J27: 0 | K27: 2114.9 | L27: 03/2023 | M27: TAMBAU | N27: Mariane Americo Vergilio | O27: 26/04/2023 às 13:30:22
A28: 2023-08-21 | B28: 38.278.706/0008-69 | C28: SÃO LUIZ AGROINDUSTRIA S/A | E28: ISSQN | F28: 3529.38 | G28: 0 | H28: 3529.38 | I28: 0 | J28: 0 | K28: 3529.38 | L28: 03/2023 | M28: STA CRUZ DAS PALMEIRAS | N28: Mariane Americo Vergilio | O28: 21/08/2023 às 13:51:40
F279: 0 | G279: 0 | H279: =F279-G279 -> 0 | I279: 0 | J279: 0 | K279: =H279+I279+J279 -> 0
F280: 0 | G280: 0 | H280: 0 | I280: 0 | J280: 0 | K280: 0
F281: 0 | G281: 0 | H281: 0 | I281: 0 | J281: 0 | K281: 0
F282: 0 | G282: 0 | H282: 0 | I282: 0 | J282: 0 | K282: 0
F283: 0 | G283: 0 | H283: 0 | I283: 0 | J283: 0 | K283: 0
F284: 0 | G284: 0 | H284: 0 | I284: 0 | J284: 0 | K284: 0
F285: 0 | G285: 0 | H285: 0 | I285: 0 | J285: 0 | K285: 0
F286: 0 | G286: 0 | H286: 0 | I286: 0 | J286: 0 | K286: 0
F287: 0 | G287: 0 | H287: 0 | I287: 0 | J287: 0 | K287: 0
F288: 0 | G288: 0 | H288: 0 | I288: 0 | J288: 0 | K288: 0
F289: 0 | G289: 0 | H289: 0 | I289: 0 | J289: 0 | K289: 0
F290: 0 | G290: 0 | H290: 0 | I290: 0 | J290: 0 | K290: 0

Sheet ABRIL
A1: Data Dig. | B1: CNPJ/CPF | C1: Prestador | D1: Documento/NF | E1: Cód. Receita | F1: Valor | G1: Base de Cálculo | H1: Vlr.Principal | I1: Multa | J1: Juros | K1: Vlr. Total Recolhido | L1: Competência | M1: Observações | N1: Usuário | O1: Salvo?
A2: 2023-04-05 | B2: 38.278.706/0001-92 | C2: SÃO LUIZ AGROINDUSTRIA S.A | E2: ISSQN | F2: 86.29 | G2: 0 | H2: =F2-G2 -> 86.29 | I2: 0 | J2: 0 | K2: =H2+I2+J2 -> 86.29 | L2: 04/2022 | M2: AGUAI | N2: Mariane Americo Vergilio | O2: 05/04/2023 às 09:37:21
A3: 2023-04-05 | B3: 38.278.706/0001-92 | C3: SÃO LUIZ AGROINDUSTRIA S.A | E3: ISSQN | F3: 713.24 | G3: 0 | H3: =F3-G3 -> 713.24 | I3: 0 | J3: 0 | K3: 713.24 | L3: 04/2022 | M3: CASA BRANCA | N3: Mariane Americo Vergilio | O3: 05/04/2023 às 09:39:12
A4: 2023-04-05 | B4: 38.278.706/0001-92 | C4: SÃO LUIZ AGROINDUSTRIA S.A | E4: ISSQN | F4: 128.06 | G4: 0 | H4: 128.06 | I4: 0 | J4: 0 | K4: 128.06 | L4: 04/2022 | M4: ESPIRITO SANTO DO PINHAL | N4: Mariane Americo Vergilio | O4: 05/04/2023 às 09:40:53
A5: 2023-04-05 | B5: 38.278.706/0001-92 | C5: SÃO LUIZ AGROINDUSTRIA S.A | E5: ISSQN | F5: 13604.34 | G5: 0 | H5: 13604.34 | I5: =3.36+11.2 -> 14.56 | J5: 0 | K5: 13618.9 | L5: 04/2022 | M5: PIRASSUNUNGA | N5: Mariane Americo Vergilio | O5: 05/04/2023 às 09:42:49
A6: 2023-04-05 | B6: 38.278.706/0001-92 | C6: SÃO LUIZ AGROINDUSTRIA S.A | E6: ISSQN | F6: 38.3 | G6: 0 | H6: 38.3 | I6: 0 | J6: 0 | K6: 38.3 | L6: 04/2022 | M6: PORTO FERREIRA | N6: Mariane Americo Vergilio | O6: 05/04/2023 às 09:47:57
A7: 2023-04-05 | B7: 38.278.706/0001-92 | C7: SÃO LUIZ AGROINDUSTRIA S.A | E7: ISSQN | F7: 1536.05 | G7: 0 | H7: 1536.05 | I7: 0 | J7: 0 | K7: 1536.05 | L7: 04/2022 | M7: SANTA CRUZ DAS PALMEIRAS | N7: Mariane Americo Vergilio | O7: 05/04/2023 às 09:55:56
A8: 2023-04-05 | B8: 38.278.706/0001-92 | C8: SÃO LUIZ AGROINDUSTRIA S.A | E8: ISSQN | F8: 1053.18 | G8: 0 | H8: 1053.18 | I8: 0 | J8: 0 | K8: 1053.18 | L8: 04/2022 | M8: SANTA ROSA DE VITERBO | N8: Mariane Americo Vergilio | O8: 05/04/2023 às 09:57:31
A9: 2023-04-05 | B9: 38.278.706/0001-92 | C9: SÃO LUIZ AGROINDUSTRIA S.A | E9: ISSQN | F9: 716.01 | G9: 0 | H9: 716.01 | I9: 1.45 | J9: 0 | K9: 717.46 | L9: 04/2022 | M9: SÃO JOÃO DA BOA VISTA | N9: Mariane Americo Vergilio | O9: 05/04/2023 às 10:00:31
A10: 2023-04-05 | B10: 38.278.706/0001-92 | C10: SÃO LUIZ AGROINDUSTRIA S.A | E10: ISSQN | F10: 39.7 | G10: 0 | H10: 39.7 | I10: 0 | J10: 0 | K10: 39.7 | L10: 04/2022 | M10: SÃO JOSE DO RIO PARDO | N10: Mariane Americo Vergilio | O10: 05/04/2023 às 10:02:28
A11: 2023-04-05 | B11: 38.278.706/0001-92 | C11: SÃO LUIZ AGROINDUSTRIA S.A | E11: ISSQN | F11: 2531 | G11: 0 | H11: 2531 | I11: =16.57+14.33+71.64 -> 102.54 | J11: 0 | K11: 2633.54 | L11: 04/2022 | M11: TAMBAU | N11: Mariane Americo Vergilio | O11: 05/04/2023 às 10:04:07
A12: 2023-08-21 | B12: 38.278.706/0001-92 | C12: SÃO LUIZ AGROINDUSTRIA S.A | E12: ISSQN | F12: 6233.39 | G12: 0 | H12: 6233.39 | I12: 0 | J12: 0 | K12: 6233.39 | L12: 04/2023 | M12: CASA BRANCA | N12: Mariane Americo Vergilio | O12: 21/08/2023 às 13:42:17
A13: 2023-08-21 | B13: 38.278.706/0001-92 | C13: SÃO LUIZ AGROINDUSTRIA S.A | E13: ISSQN | F13: 88.02 | G13: 0 | H13: 88.02 | I13: 0 | J13: 0 | K13: 88.02 | L13: 04/2023 | M13: MOCOCA | N13: Mariane Americo Vergilio | O13: 21/08/2023 às 13:42:43
A14: 2023-08-21 | B14: 38.278.706/0001-92 | C14: SÃO LUIZ AGROINDUSTRIA S.A | E14: ISSQN | F14: 21678.16 | G14: 0 | H14: 21678.16 | I14: 0 | J14: 0 | K14: 21678.16 | L14: 04/2023 | M14: PIRASSUNUNGA | N14: Mariane Americo Vergilio | O14: 21/08/2023 às 13:43:05
A15: 2023-08-21 | B15: 38.278.706/0001-92 | C15: SÃO LUIZ AGROINDUSTRIA S.A | E15: ISSQN | F15: 428.94 | G15: 0 | H15: 428.94 | I15: 0 | J15: 0 | K15: 428.94 | L15: 04/2023 | M15: PORTO FERREIRA | N15: Mariane Americo Vergilio | O15: 21/08/2023 às 13:43:30
A16: 2023-08-21 | B16: 38.278.706/0001-92 | C16: SÃO LUIZ AGROINDUSTRIA S.A | E16: ISSQN | F16: 1496.78 | G16: 0 | H16: 1496.78 | I16: 0 | J16: 0 | K16: 1496.78 | L16: 04/2023 | M16: STA CRUZ DAS PALMEIRAS | N16: Mariane Americo Vergilio | O16: 21/08/2023 às 13:44:43
A17: 2023-08-21 | B17: 38.278.706/0001-92 | C17: SÃO LUIZ AGROINDUSTRIA S.A | E17: ISSQN | F17: 1508.6 | G17: 0 | H17: 1508.6 | I17: 0 | J17: 0 | K17: 1508.6 | L17: 04/2023 | M17: SÃO JOSE DO RIO PARDO | N17: Mariane Americo Vergilio | O17: 21/08/2023 às 13:45:17
A18: 2023-08-21 | B18: 38.278.706/0001-92 | C18: SÃO LUIZ AGROINDUSTRIA S.A | E18: ISSQN | F18: 358.89 | G18: 0 | H18: 358.89 | I18: 0 | J18: 0 | K18: 358.89 | L18: 04/2023 | M18: TAMBAU | N18: Mariane Americo Vergilio | O18: 21/08/2023 às 13:45:44
A19: 2023-08-21 | B19: 38.278.706/0001-92 | C19: SÃO LUIZ AGROINDUSTRIA S.A | E19: ISSQN | F19: 195.66 | G19: 0 | H19: 195.66 | I19: 0 | J19: 0 | K19: 195.66 | L19: 04/2023 | M19: TAPIRATIBA | N19: Mariane Americo Vergilio | O19: 21/08/2023 às 13:46:13
A20: 2023-08-21 | B20: 38.278.706/0008-69 | C20: SÃO LUIZ AGROINDUSTRIA S/A | E20: ISSQN | F20: 1734.03 | G20: 0 | H20: 1734.03 | I20: 0 | J20: 0 | K20: 1734.03 | L20: 04/2023 | M20: STA CRUZ DAS PALMEIRAS | N20: Mariane Americo Vergilio | O20: 21/08/2023 às 13:48:47
G21: 0 | I21: 0 | J21: 0

Sheet MAIO
A1: Data Dig. | B1: CNPJ/CPF | C1: Prestador | D1: Documento/NF | E1: Cód. Receita | F1: Valor | G1: Base de Cálculo | H1: Vlr.Principal | I1: Multa | J1: Juros | K1: Vlr. Total Recolhido | L1: Competência | M1: Observações | N1: Usuário | O1: Salvo?
A2: 2023-04-05 | B2: 38.278.706/0001-92 | C2: SÃO LUIZ AGROINDUSTRIA S.A | E2: ISSQN | F2: 483.49 | G2: 0 | H2: =F2-G2 -> 483.49 | I2: 0 | J2: 0 | K2: =H2+I2+J2 -> 483.49 | L2: 05/2022 | M2: CASA BRANCA | N2: Mariane Americo Vergilio | O2: 05/04/2023 às 10:19:11
A3: 2023-04-05 | B3: 38.278.706/0001-92 | C3: SÃO LUIZ AGROINDUSTRIA S.A | E3: ISSQN | F3: 1980.77 | G3: 0 | H3: =F3-G3 -> 1980.77 | I3: 0 | J3: 0 | K3: =H3+I3+J3 -> 1980.77 | L3: 05/2022 | M3: ESPIRITO SANTO DO PINHAL | N3: Mariane Americo Vergilio | O3: 05/04/2023 às 10:21:21
A4: 2023-04-05 | B4: 38.278.706/0001-92 | C4: SÃO LUIZ AGROINDUSTRIA S.A | E4: ISSQN | F4: 715.63 | G4: 0 | H4: 715.63 | I4: 0 | J4: 0 | K4: 715.63 | L4: 05/2022 | M4: MOCOCA | N4: Mariane Americo Vergilio | O4: 05/04/2023 às 10:22:49
A5: 2023-04-05 | B5: 38.278.706/0001-92 | C5: SÃO LUIZ AGROINDUSTRIA S.A | E5: ISSQN | F5: 10526.9 | G5: 0 | H5: 10526.9 | I5: =19.53+193.58+0.7+6.95+7.59+34.01+11.1+34.01 -> 307.47 | J5: 0 | K5: 10834.37 | L5: 05/2022 | M5: PIRASSUNUNGA | N5: Mariane Americo Vergilio | O5: 05/04/2023 às 10:26:47
A6: 2023-04-05 | B6: 38.278.706/0001-92 | C6: SÃO LUIZ AGROINDUSTRIA S.A | E6: ISSQN | F6: 13.82 | G6: 0 | H6: 13.82 | I6: 0 | J6: 0 | K6: 13.82 | L6: 05/2022 | M6: PORTO FERREIRA | N6: Mariane Americo Vergilio | O6: 05/04/2023 às 10:31:03
A7: 2023-04-05 | B7: 38.278.706/0001-92 | C7: SÃO LUIZ AGROINDUSTRIA S.A | E7: ISSQN | F7: 2548.71 | G7: 0 | H7: 2548.71 | I7: 0 | J7: 0 | K7: 2548.71 | L7: 05/2022 | M7: SANTA CRUZ DAS PALMEIRAS | N7: Mariane Americo Vergilio | O7: 05/04/2023 às 10:33:07
A8: 2023-04-05 | B8: 38.278.706/0001-92 | C8: SÃO LUIZ AGROINDUSTRIA S.A | E8: ISSQN | F8: 212.63 | G8: 0 | H8: 212.63 | I8: 1.45 | J8: 0 | K8: 214.08 | L8: 05/2022 | M8: SÃO JOÃO DA BOA VISTA | N8: Mariane Americo Vergilio | O8: 05/04/2023 às 10:34:19
A9: 2023-04-05 | B9: 38.278.706/0001-92 | C9: SÃO LUIZ AGROINDUSTRIA S.A | E9: ISSQN | F9: 601.98 | G9: 0 | H9: 601.98 | I9: =3.01+12.04 -> 15.05 | J9: 0 | K9: 617.03 | L9: 05/2022 | M9: SÃO JOSÉ DO RIO PARDO | N9: Mariane Americo Vergilio | O9: 05/04/2023 às 10:36:39
A10: 2023-04-05 | B10: 38.278.706/0001-92 | C10: SÃO LUIZ AGROINDUSTRIA S.A | E10: ISSQN | F10: 1169.58 | G10: 0 | H10: 1169.58 | I10: 0 | J10: 0 | K10: 1169.58 | L10: 05/2022 | M10: TAMBAU | N10: Mariane Americo Vergilio | O10: 05/04/2023 às 10:39:09
A11: 2023-04-05 | B11: 38.278.706/0001-92 | C11: SÃO LUIZ AGROINDUSTRIA S.A | E11: ISSQN | F11: 61.49 | G11: 0 | H11: 61.49 | I11: 0 | J11: 0 | K11: 61.49 | L11: 05/2022 | M11: VARGEM GRANDE DO SUL | N11: Mariane Americo Vergilio | O11: 05/04/2023 às 10:40:37
A12: 2023-08-21 | B12: 38.278.706/0001-92 | C12: SÃO LUIZ AGROINDUSTRIA S.A | E12: ISSQN | F12: 707.62 | G12: 0 | H12: 707.62 | I12: 0 | J12: 0 | K12: 707.62 | L12: 05/2023 | M12: ARARAS | N12: Mariane Americo Vergilio | O12: 21/08/2023 às 13:55:43
A13: 2023-08-21 | B13: 38.278.706/0001-92 | C13: SÃO LUIZ AGROINDUSTRIA S.A | E13: ISSQN | F13: 1787.73 | G13: 0 | H13: 1787.73 | I13: 0 | J13: 0 | K13: 1787.73 | L13: 05/2023 | M13: CASA BRANCA | N13: Mariane Americo Vergilio | O13: 21/08/2023 às 13:56:13
A14: 2023-08-21 | B14: 38.278.706/0001-92 | C14: SÃO LUIZ AGROINDUSTRIA S.A | E14: ISSQN | F14: 229.48 | G14: 0 | H14: 229.48 | I14: 0 | J14: 0 | K14: 229.48 | L14: 05/2023 | M14: MOCOCA | N14: Mariane Americo Vergilio | O14: 21/08/2023 às 13:57:12
A15: 2023-08-21 | B15: 38.278.706/0001-92 | C15: SÃO LUIZ AGROINDUSTRIA S.A | E15: ISSQN | F15: 30907.3 | G15: 0 | H15: 30907.3 | I15: 0 | J15: 0 | K15: 30907.3 | L15: 05/2023 | M15: PIRASSUNUNGA | N15: Mariane Americo Vergilio | O15: 21/08/2023 às 13:58:33
A16: 2023-08-21 | B16: 38.278.706/0001-92 | C16: SÃO LUIZ AGROINDUSTRIA S.A | E16: ISSQN | F16: 6142.78 | G16: 0 | H16: 6142.78 | I16: 0 | J16: 0 | K16: 6142.78 | L16: 05/2023 | M16: STA CRUZ DAS PALMEIRAS | N16: Mariane Americo Vergilio | O16: 21/08/2023 às 14:01:30
A17: 2023-08-21 | B17: 38.278.706/0001-92 | C17: SÃO LUIZ AGROINDUSTRIA S.A | E17: ISSQN | F17: 1965.36 | G17: 0 | H17: 1965.36 | I17: 0 | J17: 0 | K17: 1965.36 | L17: 05/2023 | M17: STA RITA DO PASSA QUATRO | N17: Mariane Americo Vergilio | O17: 21/08/2023 às 14:02:04
A18: 2023-08-21 | B18: 38.278.706/0001-92 | C18: SÃO LUIZ AGROINDUSTRIA S.A | E18: ISSQN | F18: 4715.01 | G18: 0 | H18: 4715.01 | I18: 0 | J18: 0 | K18: 4715.01 | L18: 05/2023 | M18: SÃO JOSE DO RIO PARDO | N18: Mariane Americo Vergilio | O18: 21/08/2023 às 14:03:38
A19: 2023-08-21 | B19: 38.278.706/0001-92 | C19: SÃO LUIZ AGROINDUSTRIA S.A | E19: ISSQN | F19: 2665.69 | G19: 0 | H19: 2665.69 | I19: 0 | J19: 0 | K19: 2665.69 | L19: 05/2023 | M19: TAMBAU | N19: Mariane Americo Vergilio | O19: 21/08/2023 às 14:04:55
A20: 2023-08-21 | B20: 38.278.706/0001-92 | C20: SÃO LUIZ AGROINDUSTRIA S.A | E20: ISSQN | F20: 179.37 | G20: 0 | H20: 179.37 | I20: 0 | J20: 0 | K20: 179.37 | L20: 05/2023 | M20: TAPIRATIBA | N20: Mariane Americo Vergilio | O20: 21/08/2023 às 14:05:44
A21: 2023-08-21 | B21: 38.278.706/0008-69 | C21: SÃO LUIZ AGROINDUSTRIA S/A | E21: ISSQN | F21: 1800.88 | G21: 0 | H21: 1800.88 | I21: 0 | J21: 0 | K21: 1800.88 | L21: 05/2023 | M21: STA CRUZ DAS PALMEIRAS | N21: Mariane Americo Vergilio | O21: 21/08/2023 às 14:06:17
F207: 0 | G207: 0 | H207: =F207-G207 -> 0 | I207: 0 | J207: 0 | K207: =H207+I207+J207 -> 0
F208: 0 | G208: 0 | H208: 0 | I208: 0 | J208: 0 | K208: 0
F209: 0 | G209: 0 | H209: 0 | I209: 0 | J209: 0 | K209: 0
F210: 0 | G210: 0 | H210: 0 | I210: 0 | J210: 0 | K210: 0
F211: 0 | G211: 0 | H211: 0 | I211: 0 | J211: 0 | K211: 0
F212: 0 | G212: 0 | H212: 0 | I212: 0 | J212: 0 | K212: 0
F213: 0 | G213: 0 | H213: 0 | I213: 0 | J213: 0 | K213: 0
F214: 0 | G214: 0 | H214: 0 | I214: 0 | J214: 0 | K214: 0
F215: 0 | G215: 0 | H215: 0 | I215: 0 | J215: 0 | K215: 0
F216: 0 | G216: 0 | H216: 0 | I216: 0 | J216: 0 | K216: 0
F217: 0 | G217: 0 | H217: 0 | I217: 0 | J217: 0 | K217: 0
F218: 0 | G218: 0 | H218: 0 | I218: 0 | J218: 0 | K218: 0
F219: 0 | G219: 0 | H219: 0 | I219: 0 | J219: 0 | K219: 0
F220: 0 | G220: 0 | H220: 0 | I220: 0 | J220: 0 | K220: 0
F221: 0 | G221: 0 | H221: 0 | I221: 0 | J221: 0 | K221: 0
F222: 0 | G222: 0 | H222: 0 | I222: 0 | J222: 0 | K222: 0
F223: 0 | G223: 0 | H223: 0 | I223: 0 | J223: 0 | K223: 0
F224: 0 | G224: 0 | H224: 0 | I224: 0 | J224: 0 | K224: 0
F225: 0 | G225: 0 | H225: 0 | I225: 0 | J225: 0 | K225: 0
F226: 0 | G226: 0 | H226: 0 | I226: 0 | J226: 0 | K226: 0
F227: 0 | G227: 0 | H227: 0 | I227: 0 | J227: 0 | K227: 0
F228: 0 | G228: 0 | H228: 0 | I228: 0 | J228: 0 | K228: 0
F229: 0 | G229: 0 | H229: 0 | I229: 0 | J229: 0 | K229: 0
F230: 0 | G230: 0 | H230: 0 | I230: 0 | J230: 0 | K230: 0
F231: 0 | G231: 0 | H231: 0 | I231: 0 | J231: 0 | K231: 0
F232: 0 | G232: 0 | H232: 0 | I232: 0 | J232: 0 | K232: 0
F233: 0 | G233: 0 | H233: 0 | I233: 0 | J233: 0 | K233: 0
F234: 0 | G234: 0 | H234: 0 | I234: 0 | J234: 0 | K234: 0
F235: 0 | G235: 0 | H235: 0 | I235: 0 | J235: 0 | K235: 0
F236: 0 | G236: 0 | H236: 0 | I236: 0 | J236: 0 | K236: 0
F237: 0 | G237: 0 | H237: 0 | I237: 0 | J237: 0 | K237: 0
F238: 0 | G238: 0 | H238: 0 | I238: 0 | J238: 0 | K238: 0
F239: 0 | G239: 0 | H239: 0 | I239: 0 | J239: 0 | K239: 0
F240: 0 | G240: 0 | H240: 0 | I240: 0 | J240: 0 | K240: 0
F241: 0 | G241: 0 | H241: 0 | I241: 0 | J241: 0 | K241: 0
F242: 0 | G242: 0 | H242: 0 | I242: 0 | J242: 0 | K242: 0
F243: 0 | G243: 0 | H243: 0 | I243: 0 | J243: 0 | K243: 0
F244: 0 | G244: 0 | H244: 0 | I244: 0 | J244: 0 | K244: 0
F245: 0 | G245: 0 | H245: 0 | I245: 0 | J245: 0 | K245: 0
F246: 0 | G246: 0 | H246: 0 | I246: 0 | J246: 0 | K246: 0
F247: 0 | G247: 0 | H247: 0 | I247: 0 | J247: 0 | K247: 0
F248: 0
F249: 0

Sheet JUNHO
A1: Data Dig. | B1: CNPJ/CPF | C1: Prestador | D1: Documento/NF | E1: Cód. Receita | F1: Valor | G1: Base de Cálculo | H1: Vlr.Principal | I1: Multa | J1: Juros | K1: Vlr. Total Recolhido | L1: Competência | M1: Observações | N1: Usuário | O1: Salvo?
A2: 2023-04-05 | B2: 38.278.706/0001-92 | C2: SÃO LUIZ AGROINDUSTRIA S.A | E2: ISSQN | F2: 6.28 | G2: 0 | H2: =F2-G2 -> 6.28 | I2: 0 | J2: 0 | K2: =H2+I2+J2 -> 6.28 | L2: 06/2022 | M2: AGUAI | N2: Mariane Americo Vergilio | O2: 05/04/2023 às 11:08:12
A3: 2023-04-05 | B3: 38.278.706/0001-92 | C3: SÃO LUIZ AGROINDUSTRIA S.A | E3: ISSQN | F3: 4.73 | G3: 0 | H3: =F3-G3 -> 4.73 | I3: 0 | J3: 0 | K3: =H3+I3+J3 -> 4.73 | L3: 06/2022 | M3: ANALANDIA | N3: Mariane Americo Vergilio | O3: 05/04/2023 às 11:09:58
A4: 2023-04-05 | B4: 38.278.706/0001-92 | C4: SÃO LUIZ AGROINDUSTRIA S.A | E4: ISSQN | F4: 3566.67 | G4: 0 | H4: 3566.67 | I4: 0 | J4: 0 | K4: 3566.67 | L4: 06/2022 | M4: ARARAS | N4: Mariane Americo Vergilio | O4: 05/04/2023 às 11:11:16
A5: 2023-04-05 | B5: 38.278.706/0001-92 | C5: SÃO LUIZ AGROINDUSTRIA S.A | E5: ISSQN | F5: 1617.4 | G5: 0 | H5: 1617.4 | I5: 0 | J5: 0 | K5: 1617.4 | L5: 06/2022 | M5: CASA BRANCA | N5: Mariane Americo Vergilio | O5: 05/04/2023 às 11:14:17
A6: 2023-04-05 | B6: 38.278.706/0001-92 | C6: SÃO LUIZ AGROINDUSTRIA S.A | E6: ISSQN | F6: 6.02 | G6: 0 | H6: 6.02 | I6: 0 | J6: 0 | K6: 6.02 | L6: 06/2022 | M6: ITOBI | N6: Mariane Americo Vergilio | O6: 05/04/2023 às 11:15:29
A7: 2023-04-05 | B7: 38.278.706/0001-92 | C7: SÃO LUIZ AGROINDUSTRIA S.A | E7: ISSQN | F7: 339.05 | G7: 0 | H7: 339.05 | I7: 0 | J7: 0 | K7: 339.05 | L7: 06/2022 | M7: LEME | N7: Mariane Americo Vergilio | O7: 05/04/2023 às 11:16:57
A8: 2023-04-05 | B8: 38.278.706/0001-92 | C8: SÃO LUIZ AGROINDUSTRIA S.A | E8: ISSQN | F8: 30.26 | G8: 0 | H8: 30.26 | I8: 0 | J8: 0 | K8: 30.26 | L8: 06/2022 | M8: MOCOCA | N8: Mariane Americo Vergilio | O8: 05/04/2023 às 11:30:25
A9: 2023-04-05 | B9: 38.278.706/0001-92 | C9: SÃO LUIZ AGROINDUSTRIA S.A | E9: ISSQN | F9: 4.82 | G9: 0 | H9: 4.82 | I9: 0 | J9: 0 | K9: 4.82 | L9: 06/2022 | M9: MOGI GUAÇU | N9: Mariane Americo Vergilio | O9: 05/04/2023 às 11:31:35
A10: 2023-04-05 | B10: 38.278.706/0001-92 | C10: SÃO LUIZ AGROINDUSTRIA S.A | E10: ISSQN | F10: 41572.19 | G10: 0 | H10: 41572.19 | I10: =24.23+240.08 -> 264.31 | J10: 0 | K10: 41836.5 | L10: 06/2022 | M10: PIRASSUNUNGA | N10: Mariane Americo Vergilio | O10: 05/04/2023 às 11:33:59
A11: 2023-04-05 | B11: 38.278.706/0001-92 | C11: SÃO LUIZ AGROINDUSTRIA S.A | E11: ISSQN | F11: 386.62 | G11: 0 | H11: 386.62 | I11: 0 | J11: 0 | K11: 386.62 | L11: 06/2022 | M11: PORTO FERREIRA | N11: Mariane Americo Vergilio | O11: 05/04/2023 às 11:37:48
A12: 2023-04-05 | B12: 38.278.706/0001-92 | C12: SÃO LUIZ AGROINDUSTRIA S.A | E12: ISSQN | F12: 2637.03 | G12: 0 | H12: 2637.03 | I12: 0 | J12: 0 | K12: 2637.03 | L12: 06/2022 | M12: SANTA CRUZ DAS PALMEIRAS | N12: Mariane Americo Vergilio | O12: 05/04/2023 às 11:39:25
A13: 2023-04-05 | B13: 38.278.706/0001-92 | C13: SÃO LUIZ AGROINDUSTRIA S.A | E13: ISSQN | F13: 8.91 | G13: 0 | H13: 8.91 | I13: 0 | J13: 0 | K13: 8.91 | L13: 06/2022 | M13: SANTA RITA DO PASSA QUATRO | N13: Mariane Americo Vergilio | O13: 05/04/2023 às 11:41:46
A14: 2023-04-05 | B14: 38.278.706/0001-92 | C14: SÃO LUIZ AGROINDUSTRIA S.A | E14: ISSQN | F14: 8.5 | G14: 0 | H14: 8.5 | I14: 0 | J14: 0 | K14: 8.5 | L14: 06/2022 | M14: SANTA ROSA DE VITERBO | N14: Mariane Americo Vergilio | O14: 05/04/2023 às 11:42:58
A15: 2023-04-05 | B15: 38.278.706/0001-92 | C15: SÃO LUIZ AGROINDUSTRIA S.A | E15: ISSQN | F15: 3430.41 | G15: 0 | H15: 3430.41 | I15: 1.45 | J15: 0 | K15: 3431.86 | L15: 06/2022 | M15: SÃO JOÃO DA BOA VISTA | N15: Mariane Americo Vergilio | O15: 05/04/2023 às 11:44:29
A16: 2023-04-05 | B16: 38.278.706/0001-92 | C16: SÃO LUIZ AGROINDUSTRIA S.A | E16: ISSQN | F16: 5569.27 | G16: 0 | H16: 5569.27 | I16: 0 | J16: 0 | K16: 5569.27 | L16: 06/2022 | M16: SÃO JOSE DO RIO PARDO | N16: Mariane Americo Vergilio | O16: 05/04/2023 às 11:46:24
A17: 2023-04-05 | B17: 38.278.706/0001-92 | C17: SÃO LUIZ AGROINDUSTRIA S.A | E17: ISSQN | F17: 974.21 | G17: 0 | H17: 974.21 | I17: 0 | J17: 0 | K17: 974.21 | L17: 06/2022 | M17: TAMBAU | N17: Mariane Americo Vergilio | O17: 05/04/2023 às 11:47:32
A18: 2023-04-05 | B18: 38.278.706/0001-92 | C18: SÃO LUIZ AGROINDUSTRIA S.A | E18: ISSQN | F18: 4.1 | G18: 0 | H18: 4.1 | I18: 0 | J18: 0 | K18: 4.1 | L18: 06/2022 | M18: TAPIRATIBA | N18: Mariane Americo Vergilio | O18: 05/04/2023 às 11:49:23
A19: 2023-04-05 | B19: 38.278.706/0001-92 | C19: SÃO LUIZ AGROINDUSTRIA S.A | E19: ISSQN | F19: 799.17 | G19: 0 | H19: 799.17 | I19: 0 | J19: 0 | K19: 799.17 | L19: 06/2022 | M19: VARGEM GRANDE DO SUL | N19: Mariane Americo Vergilio | O19: 05/04/2023 às 11:50:24
A20: 2023-08-21 | B20: 38.278.706/0001-92 | C20: SÃO LUIZ AGROINDUSTRIA S.A | E20: ISSQN | F20: 2668.27 | G20: 0 | H20: 2668.27 | I20: 0 | J20: 0 | K20: 2668.27 | L20: 06/2023 | M20: ARARAS | N20: Mariane Americo Vergilio | O20: 21/08/2023 às 14:11:26
A21: 2023-08-21 | B21: 38.278.706/0001-92 | C21: SÃO LUIZ AGROINDUSTRIA S.A | E21: ISSQN | F21: 734.01 | G21: 0 | H21: 734.01 | I21: 0 | J21: 0 | K21: 734.01 | L21: 06/2023 | M21: CASA BRANCA | N21: Mariane Americo Vergilio | O21: 21/08/2023 às 14:11:56
A22: 2023-08-21 | B22: 38.278.706/0001-92 | C22: SÃO LUIZ AGROINDUSTRIA S.A | E22: ISSQN | F22: 117.08 | G22: 0 | H22: 117.08 | I22: 0 | J22: 0 | K22: 117.08 | L22: 06/2023 | M22: LEME | N22: Mariane Americo Vergilio | O22: 21/08/2023 às 14:12:21
A23: 2023-08-21 | B23: 38.278.706/0001-92 | C23: SÃO LUIZ AGROINDUSTRIA S.A | E23: ISSQN | F23: 37555.67 | G23: 0 | H23: 37555.67 | I23: 494.09 | J23: 56.4 | K23: 38106.16 | L23: 06/2023 | M23: PIRASSUNUNGA | N23: Mariane Americo Vergilio | O23: 21/08/2023 às 14:12:47
A24: 2023-08-21 | B24: 38.278.706/0001-92 | C24: SÃO LUIZ AGROINDUSTRIA S.A | E24: ISSQN | F24: 136.62 | G24: 0 | H24: 136.62 | I24: 0 | J24: 0 | K24: 136.62 | L24: 06/2023 | M24: PORTO FERREIRA | N24: Mariane Americo Vergilio | O24: 21/08/2023 às 14:14:13
A25: 2023-08-21 | B25: 38.278.706/0001-92 | C25: SÃO LUIZ AGROINDUSTRIA S.A | E25: ISSQN | F25: 5992.68 | G25: 0 | H25: 5992.68 | I25: 0 | J25: 0 | K25: 5992.68 | L25: 06/2023 | M25: STA CRUZ DAS PALMEIRAS | N25: Mariane Americo Vergilio | O25: 21/08/2023 às 14:14:38
A26: 2023-08-21 | B26: 38.278.706/0001-92 | C26: SÃO LUIZ AGROINDUSTRIA S.A | E26: ISSQN | F26: 2705.04 | G26: 0 | H26: 2705.04 | I26: 0 | J26: 0 | K26: 2705.04 | L26: 06/2023 | M26: STA ROSA DE VITERBO | N26: Mariane Americo Vergilio | O26: 21/08/2023 às 14:17:04
A27: 2023-08-21 | B27: 38.278.706/0001-92 | C27: SÃO LUIZ AGROINDUSTRIA S.A | E27: ISSQN | F27: 276.05 | G27: 0 | H27: 276.05 | I27: 0 | J27: 0 | K27: 276.05 | L27: 06/2023 | M27: SÃO JOSE DO RIO PARDO | N27: Mariane Americo Vergilio | O27: 21/08/2023 às 14:17:30
A28: 2023-08-21 | B28: 38.278.706/0001-92 | C28: SÃO LUIZ AGROINDUSTRIA S.A | E28: ISSQN | F28: 2449.82 | G28: 0 | H28: 2449.82 | I28: 0 | J28: 0 | K28: 2449.82 | L28: 06/2023 | M28: TAMBAU | N28: Mariane Americo Vergilio | O28: 21/08/2023 às 14:17:50
A29: 2023-08-21 | B29: 38.278.706/0008-69 | C29: SÃO LUIZ AGROINDUSTRIA S/A | E29: ISSQN | F29: 1933.32 | G29: 0 | H29: 1933.32 | I29: 0 | J29: 0 | K29: 1933.32 | L29: 06/2023 | M29: STA CRUZ DAS PALMEIRAS | N29: Mariane Americo Vergilio | O29: 21/08/2023 às 14:18:28
A30: 2023-08-21 | B30: 38.278.706/0001-92 | C30: SÃO LUIZ AGROINDUSTRIA S.A | E30: ISSQN | F30: 898.69 | G30: 0 | H30: 898.69 | I30: 0 | J30: 0 | K30: 898.69 | L30: 06/2023 | M30: STA RITA DO PASSA QUATRO | N30: Mariane Americo Vergilio | O30: 21/08/2023 às 14:22:21

Sheet JULHO
A1: Data Dig. | B1: CNPJ/CPF | C1: Prestador | D1: Documento/NF | E1: Cód. Receita | F1: Valor | G1: Base de Cálculo | H1: Vlr.Principal | I1: Multa | J1: Juros | K1: Vlr. Total Recolhido | L1: Competência | M1: Observações | N1: Usuário | O1: Salvo?
A2: 2023-04-04 | B2: 38.278.706/0001-92 | C2: SÃO LUIZ AGROINDUSTRIA S.A | E2: ISSQN | F2: =77.25+923.04 -> 1000.29 | G2: 0 | H2: =F2-G2 -> 1000.29 | I2: 0 | J2: 0 | K2: =H2+I2+J2 -> 1000.29 | L2: 07/2021 | M2: PIRASSUNUNGA | N2: Mariane Americo Vergilio | O2: 04/04/2023 às 10:32:12
A3: 2023-04-05 | B3: 38.278.706/0001-92 | C3: SÃO LUIZ AGROINDUSTRIA S.A | E3: ISSQN | F3: 2180.22 | G3: 0 | H3: =F3-G3 -> 2180.22 | I3: 0 | J3: 0 | K3: =H3+I3+J3 -> 2180.22 | L3: 07/2022 | M3: AGUAI | N3: Mariane Americo Vergilio | O3: 05/04/2023 às 13:43:18
A4: 2023-04-05 | B4: 38.278.706/0001-92 | C4: SÃO LUIZ AGROINDUSTRIA S.A | E4: ISSQN | F4: 524.38 | G4: 0 | H4: 524.38 | I4: 0 | J4: 0 | K4: 524.38 | L4: 07/2022 | M4: ARARAS | N4: Mariane Americo Vergilio | O4: 05/04/2023 às 13:49:49
A5: 2023-04-05 | B5: 38.278.706/0001-92 | C5: SÃO LUIZ AGROINDUSTRIA S.A | E5: ISSQN | F5: 1363.38 | G5: 0 | H5: 1363.38 | I5: 0 | J5: 0 | K5: 1363.38 | L5: 07/2022 | M5: CASA BRANCA | N5: Mariane Americo Vergilio | O5: 05/04/2023 às 13:51:20
A6: 2023-04-05 | B6: 38.278.706/0001-92 | C6: SÃO LUIZ AGROINDUSTRIA S.A | E6: ISSQN | F6: 1066.21 | G6: 0 | H6: 1066.21 | I6: 0 | J6: 0 | K6: 1066.21 | L6: 07/2022 | M6: ITOBI | N6: Mariane Americo Vergilio | O6: 05/04/2023 às 13:53:14
A7: 2023-04-05 | B7: 38.278.706/0001-92 | C7: SÃO LUIZ AGROINDUSTRIA S.A | E7: ISSQN | F7: 1210.15 | G7: 0 | H7: 1210.15 | I7: 0 | J7: 0 | K7: 1210.15 | L7: 07/2022 | M7: LEME | N7: Mariane Americo Vergilio | O7: 05/04/2023 às 13:57:41
A8: 2023-04-05 | B8: 38.278.706/0001-92 | C8: SÃO LUIZ AGROINDUSTRIA S.A | E8: ISSQN | F8: 34724.45 | G8: 0 | H8: 34724.45 | I8: =0.11+1.11 -> 1.22 | J8: 0 | K8: 34725.67 | L8: 07/2022 | M8: PIRASSUNUNGA | N8: Mariane Americo Vergilio | O8: 05/04/2023 às 14:01:17
A9: 2023-04-05 | B9: 38.278.706/0001-92 | C9: SÃO LUIZ AGROINDUSTRIA S.A | E9: ISSQN | F9: 2259.3 | G9: 0 | H9: 2259.3 | I9: 0 | J9: 0 | K9: 2259.3 | L9: 07/2022 | M9: SANTA CRUZ DAS PALMEIRAS | N9: Mariane Americo Vergilio | O9: 05/04/2023 às 14:04:43
A10: 2023-04-05 | B10: 38.278.706/0001-92 | C10: SÃO LUIZ AGROINDUSTRIA S.A | E10: ISSQN | F10: 1008.39 | G10: 0 | H10: 1008.39 | I10: 0 | J10: 0 | K10: 1008.39 | L10: 07/2022 | M10: SANTA RITA DO PASSA QUATRO | N10: Mariane Americo Vergilio | O10: 05/04/2023 às 14:10:16
A11: 2023-04-05 | B11: 38.278.706/0001-92 | C11: SÃO LUIZ AGROINDUSTRIA S.A | E11: ISSQN | F11: 21.62 | G11: 0 | H11: 21.62 | I11: 1.45 | J11: 0 | K11: 23.07 | L11: 07/2022 | M11: SÃO JOÃO DA BOA VISTA | N11: Mariane Americo Vergilio | O11: 05/04/2023 às 14:11:45
A12: 2023-04-05 | B12: 38.278.706/0001-92 | C12: SÃO LUIZ AGROINDUSTRIA S.A | E12: ISSQN | F12: 2619.13 | G12: 0 | H12: 2619.13 | I12: 0 | J12: 0 | K12: 2619.13 | L12: 07/2022 | M12: SÃO JOSE DO RIO PARDO | N12: Mariane Americo Vergilio | O12: 05/04/2023 às 14:26:06
A13: 2023-04-05 | B13: 38.278.706/0001-92 | C13: SÃO LUIZ AGROINDUSTRIA S.A | E13: ISSQN | F13: 586.28 | G13: 0 | H13: 586.28 | I13: 0 | J13: 0 | K13: 586.28 | L13: 07/2022 | M13: TAMBAU | N13: Mariane Americo Vergilio | O13: 05/04/2023 às 14:28:39
A14: 2023-04-05 | B14: 38.278.706/0001-92 | C14: SÃO LUIZ AGROINDUSTRIA S.A | E14: ISSQN | F14: 1271.02 | G14: 0 | H14: 1271.02 | I14: 0 | J14: 0 | K14: 1271.02 | L14: 07/2022 | M14: VARGEM GRANDE DO SUL | N14: Mariane Americo Vergilio | O14: 05/04/2023 às 14:30:04
A15: 2023-08-21 | B15: 38.278.706/0001-92 | C15: SÃO LUIZ AGROINDUSTRIA S.A | E15: ISSQN | F15: 7928.14 | G15: 0 | H15: 7928.14 | I15: 0 | J15: 0 | K15: 7928.14 | L15: 07/2023 | M15: ARARAS | N15: Mariane Americo Vergilio | O15: 21/08/2023 às 14:33:33
A16: 2023-08-21 | B16: 38.278.706/0001-92 | C16: SÃO LUIZ AGROINDUSTRIA S.A | E16: ISSQN | F16: 4491.68 | G16: 0 | H16: 4491.68 | I16: 0 | J16: 0 | K16: 4491.68 | L16: 07/2023 | M16: CASA BRANCA | N16: Mariane Americo Vergilio | O16: 21/08/2023 às 14:36:32
A17: 2023-08-21 | B17: 38.278.706/0001-92 | C17: SÃO LUIZ AGROINDUSTRIA S.A | E17: ISSQN | F17: 36525.17 | G17: 0 | H17: 36525.17 | I17: 0 | J17: 0 | K17: 36525.17 | L17: 07/2023 | M17: PIRASSUNUNGA | N17: Mariane Americo Vergilio | O17: 21/08/2023 às 14:36:57
A18: 2023-08-21 | B18: 38.278.706/0001-92 | C18: SÃO LUIZ AGROINDUSTRIA S.A | E18: ISSQN | F18: 4846.55 | G18: 0 | H18: 4846.55 | I18: 0 | J18: 0 | K18: 4846.55 | L18: 07/2023 | M18: STA CRUZ DAS PALMEIRAS | N18: Mariane Americo Vergilio | O18: 21/08/2023 às 14:37:22
A19: 2023-08-21 | B19: 38.278.706/0001-92 | C19: SÃO LUIZ AGROINDUSTRIA S.A | E19: ISSQN | F19: 224.35 | G19: 0 | H19: 224.35 | I19: 0 | J19: 0 | K19: 224.35 | L19: 07/2023 | M19: STA ROSA DE VITERBO | N19: Mariane Americo Vergilio | O19: 21/08/2023 às 14:37:49
A20: 2023-08-21 | B20: 38.278.706/0001-92 | C20: SÃO LUIZ AGROINDUSTRIA S.A | E20: ISSQN | F20: 5681.03 | G20: 0 | H20: 5681.03 | I20: 0 | J20: 0 | K20: 5681.03 | L20: 07/2023 | M20: TAMBAU | N20: Mariane Americo Vergilio | O20: 21/08/2023 às 14:38:11
A21: 2023-08-21 | B21: 38.278.706/0008-69 | C21: SÃO LUIZ AGROINDUSTRIA S/A | E21: ISSQN | F21: 3379.79 | G21: 0 | H21: 3379.79 | I21: 0 | J21: 0 | K21: 3379.79 | L21: 07/2023 | M21: STA CRUZ DAS PALMEIRAS | N21: Mariane Americo Vergilio | O21: 21/08/2023 às 14:39:03
H210: =F210-G210 -> 0 | K210: =H210+I210+J210 -> 0
H211: 0 | K211: 0
H212: 0 | K212: 0
H213: 0 | K213: 0
H214: 0 | K214: 0
H215: 0 | K215: 0
H216: 0 | K216: 0
H217: 0 | K217: 0
H218: 0 | K218: 0
H219: 0 | K219: 0
H220: 0 | K220: 0
H221: 0 | K221: 0
H222: 0 | K222: 0
H223: 0 | K223: 0
H224: 0 | K224: 0
H225: 0 | K225: 0
H226: 0 | K226: 0
H227: =F227-G227 -> 0 | K227: =H227+I227+J227 -> 0
H228: 0 | K228: 0
H229: 0 | K229: 0
H230: 0 | K230: 0
H231: 0 | K231: 0
H232: 0 | K232: 0
H233: 0 | K233: 0
H234: 0 | K234: 0
H235: 0 | K235: 0
H236: 0 | K236: 0
H237: 0 | K237: 0
H238: 0 | K238: 0
H239: 0 | K239: 0
H240: 0 | K240: 0
H241: 0 | K241: 0
H242: 0 | K242: 0
H243: 0 | K243: 0
H244: 0 | K244: 0
H245: 0 | K245: 0
H246: 0 | K246: 0
H247: 0 | K247: 0
H248: 0 | K248: 0

Sheet AGOSTO
A1: Data Dig. | B1: CNPJ/CPF | C1: Prestador | D1: Documento/NF | E1: Cód. Receita | F1: Valor | G1: Base de Cálculo | H1: Vlr.Principal | I1: Multa | J1: Juros | K1: Vlr. Total Recolhido | L1: Competência | M1: Observações | N1: Usuário | O1: Salvo?
A2: 2023-04-04 | B2: 38.278.706/0001-92 | C2: SÃO LUIZ AGROINDUSTRIA S.A | E2: ISSQN | F2: 2029.22 | G2: 0 | H2: =F2-G2 -> 2029.22 | I2: 0 | J2: 0 | K2: =H2+I2+J2 -> 2029.22 | L2: 08/2021 | M2: PIRASSUNUNGA | N2: Mariane Americo Vergilio | O2: 04/04/2023 às 10:48:54
A3: 2023-04-05 | B3: 38.278.706/0001-92 | C3: SÃO LUIZ AGROINDUSTRIA S.A | E3: ISSQN | F3: 925.54 | G3: 0 | H3: =F3-G3 -> 925.54 | I3: 0 | J3: 0 | K3: =H3+I3+J3 -> 925.54 | L3: 08/2022 | M3: AGUAI | N3: Mariane Americo Vergilio | O3: 05/04/2023 às 14:42:56
A4: 2023-04-05 | B4: 38.278.706/0001-92 | C4: SÃO LUIZ AGROINDUSTRIA S.A | E4: ISSQN | F4: 88.69 | G4: 0 | H4: 88.69 | I4: 0 | J4: 0 | K4: 88.69 | L4: 08/2022 | M4: ANALANDIA | N4: Mariane Americo Vergilio | O4: 05/04/2023 às 14:45:39
A5: 2023-04-10 | B5: 38.278.706/0001-92 | C5: SÃO LUIZ AGROINDUSTRIA S.A | E5: ISSQN | F5: 3644.07 | G5: 0 | H5: 3644.07 | I5: 0 | J5: 0 | K5: 3644.07 | L5: 08/2022 | M5: CASA BRANCA | N5: Mariane Americo Vergilio | O5: 10/04/2023 às 08:02:59
A6: 2023-04-10 | B6: 38.278.706/0001-92 | C6: SÃO LUIZ AGROINDUSTRIA S.A | E6: ISSQN | F6: 1236.39 | G6: 0 | H6: 1236.39 | I6: 0 | J6: 0 | K6: 1236.39 | L6: 08/2022 | M6: ITOBI | N6: Mariane Americo Vergilio | O6: 10/04/2023 às 08:04:24
A7: 2023-04-10 | B7: 38.278.706/0001-92 | C7: SÃO LUIZ AGROINDUSTRIA S.A | E7: ISSQN | F7: 29753.51 | G7: 0 | H7: 29753.51 | I7: 0 | J7: 0 | K7: 29753.51 | L7: 08/2022 | M7: PIRASSUNUNGA | N7: Mariane Americo Vergilio | O7: 10/04/2023 às 08:06:50
A8: 2023-04-10 | B8: 38.278.706/0001-92 | C8: SÃO LUIZ AGROINDUSTRIA S.A | E8: ISSQN | F8: 3370.18 | G8: 0 | H8: 3370.18 | I8: 0 | J8: 0 | K8: 3370.18 | L8: 08/2022 | M8: SANTA CRUZ DAS PALMEIRAS | N8: Mariane Americo Vergilio | O8: 10/04/2023 às 08:08:13
A9: 2023-04-10 | B9: 38.278.706/0001-92 | C9: SÃO LUIZ AGROINDUSTRIA S.A | E9: ISSQN | F9: 3519.36 | G9: 0 | H9: 3519.36 | I9: 1.45 | J9: 0 | K9: 3520.81 | L9: 08/2022 | M9: SÃO JOÃO DA BOA VISTA | N9: Mariane Americo Vergilio | O9: 10/04/2023 às 08:10:45
A10: 2023-04-11 | B10: 38.278.706/0001-92 | C10: SÃO LUIZ AGROINDUSTRIA S.A | E10: ISSQN | F10: 231.52 | G10: 0 | H10: 231.52 | I10: 0 | J10: 0 | K10: 231.52 | L10: 08/2022 | M10: SÃO JOSE DO RIO PARDO | N10: Mariane Americo Vergilio | O10: 11/04/2023 às 11:20:16
A11: 2023-04-11 | B11: 38.278.706/0001-92 | C11: SÃO LUIZ AGROINDUSTRIA S.A | E11: ISSQN | F11: 487.72 | G11: 0 | H11: 487.72 | I11: 0 | J11: 0 | K11: 487.72 | L11: 08/2022 | M11: TAMBAU | N11: Mariane Americo Vergilio | O11: 11/04/2023 às 11:22:11
A12: 2023-04-11 | B12: 38.278.706/0001-92 | C12: SÃO LUIZ AGROINDUSTRIA S.A | E12: ISSQN | F12: 238.05 | G12: 0 | H12: 238.05 | I12: 0 | J12: 0 | K12: 238.05 | L12: 08/2022 | M12: TAPIRATIBA | N12: Mariane Americo Vergilio | O12: 11/04/2023 às 11:23:25
A13: 2023-04-11 | B13: 38.278.706/0001-92 | C13: SÃO LUIZ AGROINDUSTRIA S.A | E13: ISSQN | F13: 557.34 | G13: 0 | H13: 557.34 | I13: 0 | J13: 0 | K13: 557.34 | L13: 08/2022 | M13: VARGEM GRANDE DO SUL | N13: Mariane Americo Vergilio | O13: 11/04/2023 às 11:26:50
A14: 2023-09-21 | B14: 38.278.706/0008-69 | C14: SÃO LUIZ AGROINDUSTRIA S/A | E14: ISSQN | F14: 2290.67 | G14: 0 | H14: 2290.67 | I14: 0 | J14: 0 | K14: 2290.67 | L14: 08/2023 | M14: SANTA CRUZ DAS PALMEIRAS | N14: Mariane Americo Vergilio | O14: 21/09/2023 às 11:45:02
A15: 2023-09-21 | B15: 38.278.706/0001-92 | C15: SÃO LUIZ AGROINDUSTRIA S.A | E15: ISSQN | F15: 1165.35 | G15: 0 | H15: 1165.35 | I15: 0 | J15: 0 | K15: 1165.35 | L15: 08/2023 | M15: ARARAS | N15: Mariane Americo Vergilio | O15: 21/09/2023 às 11:45:51
A16: 2023-09-21 | B16: 38.278.706/0001-92 | C16: SÃO LUIZ AGROINDUSTRIA S.A | E16: ISSQN | F16: 1652.26 | G16: 0 | H16: 1652.26 | I16: 0 | J16: 0 | K16: 1652.26 | L16: 08/2023 | M16: CASA BRANCA | N16: Mariane Americo Vergilio | O16: 21/09/2023 às 11:47:28
A17: 2023-09-21 | B17: 38.278.706/0001-92 | C17: SÃO LUIZ AGROINDUSTRIA S.A | E17: ISSQN | F17: 1650.19 | G17: 0 | H17: 1650.19 | I17: 0 | J17: 0 | K17: 1650.19 | L17: 08/2023 | M17: ESPIRITO SANTO DO PINHAL | N17: Mariane Americo Vergilio | O17: 21/09/2023 às 11:48:20
A18: 2023-09-21 | B18: 38.278.706/0001-92 | C18: SÃO LUIZ AGROINDUSTRIA S.A | E18: ISSQN | F18: 162.5 | G18: 0 | H18: 162.5 | I18: 0 | J18: 0 | K18: 162.5 | L18: 08/2023 | M18: LEME | N18: Mariane Americo Vergilio | O18: 21/09/2023 às 11:48:52
A19: 2023-09-21 | B19: 38.278.706/0008-69 | C19: SÃO LUIZ AGROINDUSTRIA S/A | E19: ISSQN | F19: 56125.31 | G19: 0 | H19: 56125.31 | I19: 0 | J19: 0 | K19: 56125.31 | L19: 08/2023 | M19: PIRASSUNUNGA | N19: Mariane Americo Vergilio | O19: 21/09/2023 às 11:49:26
A20: 2023-09-21 | B20: 38.278.706/0001-92 | C20: SÃO LUIZ AGROINDUSTRIA S.A | E20: ISSQN | F20: 3646.17 | G20: 0 | H20: 3646.17 | I20: 0 | J20: 0 | K20: 3646.17 | L20: 08/2023 | M20: SANTA CRUZ DAS PALMEIRAS | N20: Mariane Americo Vergilio | O20: 21/09/2023 às 11:50:06
A21: 2023-09-21 | B21: 38.278.706/0001-92 | C21: SÃO LUIZ AGROINDUSTRIA S.A | E21: ISSQN | F21: 2644.76 | G21: 0 | H21: 2644.76 | I21: 0 | J21: 0 | K21: 2644.76 | L21: 08/2023 | M21: SANTA ROSA DE VITERBO | N21: Mariane Americo Vergilio | O21: 21/09/2023 às 11:51:44
A22: 2023-09-21 | B22: 38.278.706/0001-92 | C22: SÃO LUIZ AGROINDUSTRIA S.A | E22: ISSQN | F22: 1914.61 | G22: 0 | H22: 1914.61 | I22: 0 | J22: 0 | K22: 1914.61 | L22: 08/2023 | M22: SÃO JOÃO DA BOA VISTA | N22: Mariane Americo Vergilio | O22: 21/09/2023 às 11:52:26
A23: 2023-09-21 | B23: 38.278.706/0001-92 | C23: SÃO LUIZ AGROINDUSTRIA S.A | E23: ISSQN | F23: 588.77 | G23: 0 | H23: 588.77 | I23: 0 | J23: 0 | K23: 588.77 | L23: 08/2023 | M23: SÃO JOSE DO RIO PARDO | N23: Mariane Americo Vergilio | O23: 21/09/2023 às 11:53:19
A24: 2023-09-21 | B24: 38.278.706/0001-92 | C24: SÃO LUIZ AGROINDUSTRIA S.A | E24: ISSQN | F24: 2701.89 | G24: 0 | H24: 2701.89 | I24: 0 | J24: 0 | K24: 2701.89 | L24: 08/2023 | M24: TAMBAU | N24: Mariane Americo Vergilio | O24: 21/09/2023 às 11:53:53
A25: 2023-09-21 | B25: 38.278.706/0001-92 | C25: SÃO LUIZ AGROINDUSTRIA S.A | E25: ISSQN | F25: 1481.52 | G25: 0 | H25: 1481.52 | I25: 0 | J25: 0 | K25: 1481.52 | L25: 08/2023 | M25: VARGEM GRANDE DO SUL | N25: Mariane Americo Vergilio | O25: 21/09/2023 às 12:00:29
H26: 0 | K26: 0
H27: 0 | K27: 0
H28: 0 | K28: 0
H29: 0 | K29: 0
H30: 0 | K30: 0
H31: 0 | K31: 0
H32: 0 | K32: 0
H33: 0 | K33: 0
H34: 0 | K34: 0
H35: 0 | K35: 0
H36: 0 | K36: 0
H37: 0 | K37: 0
H38: 0 | K38: 0
H39: 0 | K39: 0
H40: 0 | K40: 0
H41: 0 | K41: 0
F173: 0 | G173: 0 | H173: =F173-G173 -> 0 | I173: 0 | J173: 0 | K173: =H173+I173+J173 -> 0
F174: 0 | G174: 0 | H174: 0 | I174: 0 | J174: 0 | K174: 0
F175: 0 | G175: 0 | H175: 0 | I175: 0 | J175: 0 | K175: 0
F176: 0 | G176: 0 | H176: 0 | I176: 0 | J176: 0 | K176: 0
F177: 0 | G177: 0 | H177: 0 | I177: 0 | J177: 0 | K177: 0
F178: 0 | G178: 0 | H178: 0 | I178: 0 | J178: 0 | K178: 0
F179: 0 | G179: 0 | H179: 0 | I179: 0 | J179: 0 | K179: 0
F180: 0 | G180: 0 | H180: 0 | I180: 0 | J180: 0 | K180: 0
F181: 0 | G181: 0 | H181: 0 | I181: 0 | J181: 0 | K181: 0
F182: 0 | G182: 0 | H182: 0 | I182: 0 | J182: 0 | K182: 0
F183: 0 | G183: 0 | H183: 0 | I183: 0 | J183: 0 | K183: 0
F184: 0 | G184: 0 | H184: 0 | I184: 0 | J184: 0 | K184: 0
F185: 0 | G185: 0 | H185: 0 | I185: 0 | J185: 0 | K185: 0
F186: 0 | G186: 0 | H186: 0 | I186: 0 | J186: 0 | K186: 0
F187: 0 | G187: 0 | H187: 0 | I187: 0 | J187: 0 | K187: 0
F188: 0 | G188: 0 | H188: 0 | I188: 0 | J188: 0 | K188: 0
F189: 0 | G189: 0 | H189: 0 | I189: 0 | J189: 0 | K189: 0
F190: 0 | G190: 0 | H190: 0 | I190: 0 | J190: 0 | K190: 0
F191: 0 | G191: 0 | H191: 0 | I191: 0 | J191: 0 | K191: 0
F192: 0 | G192: 0 | H192: 0 | I192: 0 | J192: 0 | K192: 0
F193: 0 | G193: 0 | H193: 0 | I193: 0 | J193: 0 | K193: 0
F194: 0 | G194: 0 | H194: 0 | I194: 0 | J194: 0 | K194: 0
F195: 0 | G195: 0 | H195: 0 | I195: 0 | J195: 0 | K195: 0
F196: 0 | G196: 0 | H196: 0 | I196: 0 | J196: 0 | K196: 0
F197: 0 | G197: 0 | H197: 0 | I197: 0 | J197: 0 | K197: 0
F198: 0 | G198: 0 | H198: 0 | I198: 0 | J198: 0 | K198: 0
F199: 0 | G199: 0 | H199: 0 | I199: 0 | J199: 0 | K199: 0
F200: 0 | G200: 0 | H200: 0 | I200: 0 | J200: 0 | K200: 0
F201: 0 | G201: 0 | H201: 0 | I201: 0 | J201: 0 | K201: 0
F202: 0 | G202: 0 | H202: 0 | I202: 0 | J202: 0 | K202: 0
F203: 0 | G203: 0 | H203: 0 | I203: 0 | J203: 0 | K203: 0
F204: 0 | G204: 0 | H204: 0 | I204: 0 | J204: 0 | K204: 0
F205: 0 | G205: 0 | H205: 0 | I205: 0 | J205: 0 | K205: 0
F206: 0 | G206: 0 | H206: 0 | I206: 0 | J206: 0 | K206: 0
F207: 0 | G207: 0 | H207: 0 | I207: 0 | J207: 0 | K207: 0
F208: 0 | G208: 0 | H208: 0 | I208: 0 | J208: 0 | K208: 0
F209: 0 | G209: 0 | H209: 0 | I209: 0 | J209: 0 | K209: 0
F210: 0 | G210: 0 | H210: 0 | I210: 0 | J210: 0 | K210: 0
F211: 0 | G211: 0 | H211: 0 | I211: 0 | J211: 0 | K211: 0
F212: 0 | G212: 0 | H212: 0 | I212: 0 | J212: 0 | K212: 0
F213: 0 | G213: 0 | H213: 0 | I213: 0 | J213: 0 | K213: 0
F214: 0 | G214: 0 | H214: 0 | I214: 0 | J214: 0 | K214: 0
F215: 0 | G215: 0 | H215: 0 | I215: 0 | J215: 0 | K215: 0
F216: 0 | G216: 0 | H216: 0 | I216: 0 | J216: 0 | K216: 0
F217: 0 | G217: 0 | H217: 0 | I217: 0 | J217: 0 | K217: 0
F218: 0 | G218: 0 | H218: 0 | I218: 0 | J218: 0 | K218: 0
F219: 0 | G219: 0 | H219: 0 | I219: 0 | J219: 0 | K219: 0
F220: 0 | G220: 0 | H220: 0 | I220: 0 | J220: 0 | K220: 0
F221: 0 | G221: 0 | H221: 0 | I221: 0 | J221: 0 | K221: 0
F222: 0 | G222: 0 | H222: 0 | I222: 0 | J222: 0 | K222: 0
F223: 0 | G223: 0 | H223: 0 | I223: 0 | J223: 0 | K223: 0
F224: 0 | G224: 0 | H224: 0 | I224: 0 | J224: 0 | K224: 0
F225: 0 | G225: 0 | H225: 0 | I225: 0 | J225: 0 | K225: 0
F226: 0 | G226: 0 | H226: 0 | I226: 0 | J226: 0 | K226: 0
F227: 0 | G227: 0 | H227: 0 | I227: 0 | J227: 0 | K227: 0
F228: 0 | G228: 0 | H228: 0 | I228: 0 | J228: 0 | K228: 0
F229: 0 | G229: 0 | H229: =F229-G229 -> 0 | I229: 0 | J229: 0 | K229: =H229+I229+J229 -> 0
F230: 0 | G230: 0 | H230: 0 | I230: 0 | J230: 0 | K230: 0
F231: 0 | G231: 0 | H231: 0 | I231: 0 | J231: 0 | K231: 0
F232: 0 | G232: 0 | H232: 0 | I232: 0 | J232: 0 | K232: 0
F233: 0 | G233: 0 | H233: 0 | I233: 0 | J233: 0 | K233: 0
F234: 0 | G234: 0 | H234: 0 | I234: 0 | J234: 0 | K234: 0
F235: 0 | G235: 0 | H235: 0 | I235: 0 | J235: 0 | K235: 0
F236: 0 | G236: 0 | H236: 0 | I236: 0 | J236: 0 | K236: 0
F237: 0 | G237: 0 | H237: 0 | I237: 0 | J237: 0 | K237: 0
F238: 0 | G238: 0 | H238: 0 | I238: 0 | J238: 0 | K238: 0
F239: 0 | G239: 0 | H239: 0 | I239: 0 | J239: 0 | K239: 0
F240: 0 | G240: 0 | H240: 0 | I240: 0 | J240: 0 | K240: 0
F241: 0 | G241: 0 | H241: 0 | I241: 0 | J241: 0 | K241: 0
F242: 0 | G242: 0 | H242: 0 | I242: 0 | J242: 0 | K242: 0
F243: 0 | G243: 0 | H243: 0 | I243: 0 | J243: 0 | K243: 0
F244: 0 | G244: 0 | H244: 0 | I244: 0 | J244: 0 | K244: 0
F245: 0 | G245: 0 | H245: 0 | I245: 0 | J245: 0 | K245: 0
F246: 0 | G246: 0 | H246: 0 | I246: 0 | J246: 0 | K246: 0
F247: 0 | G247: 0 | H247: 0 | I247: 0 | J247: 0 | K247: 0
F248: 0 | G248: 0 | H248: 0 | I248: 0 | J248: 0 | K248: 0
F249: 0 | G249: 0 | H249: 0 | I249: 0 | J249: 0 | K249: 0
F250: 0 | G250: 0 | H250: 0 | I250: 0 | J250: 0 | K250: 0
F251: 0 | G251: 0 | H251: 0 | I251: 0 | J251: 0 | K251: 0
F252: 0 | G252: 0 | H252: 0 | I252: 0 | J252: 0 | K252: 0
F253: 0 | G253: 0 | H253: 0 | I253: 0 | J253: 0 | K253: 0
F254: 0 | G254: 0 | H254: 0 | I254: 0 | J254: 0 | K254: 0
F255: 0 | G255: 0 | H255: 0 | I255: 0 | J255: 0 | K255: 0
F256: 0 | G256: 0 | H256: 0 | I256: 0 | J256: 0 | K256: 0
F257: 0 | G257: 0 | H257: 0 | I257: 0 | J257: 0 | K257: 0
F258: 0 | G258: 0 | H258: 0 | I258: 0 | J258: 0 | K258: 0
F259: 0 | G259: 0 | H259: 0 | I259: 0 | J259: 0 | K259: 0
F260: 0 | G260: 0 | H260: 0 | I260: 0 | J260: 0 | K260: 0
F261: 0 | G261: 0 | H261: 0 | I261: 0 | J261: 0 | K261: 0
F262: 0 | G262: 0 | H262: 0 | I262: 0 | J262: 0 | K262: 0
F263: 0 | G263: 0 | H263: 0 | I263: 0 | J263: 0 | K263: 0
F264: 0 | G264: 0 | H264: 0 | I264: 0 | J264: 0 | K264: 0
F265: 0 | G265: 0 | H265: 0 | I265: 0 | J265: 0 | K265: 0
F266: 0 | G266: 0 | H266: 0 | I266: 0 | J266: 0 | K266: 0
F267: 0 | G267: 0 | H267: 0 | I267: 0 | J267: 0 | K267: 0
F268: 0 | G268: 0 | H268: 0 | I268: 0 | J268: 0 | K268: 0
F269: 0 | G269: 0 | H269: 0 | I269: 0 | J269: 0 | K269: 0
F270: 0 | G270: 0 | H270: 0 | I270: 0 | J270: 0 | K270: 0
F271: 0 | G271: 0 | H271: 0 | I271: 0 | J271: 0 | K271: 0
F272: 0 | G272: 0 | H272: 0 | I272: 0 | J272: 0 | K272: 0
F273: 0 | G273: 0 | H273: 0 | I273: 0 | J273: 0 | K273: 0
F274: 0 | G274: 0 | H274: 0 | I274: 0 | J274: 0 | K274: 0
F275: 0 | G275: 0 | H275: 0 | I275: 0 | J275: 0 | K275: 0
F276: 0 | G276: 0 | H276: 0 | I276: 0 | J276: 0 | K276: 0
F277: 0 | G277: 0 | H277: 0 | I277: 0 | J277: 0 | K277: 0
F278: 0 | G278: 0 | H278: 0 | I278: 0 | J278: 0 | K278: 0
F279: 0 | G279: 0 | H279: 0 | I279: 0 | J279: 0 | K279: 0
F280: 0 | G280: 0 | H280: 0 | I280: 0 | J280: 0 | K280: 0
F281: 0 | G281: 0 | H281: 0 | I281: 0 | J281: 0 | K281: 0
F282: 0 | G282: 0 | H282: 0 | I282: 0 | J282: 0 | K282: 0
F283: 0 | G283: 0 | H283: 0 | I283: 0 | J283: 0 | K283: 0
F284: 0 | G284: 0 | H284: 0 | I284: 0 | J284: 0 | K284: 0
F285: 0 | G285: 0 | H285: 0 | I285: 0 | J285: 0 | K285: 0
F286: 0 | G286: 0 | H286: 0 | I286: 0 | J286: 0 | K286: 0
F287: 0 | G287: 0 | H287: 0 | I287: 0 | J287: 0 | K287: 0
F288: 0 | G288: 0 | H288: 0 | I288: 0 | J288: 0 | K288: 0
F289: 0 | G289: 0 | H289: 0 | I289: 0 | J289: 0 | K289: 0
F290: 0 | G290: 0 | H290: 0 | I290: 0 | J290: 0 | K290: 0
F291: 0 | G291: 0 | H291: 0 | I291: 0 | J291: 0 | K291: 0
F292: 0 | G292: 0 | H292: 0 | I292: 0 | J292: 0 | K292: 0
F293: 0 | G293: 0 | H293: =F293-G293 -> 0 | I293: 0 | J293: 0 | K293: =H293+I293+J293 -> 0
F294: 0 | G294: 0 | H294: 0 | I294: 0 | J294: 0 | K294: 0
F295: 0 | G295: 0 | H295: 0 | I295: 0 | J295: 0 | K295: 0
F296: 0 | G296: 0 | H296: 0 | I296: 0 | J296: 0 | K296: 0
F297: 0 | G297: 0 | H297: 0 | I297: 0 | J297: 0 | K297: 0
F298: 0 | G298: 0 | H298: 0 | I298: 0 | J298: 0 | K298: 0
F299: 0 | G299: 0 | H299: 0 | I299: 0 | J299: 0 | K299: 0
F300: 0 | G300: 0 | H300: 0 | I300: 0 | J300: 0 | K300: 0
F301: 0 | G301: 0 | H301: 0 | I301: 0 | J301: 0 | K301: 0
F302: 0 | G302: 0 | H302: 0 | I302: 0 | J302: 0 | K302: 0

Sheet SETEMBRO
A1: Data Dig. | B1: CNPJ/CPF | C1: Prestador | D1: Documento/NF | E1: Cód. Receita | F1: Valor | G1: Base de Cálculo | H1: Vlr.Principal | I1: Multa | J1: Juros | K1: Vlr. Total Recolhido | L1: Competência | M1: Observações | N1: Usuário | O1: Salvo?
A2: 2023-04-04 | B2: 38.278.706/0001-92 | C2: SÃO LUIZ AGROINDUSTRIA S.A | E2: ISSQN | F2: 1908.81 | G2: 0 | H2: =F2-G2 -> 1908.81 | I2: 0 | J2: 0 | K2: =H2+I2+J2 -> 1908.81 | L2: 09/2021 | M2: PIRASSUNUNGA | N2: Mariane Americo Vergilio | O2: 04/04/2023 às 10:51:41
A3: 2023-04-11 | B3: 38.278.706/0001-92 | C3: SÃO LUIZ AGROINDUSTRIA S.A | E3: ISSQN | F3: 178.05 | G3: 0 | H3: =F3-G3 -> 178.05 | I3: 0 | J3: 0 | K3: =H3+I3+J3 -> 178.05 | L3: 09/2022 | M3: ANALANDIA | N3: Mariane Americo Vergilio | O3: 11/04/2023 às 11:39:00
A4: 2023-04-11 | B4: 38.278.706/0001-92 | C4: SÃO LUIZ AGROINDUSTRIA S.A | E4: ISSQN | F4: 1785.52 | G4: 0 | H4: 1785.52 | I4: 0 | J4: 0 | K4: 1785.52 | L4: 09/2022 | M4: CASA BRANCA | N4: Mariane Americo Vergilio | O4: 11/04/2023 às 11:41:06
A5: 2023-04-12 | B5: 38.278.706/0001-92 | C5: SÃO LUIZ AGROINDUSTRIA S.A | E5: ISSQN | F5: 122.49 | G5: 0 | H5: 122.49 | I5: 0 | J5: 0 | K5: 122.49 | L5: 09/2022 | M5: MOGI GUAÇU | N5: Mariane Americo Vergilio | O5: 12/04/2023 às 15:18:09
A6: 2023-04-12 | B6: 38.278.706/0001-92 | C6: SÃO LUIZ AGROINDUSTRIA S.A | E6: ISSQN | F6: 25621.58 | G6: 0 | H6: 25621.58 | I6: =9.6+13.35+15.8+25.65+8.95+83.99 -> 157.34 | J6: 0 | K6: 25778.92 | L6: 09/2022 | M6: PIRASSUNUNGA | N6: Mariane Americo Vergilio | O6: 12/04/2023 às 15:21:23
A7: 2023-04-12 | B7: 38.278.706/0001-92 | C7: SÃO LUIZ AGROINDUSTRIA S.A | E7: ISSQN | F7: 252.34 | G7: 0 | H7: 252.34 | I7: 0 | J7: 0 | K7: 252.34 | L7: 09/2022 | M7: PORTO FERREIRA | N7: Mariane Americo Vergilio | O7: 12/04/2023 às 15:58:01
A8: 2023-04-12 | B8: 38.278.706/0001-92 | C8: SÃO LUIZ AGROINDUSTRIA S.A | E8: ISSQN | F8: 867.77 | G8: 0 | H8: 867.77 | I8: 0 | J8: 0 | K8: 867.77 | L8: 09/2022 | M8: SANTA CRUZ DAS PALMEIRAS | N8: Mariane Americo Vergilio | O8: 12/04/2023 às 15:59:19
A9: 2023-04-12 | B9: 38.278.706/0001-92 | C9: SÃO LUIZ AGROINDUSTRIA S.A | E9: ISSQN | F9: 49.22 | G9: 0 | H9: 49.22 | I9: 0 | J9: 0 | K9: 49.22 | L9: 09/2022 | M9: SANTA RITA DO PASSA QUATRO | N9: Mariane Americo Vergilio | O9: 12/04/2023 às 16:00:19
A10: 2023-04-12 | B10: 38.278.706/0001-92 | C10: SÃO LUIZ AGROINDUSTRIA S.A | E10: ISSQN | F10: 436.65 | G10: 0 | H10: 436.65 | I10: 0 | J10: 0 | K10: 436.65 | L10: 09/2022 | M10: SANTA ROSA DE VITERBO | N10: Mariane Americo Vergilio | O10: 12/04/2023 às 16:01:33
A11: 2023-04-12 | B11: 38.278.706/0001-92 | C11: SÃO LUIZ AGROINDUSTRIA S.A | E11: ISSQN | F11: 2686.26 | G11: 0 | H11: 2686.26 | I11: 1.45 | J11: 0 | K11: 2687.71 | L11: 09/2022 | M11: SÃO JOÃO DA BOA VISTA | N11: Mariane Americo Vergilio | O11: 12/04/2023 às 16:03:05
A12: 2023-04-12 | B12: 38.278.706/0001-92 | C12: SÃO LUIZ AGROINDUSTRIA S.A | E12: ISSQN | F12: 951.35 | G12: 0 | H12: 951.35 | I12: 0 | J12: 0 | K12: 951.35 | L12: 09/2022 | M12: SÃO JOSE DO RIO PARDO | N12: Mariane Americo Vergilio | O12: 12/04/2023 às 16:04:35
A13: 2023-04-12 | B13: 38.278.706/0001-92 | C13: SÃO LUIZ AGROINDUSTRIA S.A | E13: ISSQN | F13: 6654.79 | G13: 0 | H13: 6654.79 | I13: 0 | J13: 0 | K13: 6654.79 | L13: 09/2022 | M13: TAMBAU | N13: Mariane Americo Vergilio | O13: 12/04/2023 às 16:05:56
A14: 2023-04-12 | B14: 38.278.706/0001-92 | C14: SÃO LUIZ AGROINDUSTRIA S.A | E14: ISSQN | F14: 1561.17 | G14: 0 | H14: 1561.17 | I14: 0 | J14: 0 | K14: 1561.17 | L14: 09/2022 | M14: VARGEM GRANDE DO SUL | N14: Mariane Americo Vergilio | O14: 12/04/2023 às 16:07:38
A15: 2023-10-27 | B15: 38.278.706/0001-92 | C15: SÃO LUIZ AGROINDUSTRIA S.A | E15: ISSQN | F15: 152.38 | G15: 0 | H15: 152.38 | I15: 0 | J15: 0 | K15: 152.38 | L15: 09/2023 | M15: AGUAI | N15: Mariane Americo Vergilio | O15: 27/10/2023 às 15:21:50
A16: 2023-10-27 | B16: 38.278.706/0001-92 | C16: SÃO LUIZ AGROINDUSTRIA S.A | E16: ISSQN | F16: 272.79 | G16: 0 | H16: 272.79 | I16: 0 | J16: 0 | K16: 272.79 | L16: 09/2023 | M16: CASA BRANCA | N16: Mariane Americo Vergilio | O16: 27/10/2023 às 15:22:28
A17: 2023-10-27 | B17: 38.278.706/0001-92 | C17: SÃO LUIZ AGROINDUSTRIA S.A | E17: ISSQN | F17: 750.91 | G17: 0 | H17: 750.91 | I17: 0 | J17: 0 | K17: 750.91 | L17: 09/2023 | M17: ITOBI | N17: Mariane Americo Vergilio | O17: 27/10/2023 às 15:23:00
A18: 2023-10-27 | B18: 38.278.706/0001-92 | C18: SÃO LUIZ AGROINDUSTRIA S.A | E18: ISSQN | F18: 7.21 | G18: 0 | H18: 7.21 | I18: 0 | J18: 0 | K18: 7.21 | L18: 09/2023 | M18: MOCOCA | N18: Mariane Americo Vergilio | O18: 27/10/2023 às 15:23:38
A19: 2023-10-27 | B19: 38.278.706/0001-92 | C19: SÃO LUIZ AGROINDUSTRIA S.A | E19: ISSQN | F19: 36766.29 | G19: 0 | H19: 36766.29 | I19: 0 | J19: 0 | K19: 36766.29 | L19: 09/2023 | M19: PIRASSUNUNGA | N19: Mariane Americo Vergilio | O19: 27/10/2023 às 15:24:23
A20: 2023-10-27 | B20: 38.278.706/0001-92 | C20: SÃO LUIZ AGROINDUSTRIA S.A | E20: ISSQN | F20: 15805.41 | G20: 0 | H20: 15805.41 | I20: 0 | J20: 0 | K20: 15805.41 | L20: 09/2023 | M20: SANTA CRUZ DAS PALMEIRAS | N20: Mariane Americo Vergilio | O20: 27/10/2023 às 15:26:35
A21: 2023-10-27 | B21: 38.278.706/0001-92 | C21: SÃO LUIZ AGROINDUSTRIA S.A | E21: ISSQN | F21: 4.71 | G21: 0 | H21: 4.71 | I21: 0 | J21: 0 | K21: 4.71 | L21: 09/2023 | M21: SANTA RITA DO PASSA QUATRO | N21: Mariane Americo Vergilio | O21: 27/10/2023 às 15:28:20
A22: 2023-10-27 | B22: 38.278.706/0001-92 | C22: SÃO LUIZ AGROINDUSTRIA S.A | E22: ISSQN | F22: 22.94 | G22: 0 | H22: 22.94 | I22: 0 | J22: 0 | K22: 22.94 | L22: 09/2023 | M22: SANTA ROSA DE VITERBO | N22: Mariane Americo Vergilio | O22: 27/10/2023 às 15:28:54
A23: 2023-10-27 | B23: 38.278.706/0001-92 | C23: SÃO LUIZ AGROINDUSTRIA S.A | E23: ISSQN | F23: 3001.94 | G23: 0 | H23: 3001.94 | I23: 0 | J23: 0 | K23: 3001.94 | L23: 09/2023 | M23: SÃO JOÃO DA BOA VISTA | N23: Mariane Americo Vergilio | O23: 27/10/2023 às 15:29:29
A24: 2023-10-27 | B24: 38.278.706/0001-92 | C24: SÃO LUIZ AGROINDUSTRIA S.A | E24: ISSQN | F24: 247.45 | G24: 0 | H24: 247.45 | I24: 0 | J24: 0 | K24: 247.45 | L24: 09/2023 | M24: SÃO JOSE DO RIO PARDO | N24: Mariane Americo Vergilio | O24: 27/10/2023 às 15:30:11
A25: 2023-10-27 | B25: 38.278.706/0001-92 | C25: SÃO LUIZ AGROINDUSTRIA S.A | E25: ISSQN | F25: 4143.36 | G25: 0 | H25: 4143.36 | I25: 0 | J25: 0 | K25: 4143.36 | L25: 09/2023 | M25: TAMBAU | N25: Mariane Americo Vergilio | O25: 27/10/2023 às 15:30:45
A26: 2023-10-27 | B26: 38.278.706/0001-92 | C26: SÃO LUIZ AGROINDUSTRIA S.A | E26: ISSQN | F26: 13.76 | G26: 0 | H26: 13.76 | I26: 0 | J26: 0 | K26: 13.76 | L26: 09/2023 | M26: TAPIRATIBA | N26: Mariane Americo Vergilio | O26: 27/10/2023 às 15:31:26
A27: 2023-10-27 | B27: 38.278.706/0008-69 | C27: SÃO LUIZ AGROINDUSTRIA S/A | E27: ISSQN | F27: 1746.73 | G27: 0 | H27: 1746.73 | I27: 0.97 | J27: 0.17 | K27: 1747.87 | L27: 09/2023 | M27: SANTA CRUZ DAS PALMEIRAS | N27: Mariane Americo Vergilio | O27: 27/10/2023 às 15:32:05
H202: =F202-G202 -> 0 | K202: =H202+I202+J202 -> 0
H203: 0 | K203: 0
H204: 0 | K204: 0
H205: 0 | K205: 0
H206: 0 | K206: 0
H207: 0 | K207: 0
H208: 0 | K208: 0
H209: 0 | K209: 0
H210: 0 | K210: 0
H211: 0 | K211: 0
H212: 0 | K212: 0
H213: 0 | K213: 0
H214: 0
H215: 0
H216: 0
H217: 0
H218: 0
H219: 0

Sheet OUTUBRO
A1: Data Dig. | B1: CNPJ/CPF | C1: Prestador | D1: Documento/NF | E1: Cód. Receita | F1: Valor | G1: Base de Cálculo | H1: Vlr.Principal | I1: Multa | J1: Juros | K1: Vlr. Total Recolhido | L1: Competência | M1: Observações | N1: Usuário | O1: Salvo?
A2: 2023-04-04 | B2: 38.278.706/0001-92 | C2: SÃO LUIZ AGROINDUSTRIA S.A | E2: ISSQN | F2: 11785.19 | G2: 0 | H2: =F2-G2 -> 11785.19 | I2: =0.33+3.24 -> 3.57 | J2: 0 | K2: =H2+I2+J2 -> 11788.76 | L2: 10/2021 | M2: PIRASSUNUNGA | N2: Mariane Americo Vergilio | O2: 04/04/2023 às 10:57:01
A3: 2023-04-12 | B3: 38.278.706/0001-92 | C3: SÃO LUIZ AGROINDUSTRIA S.A | E3: ISSQN | F3: 100.06 | G3: 0 | H3: =F3-G3 -> 100.06 | I3: 0 | J3: 0 | K3: =H3+I3+J3 -> 100.06 | L3: 10/2022 | M3: AGUAI | N3: Mariane Americo Vergilio | O3: 12/04/2023 às 16:33:58
A4: 2023-04-12 | B4: 38.278.706/0001-92 | C4: SÃO LUIZ AGROINDUSTRIA S.A | E4: ISSQN | F4: 1011 | G4: 0 | H4: 1011 | I4: 0 | J4: 0 | K4: 1011 | L4: 10/2022 | M4: CASA BRANCA | N4: Mariane Americo Vergilio | O4: 12/04/2023 às 16:39:42
A5: 2023-04-12 | B5: 38.278.706/0001-92 | C5: SÃO LUIZ AGROINDUSTRIA S.A | E5: ISSQN | F5: 2267.11 | G5: 0 | H5: 2267.11 | I5: 0 | J5: 0 | K5: 2267.11 | L5: 10/2022 | M5: ESPIRITO SANTO DO PINHAL | N5: Mariane Americo Vergilio | O5: 12/04/2023 às 16:40:46
A6: 2023-04-12 | B6: 38.278.706/0001-92 | C6: SÃO LUIZ AGROINDUSTRIA S.A | E6: ISSQN | F6: 415.34 | G6: 0 | H6: 415.34 | I6: 0 | J6: 0 | K6: 415.34 | L6: 10/2022 | M6: MOGI GUAÇU | N6: Mariane Americo Vergilio | O6: 12/04/2023 às 16:42:01
A7: 2023-04-12 | B7: 38.278.706/0001-92 | C7: SÃO LUIZ AGROINDUSTRIA S.A | E7: ISSQN | F7: 23750.26 | G7: 0 | H7: 23750.26 | I7: 0 | J7: 0 | K7: 23750.26 | L7: 10/2022 | M7: PIRASSUNUNGA | N7: Mariane Americo Vergilio | O7: 12/04/2023 às 16:45:13
A8: 2023-04-12 | B8: 38.278.706/0001-92 | C8: SÃO LUIZ AGROINDUSTRIA S.A | E8: ISSQN | F8: 3154.05 | G8: 0 | H8: 3154.05 | I8: 0 | J8: 0 | K8: 3154.05 | L8: 10/2022 | M8: SANTA CRUZ DAS PALMEIRAS | N8: Mariane Americo Vergilio | O8: 12/04/2023 às 16:46:22
A9: 2023-04-12 | B9: 38.278.706/0001-92 | C9: SÃO LUIZ AGROINDUSTRIA S.A | E9: ISSQN | F9: 152.29 | G9: 0 | H9: 152.29 | I9: 0 | J9: 0 | K9: 152.29 | L9: 10/2022 | M9: SANTA ROSA DE VITERBO | N9: Mariane Americo Vergilio | O9: 12/04/2023 às 16:49:58
A10: 2023-04-12 | B10: 38.278.706/0001-92 | C10: SÃO LUIZ AGROINDUSTRIA S.A | E10: ISSQN | F10: 317.72 | G10: 0 | H10: 317.72 | I10: 1.45 | J10: 0 | K10: 319.17 | L10: 10/2022 | M10: SÃO JOÃO DA BOA VISTA | N10: Mariane Americo Vergilio | O10: 12/04/2023 às 16:56:52
A11: 2023-04-13 | B11: 38.278.706/0001-92 | C11: SÃO LUIZ AGROINDUSTRIA S.A | E11: ISSQN | F11: 878.33 | G11: 0 | H11: 878.33 | I11: 0 | J11: 0 | K11: 878.33 | L11: 10/2022 | M11: TAMBAU | N11: Mariane Americo Vergilio | O11: 13/04/2023 às 07:44:55
A12: 2023-04-13 | B12: 38.278.706/0001-92 | C12: SÃO LUIZ AGROINDUSTRIA S.A | E12: ISSQN | F12: 2174.67 | G12: 0 | H12: 2174.67 | I12: 0 | J12: 0 | K12: 2174.67 | L12: 10/2022 | M12: VARGEM GRANDE DO SUL | N12: Mariane Americo Vergilio | O12: 13/04/2023 às 07:46:08
G13: 0 | H13: 0 | K13: 0
G14: 0 | H14: 0 | K14: 0
K15: 0
H211: =F211-G211 -> 0 | K211: =H211+I211+J211 -> 0
H212: 0 | K212: 0
H213: 0 | K213: 0
H214: 0 | K214: 0
H215: 0 | K215: 0
H216: 0 | K216: 0
H217: 0 | K217: 0
H218: 0 | K218: 0
H219: 0 | K219: 0
H220: 0 | K220: 0
H221: 0 | K221: 0
H222: 0 | K222: 0
H223: 0 | K223: 0
H224: 0 | K224: 0
H225: 0 | K225: 0
H226: 0 | K226: 0
H227: 0 | K227: 0
H228: 0 | K228: 0
H229: 0 | K229: 0
H230: 0 | K230: 0
H231: 0 | K231: 0
H232: 0 | K232: 0
H233: 0 | K233: 0
H234: 0 | K234: 0
H235: 0 | K235: 0
H236: 0 | K236: 0
H237: 0 | K237: 0
H238: 0 | K238: 0
H239: 0 | K239: 0
H240: 0 | K240: 0
H241: 0 | K241: 0
H242: 0 | K242: 0
H243: 0 | K243: 0
H244: 0 | K244: 0
H245: 0 | K245: 0
H246: 0 | K246: 0
H247: 0 | K247: 0
H248: 0 | K248: 0
H249: 0 | K249: 0
H250: 0 | K250: 0
H251: 0 | K251: 0
H252: 0 | K252: 0
H253: 0 | K253: 0
H254: 0
H255: 0
H256: 0
H257: 0
H258: 0
H259: 0
H260: =F260-G260 -> 0
H261: 0
H262: 0
H263: 0
H264: 0
H265: 0
H266: 0
H267: 0
H268: 0
H269: 0
H270: 0
H271: 0
H272: 0
H273: 0
H274: 0
H275: 0
H276: 0
H277: 0
H278: 0
H279: 0
H280: 0
H281: 0
H282: 0
H283: 0
H284: 0
H285: 0
H286: 0
H287: 0
H288: 0
H289: 0
H290: 0
H291: 0
H292: 0
H293: 0
H294: 0
H295: 0
H296: 0
H297: 0
H298: 0
H299: 0
H300: 0
H301: 0
H302: 0
H303: 0
H304: 0
H305: 0
H306: 0
H307: 0
H308: 0
H309: 0
H310: 0
H311: 0
H312: 0
H313: 0
H314: 0
H315: 0
H316: 0
H317: 0

Sheet NOVEMBRO
A1: Data Dig. | B1: CNPJ/CPF | C1: Prestador | D1: Documento/NF | E1: Cód. Receita | F1: Valor | G1: Base de Cálculo | H1: Vlr.Principal | I1: Multa | J1: Juros | K1: Vlr. Total Recolhido | L1: Competência | M1: Observações | N1: Usuário | O1: Salvo?
A2: 2023-04-04 | B2: 38.278.706/0001-92 | C2: SÃO LUIZ AGROINDUSTRIA S.A | E2: ISSQN | F2: 790.84 | G2: 0 | H2: =F2+G2 -> 790.84 | I2: 0 | J2: 0 | K2: =F2+I2+J2 -> 790.84 | L2: 11/2021 | M2: AGUAI | N2: Mariane Americo Vergilio | O2: 04/04/2023 às 11:25:37
A3: 2023-04-04 | B3: 38.278.706/0001-92 | C3: SÃO LUIZ AGROINDUSTRIA S.A | E3: ISSQN | F3: 10730.07 | G3: 0 | H3: =F3+G3 -> 10730.07 | I3: 0 | J3: 0 | K3: =F3+I3+J3 -> 10730.07 | L3: 11/2021 | M3: ANALANDIA | N3: Mariane Americo Vergilio | O3: 04/04/2023 às 11:27:56
A4: 2023-04-04 | B4: 38.278.706/0001-92 | C4: SÃO LUIZ AGROINDUSTRIA S.A | E4: ISSQN | F4: 8337.89 | G4: 0 | H4: 8337.89 | I4: 0 | J4: 0 | K4: 8337.89 | L4: 11/2021 | M4: CASA BRANCA | N4: Mariane Americo Vergilio | O4: 04/04/2023 às 11:29:16
A5: 2023-04-04 | B5: 38.278.706/0001-92 | C5: SÃO LUIZ AGROINDUSTRIA S.A | E5: ISSQN | F5: 714.94 | G5: 0 | H5: 714.94 | I5: 0 | J5: 0 | K5: 714.94 | L5: 11/2021 | M5: ESPIRITO SANTO DO PINHAL | N5: Mariane Americo Vergilio | O5: 04/04/2023 às 11:30:28
A6: 2023-04-04 | B6: 38.278.706/0001-92 | C6: SÃO LUIZ AGROINDUSTRIA S.A | E6: ISSQN | F6: 1945.09 | G6: 0 | H6: 1945.09 | I6: 0 | J6: 0 | K6: 1945.09 | L6: 11/2021 | M6: ITOBI | N6: Mariane Americo Vergilio | O6: 04/04/2023 às 11:31:41
A7: 2023-04-04 | B7: 38.278.706/0001-92 | C7: SÃO LUIZ AGROINDUSTRIA S.A | E7: ISSQN | F7: 727.09 | G7: 0 | H7: 727.09 | I7: 0 | J7: 0 | K7: 727.09 | L7: 11/2021 | M7: MOCOCA | N7: Mariane Americo Vergilio | O7: 04/04/2023 às 11:32:34
A8: 2023-04-04 | B8: 38.278.706/0001-92 | C8: SÃO LUIZ AGROINDUSTRIA S.A | E8: ISSQN | F8: 679.97 | G8: 0 | H8: 679.97 | I8: 0 | J8: 0 | K8: 679.97 | L8: 11/2021 | M8: MOGI GUAÇU | N8: Mariane Americo Vergilio | O8: 04/04/2023 às 11:33:40
A9: 2023-04-04 | B9: 38.278.706/0001-92 | C9: SÃO LUIZ AGROINDUSTRIA S.A | E9: ISSQN | F9: 43130.04 | G9: 0 | H9: 43130.04 | I9: 76.5 | J9: 7.72 | K9: 43214.26 | L9: 11/2021 | M9: PIRASSUNUNGA | N9: Mariane Americo Vergilio | O9: 04/04/2023 às 11:34:50
A10: 2023-04-04 | B10: 38.278.706/0001-92 | C10: SÃO LUIZ AGROINDUSTRIA S.A | E10: ISSQN | F10: 2204.42 | G10: 0 | H10: 2204.42 | I10: 0 | J10: 0 | K10: 2204.42 | L10: 11/2021 | M10: PORTO FERREIRA | N10: Mariane Americo Vergilio | O10: 04/04/2023 às 11:45:07
A11: 2023-04-04 | B11: 38.278.706/0001-92 | C11: SÃO LUIZ AGROINDUSTRIA S.A | E11: ISSQN | F11: 1.07 | G11: 0 | H11: 1.07 | I11: 0 | J11: 0 | K11: 1.07 | L11: 11/2021 | M11: SANTA CRUZ DA CONCEIÇÃO | N11: Mariane Americo Vergilio | O11: 04/04/2023 às 11:46:01
A12: 2023-04-04 | B12: 38.278.706/0001-92 | C12: SÃO LUIZ AGROINDUSTRIA S.A | E12: ISSQN | F12: 10409.61 | G12: 0 | H12: 10409.61 | I12: 0 | J12: 0 | K12: 10409.61 | L12: 11/2021 | M12: SANTA CRUZ DAS PALMEIRAS | N12: Mariane Americo Vergilio | O12: 04/04/2023 às 11:47:05
A13: 2023-04-04 | B13: 38.278.706/0001-92 | C13: SÃO LUIZ AGROINDUSTRIA S.A | E13: ISSQN | F13: 474.8 | G13: 0 | H13: 474.8 | I13: 0 | J13: 0 | K13: 474.8 | L13: 11/2021 | M13: SANTA RITA DO PASSA QUATRO | N13: Mariane Americo Vergilio | O13: 04/04/2023 às 11:52:21
A14: 2023-04-04 | B14: 38.278.706/0001-92 | C14: SÃO LUIZ AGROINDUSTRIA S.A | E14: ISSQN | F14: 395.39 | G14: 0 | H14: 395.39 | I14: 0 | J14: 0 | K14: 395.39 | L14: 11/2021 | M14: SANTA ROSA DE VITERBO | N14: Mariane Americo Vergilio | O14: 04/04/2023 às 11:53:20
A15: 2023-04-04 | B15: 38.278.706/0001-92 | C15: SÃO LUIZ AGROINDUSTRIA S.A | E15: ISSQN | F15: 4837.11 | G15: 0 | H15: 4837.11 | I15: =1.32+1.32 -> 2.64 | J15: 0 | K15: 4839.75 | L15: 11/2021 | M15: SÃO JOÃO DA BOA VISTA | N15: Mariane Americo Vergilio | O15: 04/04/2023 às 11:54:33
A16: 2023-04-04 | B16: 38.278.706/0001-92 | C16: SÃO LUIZ AGROINDUSTRIA S.A | E16: ISSQN | F16: 7337.53 | G16: 0 | H16: 7337.53 | I16: 0 | J16: 0 | K16: 7337.53 | L16: 11/2021 | M16: SÃO JOSE DO RIO PARDO | N16: Mariane Americo Vergilio | O16: 04/04/2023 às 13:09:22
A17: 2023-04-04 | B17: 38.278.706/0001-92 | C17: SÃO LUIZ AGROINDUSTRIA S.A | E17: ISSQN | F17: 64.69 | G17: 0 | H17: 64.69 | I17: 0 | J17: 0 | K17: 64.69 | L17: 11/2021 | M17: SÃO SIMÃO | N17: Mariane Americo Vergilio | O17: 04/04/2023 às 13:10:25
A18: 2023-04-04 | B18: 38.278.706/0001-92 | C18: SÃO LUIZ AGROINDUSTRIA S.A | E18: ISSQN | F18: 5915.56 | G18: 0 | H18: 5915.56 | I18: 0 | J18: 0 | K18: 5915.56 | L18: 11/2021 | M18: TAMBAU | N18: Mariane Americo Vergilio | O18: 04/04/2023 às 13:11:23
A19: 2023-04-04 | B19: 38.278.706/0001-92 | C19: SÃO LUIZ AGROINDUSTRIA S.A | E19: ISSQN | F19: 18.81 | G19: 0 | H19: 18.81 | I19: 0 | J19: 0 | K19: 18.81 | L19: 11/2021 | M19: TAPIRATIBA | N19: Mariane Americo Vergilio | O19: 04/04/2023 às 13:12:29
A20: 2023-04-04 | B20: 38.278.706/0001-92 | C20: SÃO LUIZ AGROINDUSTRIA S.A | E20: ISSQN | F20: 3467.64 | G20: 0 | H20: 3467.64 | I20: 0 | J20: 0 | K20: 3467.64 | L20: 11/2021 | M20: VARGEM GRANDE DO SUL | N20: Mariane Americo Vergilio | O20: 04/04/2023 às 13:14:52
A21: 2023-04-13 | B21: 38.278.706/0001-92 | C21: SÃO LUIZ AGROINDUSTRIA S.A | E21: ISSQN | F21: 13.11 | G21: 0 | H21: 13.11 | I21: 0 | J21: 0 | K21: 13.11 | L21: 11/2022 | M21: AGUAI | N21: Mariane Americo Vergilio | O21: 13/04/2023 às 07:53:41
A22: 2023-04-13 | B22: 38.278.706/0001-92 | C22: SÃO LUIZ AGROINDUSTRIA S.A | E22: ISSQN | F22: 1831.12 | G22: 0 | H22: 1831.12 | I22: 0 | J22: 0 | K22: 1831.12 | L22: 11/2022 | M22: CASA BRANCA | N22: Mariane Americo Vergilio | O22: 13/04/2023 às 07:55:18
A23: 2023-04-13 | B23: 38.278.706/0001-92 | C23: SÃO LUIZ AGROINDUSTRIA S.A | E23: ISSQN | F23: 162.21 | G23: 0 | H23: 162.21 | I23: 0 | J23: 0 | K23: 162.21 | L23: 11/2022 | M23: MOCOCA | N23: Mariane Americo Vergilio | O23: 13/04/2023 às 07:56:39
A24: 2023-04-13 | B24: 38.278.706/0001-92 | C24: SÃO LUIZ AGROINDUSTRIA S.A | E24: ISSQN | F24: 25680.05 | G24: 0 | H24: 25680.05 | I24: =0.11+1.06 -> 1.17 | J24: 0 | K24: 25681.22 | L24: 11/2022 | M24: PIRASSUNUNGA | N24: Mariane Americo Vergilio | O24: 13/04/2023 às 07:59:05
A25: 2023-04-13 | B25: 38.278.706/0001-92 | C25: SÃO LUIZ AGROINDUSTRIA S.A | E25: ISSQN | F25: 824.29 | G25: 0 | H25: 824.29 | I25: 0 | J25: 0 | K25: 824.29 | L25: 11/2022 | M25: SANTA CRUZ DAS PALMEIRAS | N25: Mariane Americo Vergilio | O25: 13/04/2023 às 08:01:24
A26: 2023-04-14 | B26: 38.278.706/0001-92 | C26: SÃO LUIZ AGROINDUSTRIA S.A | E26: ISSQN | F26: 230.37 | G26: 0 | H26: 230.37 | I26: 0 | J26: 0 | K26: 230.37 | L26: 11/2022 | M26: SANTA RITA DO PASSA QUATRO | N26: Mariane Americo Vergilio | O26: 14/04/2023 às 15:06:15
A27: 2023-04-14 | B27: 38.278.706/0001-92 | C27: SÃO LUIZ AGROINDUSTRIA S.A | E27: ISSQN | F27: 82.89 | G27: 0 | H27: 82.89 | I27: 1.45 | J27: 0 | K27: 84.34 | L27: 11/2022 | M27: SÃO JOÃO DA BOA VISTA | N27: Mariane Americo Vergilio | O27: 14/04/2023 às 15:07:22
A28: 2023-04-14 | B28: 38.278.706/0001-92 | C28: SÃO LUIZ AGROINDUSTRIA S.A | E28: ISSQN | F28: 2227.12 | G28: 0 | H28: 2227.12 | I28: 0 | J28: 0 | K28: 2227.12 | L28: 11/2022 | M28: TAMBAU | N28: Mariane Americo Vergilio | O28: 14/04/2023 às 15:08:41
A29: 2023-04-14 | B29: 38.278.706/0001-92 | C29: SÃO LUIZ AGROINDUSTRIA S.A | E29: ISSQN | F29: 221.13 | G29: 0 | H29: 221.13 | I29: 0 | J29: 0 | K29: 221.13 | L29: 11/2022 | M29: VARGEM GRANDE DO SUL | N29: Mariane Americo Vergilio | O29: 14/04/2023 às 15:09:56
G30: 0 | H30: 0 | I30: 0 | J30: 0 | K30: 0

Sheet DEZEMBRO
A1: Data Dig. | B1: CNPJ/CPF | C1: Prestador | D1: Documento/NF | E1: Cód. Receita | F1: Valor | G1: Base de Cálculo | H1: Vlr.Principal | I1: Multa | J1: Juros | K1: Vlr. Total Recolhido | L1: Competência | M1: Observações | N1: Usuário | O1: Salvo?
A2: 2023-04-04 | B2: 38.278.706/0001-92 | C2: SÃO LUIZ AGROINDUSTRIA S.A | E2: ISSQN | F2: 445.15 | G2: 0 | I2: 0 | J2: 0 | K2: =F2+I2+J2 -> 445.15 | L2: 12/2021 | M2: AGUAI | N2: Mariane Americo Vergilio | O2: 04/04/2023 às 13:42:00
A3: 2023-04-04 | B3: 38.278.706/0001-92 | C3: SÃO LUIZ AGROINDUSTRIA S.A | E3: ISSQN | F3: 19.11 | G3: 0 | I3: 1.32 | J3: 0 | K3: =F3+I3+J3 -> 20.43 | L3: 12/2021 | M3: ANALANDIA | N3: Mariane Americo Vergilio | O3: 04/04/2023 às 13:43:37
A4: 2023-04-04 | B4: 38.278.706/0001-92 | C4: SÃO LUIZ AGROINDUSTRIA S.A | E4: ISSQN | F4: 4.34 | G4: 0 | I4: 0 | J4: 0 | K4: 4.34 | L4: 12/2021 | M4: ARARAS | N4: Mariane Americo Vergilio | O4: 04/04/2023 às 13:47:53
A5: 2023-04-04 | B5: 38.278.706/0001-92 | C5: SÃO LUIZ AGROINDUSTRIA S.A | E5: ISSQN | F5: 14741.43 | G5: 0 | I5: 6.04 | J5: 0 | K5: 14747.47 | L5: 12/2021 | M5: CASA BRANCA | N5: Mariane Americo Vergilio | O5: 04/04/2023 às 13:50:23
A6: 2023-04-04 | B6: 38.278.706/0001-92 | C6: SÃO LUIZ AGROINDUSTRIA S.A | E6: ISSQN | F6: 76.09 | G6: 0 | I6: 0 | J6: 0 | K6: 76.09 | L6: 12/2021 | M6: ESPIRITO SANTO DO PINHAL | N6: Mariane Americo Vergilio | O6: 04/04/2023 às 13:55:20
A7: 2023-04-04 | B7: 38.278.706/0001-92 | C7: SÃO LUIZ AGROINDUSTRIA S.A | E7: ISSQN | F7: 72.89 | G7: 0 | I7: 0 | J7: 0 | K7: 72.89 | L7: 12/2021 | M7: ITOBI | N7: Mariane Americo Vergilio | O7: 04/04/2023 às 13:56:03
A8: 2023-04-04 | B8: 38.278.706/0001-92 | C8: SÃO LUIZ AGROINDUSTRIA S.A | E8: ISSQN | F8: 339.05 | G8: 0 | H8: =F8-G8 -> 339.05 | I8: 0 | J8: 0 | K8: 339.05 | L8: 12/2021 | M8: LEME | N8: Mariane Americo Vergilio | O8: 04/04/2023 às 13:58:42
A9: 2023-04-04 | B9: 38.278.706/0001-92 | C9: SÃO LUIZ AGROINDUSTRIA S.A | E9: ISSQN | F9: 21.43 | G9: 0 | H9: =F9-G9 -> 21.43 | I9: 0 | J9: 0 | K9: 21.43 | L9: 12/2021 | M9: MOCOCA | N9: Mariane Americo Vergilio | O9: 04/04/2023 às 13:59:37
A10: 2023-04-04 | B10: 38.278.706/0001-92 | C10: SÃO LUIZ AGROINDUSTRIA S.A | E10: ISSQN | F10: 296.79 | G10: 0 | H10: 296.79 | I10: 0 | J10: 0 | K10: 296.79 | L10: 12/2021 | M10: MOGI GUAÇU | N10: Mariane Americo Vergilio | O10: 04/04/2023 às 14:00:16
A11: 2023-04-04 | B11: 38.278.706/0001-92 | C11: SÃO LUIZ AGROINDUSTRIA S.A | E11: ISSQN | F11: 68094.6 | G11: 0 | H11: 68094.6 | I11: 0 | J11: 0 | K11: 68094.6 | L11: 12/2021 | M11: PIRASSUNUNGA | N11: Mariane Americo Vergilio | O11: 04/04/2023 às 14:01:11
A12: 2023-04-04 | B12: 38.278.706/0001-92 | C12: SÃO LUIZ AGROINDUSTRIA S.A | E12: ISSQN | F12: 620.24 | G12: 0 | H12: 620.24 | I12: 0 | J12: 0 | K12: 620.24 | L12: 12/2021 | M12: PORTO FERREIRA | N12: Mariane Americo Vergilio | O12: 04/04/2023 às 14:11:07
A13: 2023-04-04 | B13: 38.278.706/0001-92 | C13: SÃO LUIZ AGROINDUSTRIA S.A | E13: ISSQN | F13: 16330.35 | G13: 0 | H13: 16330.35 | I13: 0 | J13: 0 | K13: 16330.35 | L13: 12/2021 | M13: SANTA CRUZ DAS PALMEIRAS | N13: Mariane Americo Vergilio | O13: 04/04/2023 às 14:14:34
A14: 2023-04-04 | B14: 38.278.706/0001-92 | C14: SÃO LUIZ AGROINDUSTRIA S.A | E14: ISSQN | F14: 199.27 | G14: 0 | H14: 199.27 | I14: 0 | J14: 0 | K14: 199.27 | L14: 12/2021 | M14: SANTA RITA DO PASSA QUATRO | N14: Mariane Americo Vergilio | O14: 04/04/2023 às 15:30:52
A15: 2023-04-04 | B15: 38.278.706/0001-92 | C15: SÃO LUIZ AGROINDUSTRIA S.A | E15: ISSQN | F15: 113.08 | G15: 0 | H15: 113.08 | I15: 0 | J15: 0 | K15: 113.08 | L15: 12/2021 | M15: SANTA ROSA DE VITERBO | N15: Mariane Americo Vergilio | O15: 04/04/2023 às 15:32:22
A16: 2023-04-04 | B16: 38.278.706/0001-92 | C16: SÃO LUIZ AGROINDUSTRIA S.A | E16: ISSQN | F16: 1987.87 | G16: 0 | H16: 1987.87 | I16: 1.32 | J16: 0 | K16: 1989.19 | L16: 12/2021 | M16: SÃO JOÃO DA BOA VISTA | N16: Mariane Americo Vergilio | O16: 04/04/2023 às 15:34:43
A17: 2023-04-04 | B17: 38.278.706/0001-92 | C17: SÃO LUIZ AGROINDUSTRIA S.A | E17: ISSQN | F17: 266.27 | G17: 0 | H17: 266.27 | I17: 0 | J17: 0 | K17: 266.27 | L17: 12/2021 | M17: SÃO JOSE DO RIO PARDO | N17: Mariane Americo Vergilio | O17: 04/04/2023 às 15:36:19
A18: 2023-04-04 | B18: 38.278.706/0001-92 | C18: SÃO LUIZ AGROINDUSTRIA S.A | E18: ISSQN | F18: 4.11 | G18: 0 | H18: 4.11 | I18: 0 | J18: 0 | K18: 4.11 | L18: 12/2021 | M18: SÃO SIMÃO | N18: Mariane Americo Vergilio | O18: 04/04/2023 às 15:37:13
A19: 2023-04-04 | B19: 38.278.706/0001-92 | C19: SÃO LUIZ AGROINDUSTRIA S.A | E19: ISSQN | F19: 3411.5 | G19: 0 | H19: 3411.5 | I19: 0.12 | J19: 0 | K19: 3411.62 | L19: 12/2021 | M19: TAMBAU | N19: Mariane Americo Vergilio | O19: 04/04/2023 às 15:38:39
A20: 2023-04-04 | B20: 38.278.706/0001-92 | C20: SÃO LUIZ AGROINDUSTRIA S.A | E20: ISSQN | F20: 149.19 | G20: 0 | H20: 149.19 | I20: 0 | J20: 0 | K20: 149.19 | L20: 12/2021 | M20: VARGEM GRANDE DO SUL | N20: Mariane Americo Vergilio | O20: 04/04/2023 às 15:40:07
A21: 2023-04-14 | B21: 38.278.706/0001-92 | C21: SÃO LUIZ AGROINDUSTRIA S.A | E21: ISSQN | F21: 549.37 | G21: 0 | H21: 549.37 | I21: 0 | J21: 0 | K21: 549.37 | L21: 12/2022 | M21: CASA BRANCA | N21: Mariane Americo Vergilio | O21: 14/04/2023 às 15:23:08
A22: 2023-04-14 | B22: 38.278.706/0001-92 | C22: SÃO LUIZ AGROINDUSTRIA S.A | E22: ISSQN | F22: 15843.14 | G22: 0 | H22: 15843.14 | I22: 0 | J22: 0 | K22: 15843.14 | L22: 12/2022 | M22: PIRASSUNUNGA | N22: Mariane Americo Vergilio | O22: 14/04/2023 às 15:25:25
A23: 2023-04-14 | B23: 38.278.706/0001-92 | C23: SÃO LUIZ AGROINDUSTRIA S.A | E23: ISSQN | F23: 2546.93 | G23: 0 | H23: 2546.93 | I23: 0 | J23: 0 | K23: 2546.93 | L23: 12/2022 | M23: SANTA CRUZ DAS PALMEIRAS | N23: Mariane Americo Vergilio | O23: 14/04/2023 às 15:26:43
A24: 2023-04-14 | B24: 38.278.706/0001-92 | C24: SÃO LUIZ AGROINDUSTRIA S.A | E24: ISSQN | F24: 221.67 | G24: 0 | H24: 221.67 | I24: 0 | J24: 0 | K24: 221.67 | L24: 12/2022 | M24: SANTA RITA DO PASSA QUATRO | N24: Mariane Americo Vergilio | O24: 14/04/2023 às 15:28:52
A25: 2023-04-14 | B25: 38.278.706/0001-92 | C25: SÃO LUIZ AGROINDUSTRIA S.A | E25: ISSQN | F25: 602.2 | G25: 0 | H25: 602.2 | I25: 0 | J25: 0 | K25: 602.2 | L25: 12/2022 | M25: SANTA ROSO DE VITERBO | N25: Mariane Americo Vergilio | O25: 14/04/2023 às 15:32:40
A26: 2023-04-14 | B26: 38.278.706/0001-92 | C26: SÃO LUIZ AGROINDUSTRIA S.A | E26: ISSQN | F26: 4.1 | G26: 0 | H26: 4.1 | I26: 0 | J26: 0 | K26: 4.1 | L26: 12/2022 | M26: SÃO JOSE DO RIO PARDO | N26: Mariane Americo Vergilio | O26: 14/04/2023 às 15:33:57
A27: 2023-04-14 | B27: 38.278.706/0001-92 | C27: SÃO LUIZ AGROINDUSTRIA S.A | E27: ISSQN | F27: 2850.77 | G27: 0 | H27: 2850.77 | I27: 0 | J27: 0 | K27: 2850.77 | L27: 12/2022 | M27: TAMBAU | N27: Mariane Americo Vergilio | O27: 14/04/2023 às 15:35:15
F28: 0 | G28: 0 | H28: 0 | K28: 0
F29: 0 | G29: 0 | H29: 0 | K29: 0
F30: 0 | G30: 0 | H30: 0 | K30: 0
K31: 0
K32: 0
K33: 0
H96: =F96-G96 -> 0 | K96: =H96+I96+J96 -> 0
H97: 0 | K97: 0

Sheet Geral
A1: Data Dig. | B1: CNPJ/CPF | C1: Prestador | D1: Documento/NF | E1: Cód. Receita | F1: Valor | G1: Base de Cálculo | H1: Vlr.Principal | I1: Multa | J1: Juros | K1: Vlr. Total Recolhido | L1: Competência | M1: Observações | N1: Usuário | O1: Salvo?
A2: 2023-04-04 | B2: 38.278.706/0001-92 | C2: SÃO LUIZ AGROINDUSTRIA S.A | E2: ISSQN | F2: 864.02 | G2: 0 | H2: 864.02 | I2: 0 | J2: 0 | K2: 864.02 | L2: 01/2022 | M2: CASA BRANCA | N2: Mariane Americo Vergilio | O2: 04/04/2023 às 15:54:11
A3: 2023-04-04 | B3: 38.278.706/0001-92 | C3: SÃO LUIZ AGROINDUSTRIA S.A | E3: ISSQN | F3: 289.43 | G3: 0 | H3: 289.43 | I3: 0 | J3: 0 | K3: 289.43 | L3: 01/2022 | M3: DESCALVADO | N3: Mariane Americo Vergilio | O3: 04/04/2023 às 15:55:57
A4: 2023-04-04 | B4: 38.278.706/0001-92 | C4: SÃO LUIZ AGROINDUSTRIA S.A | E4: ISSQN | F4: 262.73 | G4: 0 | H4: 262.73 | I4: 0 | J4: 0 | K4: 262.73 | L4: 01/2022 | M4: ESPIRITO SANTO DO PINHAL | N4: Mariane Americo Vergilio | O4: 04/04/2023 às 15:57:26
A5: 2023-04-04 | B5: 38.278.706/0001-92 | C5: SÃO LUIZ AGROINDUSTRIA S.A | E5: ISSQN | F5: 8587.33 | G5: 0 | H5: 8587.33 | I5: 23.73 | K5: 8611.06 | L5: 01/2022 | M5: PIRASSUNUNGA | N5: Mariane Americo Vergilio | O5: 04/04/2023 às 15:59:06
A6: 2023-04-04 | B6: 38.278.706/0001-92 | C6: SÃO LUIZ AGROINDUSTRIA S.A | E6: ISSQN | F6: 764.53 | G6: 0 | H6: 764.53 | I6: 0 | J6: 0 | K6: 764.53 | L6: 01/2022 | M6: PORTO FERREIRA | N6: Mariane Americo Vergilio | O6: 04/04/2023 às 16:07:37
A7: 2023-04-04 | B7: 38.278.706/0001-92 | C7: SÃO LUIZ AGROINDUSTRIA S.A | E7: ISSQN | F7: 1630.6 | G7: 0 | H7: 1630.6 | I7: 0 | J7: 0 | K7: 1630.6 | L7: 01/2022 | M7: SANTA CRUZ DAS PALMEIRAS | N7: Mariane Americo Vergilio | O7: 04/04/2023 às 16:08:44
A8: 2023-04-04 | B8: 38.278.706/0001-92 | C8: SÃO LUIZ AGROINDUSTRIA S.A | E8: ISSQN | F8: 238.56 | G8: 0 | H8: 238.56 | I8: 0 | J8: 0 | K8: 238.56 | L8: 01/2022 | M8: SANTA ROSA DE VITERBO | N8: Mariane Americo Vergilio | O8: 04/04/2023 às 16:10:18
A9: 2023-04-04 | B9: 38.278.706/0001-92 | C9: SÃO LUIZ AGROINDUSTRIA S.A | E9: ISSQN | F9: 110.47 | G9: 0 | H9: 110.47 | I9: 1.45 | J9: 0 | K9: 111.92 | L9: 01/2022 | M9: SÃO JOÃO DA BOA VISTA | N9: Mariane Americo Vergilio | O9: 04/04/2023 às 16:12:25
A10: 2023-04-04 | B10: 38.278.706/0001-92 | C10: SÃO LUIZ AGROINDUSTRIA S.A | E10: ISSQN | F10: 388.46 | G10: 0 | H10: 388.46 | I10: 0 | J10: 0 | K10: 388.46 | L10: 01/2022 | M10: SÃO JOSE DO RIO PARDO | N10: Mariane Americo Vergilio | O10: 04/04/2023 às 16:14:51
A11: 2023-04-04 | B11: 38.278.706/0001-92 | C11: SÃO LUIZ AGROINDUSTRIA S.A | E11: ISSQN | F11: 691.02 | G11: 0 | H11: 691.02 | I11: 0 | J11: 0 | K11: 691.02 | L11: 01/2022 | M11: TAMBAU | N11: Mariane Americo Vergilio | O11: 04/04/2023 às 16:16:28
A12: 2023-04-04 | B12: 38.278.706/0001-92 | C12: SÃO LUIZ AGROINDUSTRIA S.A | E12: ISSQN | F12: 20.37 | G12: 0 | H12: 20.37 | I12: 0 | J12: 0 | K12: 20.37 | L12: 01/2022 | M12: TAPIRATIBA | N12: Mariane Americo Vergilio | O12: 04/04/2023 às 16:17:18
A13: 2023-04-14 | B13: 38.278.706/0001-92 | C13: SÃO LUIZ AGROINDUSTRIA S.A | E13: ISSQN | F13: 10.29 | G13: 0 | H13: 10.29 | I13: 0 | J13: 0 | K13: 10.29 | L13: 01/2023 | M13: AGUAI | N13: Mariane Americo Vergilio | O13: 14/04/2023 às 15:43:02
A14: 2023-04-14 | B14: 38.278.706/0001-92 | C14: SÃO LUIZ AGROINDUSTRIA S.A | E14: ISSQN | F14: 736.77 | G14: 0 | H14: 736.77 | I14: 0 | J14: 0 | K14: 736.77 | L14: 01/2023 | M14: CASA BRANCA | N14: Mariane Americo Vergilio | O14: 14/04/2023 às 15:44:31
A15: 2023-04-14 | B15: 38.278.706/0001-92 | C15: SÃO LUIZ AGROINDUSTRIA S.A | E15: ISSQN | F15: 12118.6 | G15: 0 | H15: 12118.6 | I15: 0 | J15: 0 | K15: 12118.6 | L15: 01/2023 | M15: PIRASSUNUNGA | N15: Mariane Americo Vergilio | O15: 14/04/2023 às 15:46:09
A16: 2023-04-14 | B16: 38.278.706/0001-92 | C16: SÃO LUIZ AGROINDUSTRIA S.A | E16: ISSQN | F16: 28.47 | G16: 0 | H16: 28.47 | I16: 0 | J16: 0 | K16: 28.47 | L16: 01/2023 | M16: PORTO FERREIRA | N16: Mariane Americo Vergilio | O16: 14/04/2023 às 15:52:12
A17: 2023-04-17 | B17: 38.278.706/0001-92 | C17: SÃO LUIZ AGROINDUSTRIA S.A | E17: ISSQN | F17: 412.5 | G17: 0 | H17: 412.5 | I17: 0 | J17: 0 | K17: 412.5 | L17: 01/2023 | M17: SANTA CRUZ DAS PALMEIRAS | N17: Mariane Americo Vergilio | O17: 17/04/2023 às 07:12:20
A18: 2023-04-17 | B18: 38.278.706/0001-92 | C18: SÃO LUIZ AGROINDUSTRIA S.A | E18: ISSQN | F18: 14.6 | G18: 0 | H18: 14.6 | I18: 0 | J18: 0 | K18: 14.6 | L18: 01/2023 | M18: SÃO JOSE DO RIO PARDO | N18: Mariane Americo Vergilio | O18: 17/04/2023 às 07:15:16
A19: 2023-04-17 | B19: 38.278.706/0001-92 | C19: SÃO LUIZ AGROINDUSTRIA S.A | E19: ISSQN | F19: 1969.06 | G19: 0 | H19: 1969.06 | I19: 0 | J19: 0 | K19: 1969.06 | L19: 01/2023 | M19: TAMBAU | N19: Mariane Americo Vergilio | O19: 17/04/2023 às 07:17:26
A20: 2023-04-17 | B20: 38.278.706/0001-92 | C20: SÃO LUIZ AGROINDUSTRIA S.A | E20: ISSQN | F20: 1.74 | G20: 0 | H20: 1.74 | I20: 0 | J20: 0 | K20: 1.74 | L20: 01/2023 | M20: VARGEM GRANDE DO SUL | N20: Mariane Americo Vergilio | O20: 17/04/2023 às 07:18:19
A21: 2023-08-21 | B21: 38.278.706/0008-69 | C21: SÃO LUIZ AGROINDUSTRIA S/A | E21: ISSQN | F21: 1092.94 | G21: 0 | H21: 1092.94 | I21: 0 | J21: 0 | K21: 1092.94 | L21: 01/2023 | M21: STA CRUZ DAS PALMEIRAS | N21: Mariane Americo Vergilio | O21: 21/08/2023 às 13:49:52
A22: 2023-04-04 | B22: 38.278.706/0001-92 | C22: SÃO LUIZ AGROINDUSTRIA S.A | E22: ISSQN | F22: 437.74 | G22: 0 | H22: 437.74 | I22: 0 | J22: 0 | K22: 437.74 | L22: 02/2022 | M22: CASA BRANCA | N22: Mariane Americo Vergilio | O22: 04/04/2023 às 16:30:16
A23: 2023-04-04 | B23: 38.278.706/0001-92 | C23: SÃO LUIZ AGROINDUSTRIA S.A | E23: ISSQN | F23: 8.53 | G23: 0 | H23: 8.53 | I23: 0 | J23: 0 | K23: 8.53 | L23: 02/2022 | M23: ITOBI | N23: Mariane Americo Vergilio | O23: 04/04/2023 às 16:31:40
A24: 2023-04-04 | B24: 38.278.706/0001-92 | C24: SÃO LUIZ AGROINDUSTRIA S.A | E24: ISSQN | F24: 9672.5 | G24: 0 | H24: 9672.5 | I24: 0 | J24: 0 | K24: 9672.5 | L24: 02/2022 | M24: PIRASSUNUNGA | N24: Mariane Americo Vergilio | O24: 04/04/2023 às 16:32:50
A25: 2023-04-04 | B25: 38.278.706/0001-92 | C25: SÃO LUIZ AGROINDUSTRIA S.A | E25: ISSQN | F25: 945.42 | G25: 0 | H25: 945.42 | I25: 0 | J25: 0 | K25: 945.42 | L25: 02/2022 | M25: SANTA CRUZ DAS PALMEIRAS | N25: Mariane Americo Vergilio | O25: 04/04/2023 às 16:35:28
A26: 2023-04-04 | B26: 38.278.706/0001-92 | C26: SÃO LUIZ AGROINDUSTRIA S.A | E26: ISSQN | F26: 87.89 | G26: 0 | H26: 87.89 | I26: 0 | J26: 0 | K26: 87.89 | L26: 02/2022 | M26: SANTA ROSA DE VITERBO | N26: Mariane Americo Vergilio | O26: 04/04/2023 às 16:37:22
A27: 2023-04-04 | B27: 38.278.706/0001-92 | C27: SÃO LUIZ AGROINDUSTRIA S.A | E27: ISSQN | F27: 78.29 | G27: 0 | H27: 78.29 | I27: 0 | J27: 0 | K27: 78.29 | L27: 02/2022 | M27: SÃO JOSE DO RIO PARDO | N27: Mariane Americo Vergilio | O27: 04/04/2023 às 16:38:36
A28: 2023-04-04 | B28: 38.278.706/0001-92 | C28: SÃO LUIZ AGROINDUSTRIA S.A | E28: ISSQN | F28: 273.16 | G28: 0 | H28: 273.16 | I28: 0 | J28: 0 | K28: 273.16 | L28: 02/2022 | M28: TAMBAU | N28: Mariane Americo Vergilio | O28: 04/04/2023 às 16:39:32
A29: 2023-04-17 | B29: 38.278.706/0001-92 | C29: SÃO LUIZ AGROINDUSTRIA S.A | E29: ISSQN | F29: 1973.28 | G29: 0 | H29: 1973.28 | I29: 0 | J29: 0 | K29: 1973.28 | L29: 02/2023 | M29: CASA BRANCA | N29: Mariane Americo Vergilio | O29: 17/04/2023 às 07:25:11
A30: 2023-04-17 | B30: 38.278.706/0001-92 | C30: SÃO LUIZ AGROINDUSTRIA S.A | E30: ISSQN | F30: 14703.77 | G30: 0 | H30: 14703.77 | I30: 44.77 | J30: 0 | K30: 14748.54 | L30: 02/2023 | M30: PIRASSUNUNGA | N30: Mariane Americo Vergilio | O30: 17/04/2023 às 07:26:53
A31: 2023-04-17 | B31: 38.278.706/0001-92 | C31: SÃO LUIZ AGROINDUSTRIA S.A | E31: ISSQN | F31: 1060.48 | G31: 0 | H31: 1060.48 | I31: 0 | J31: 0 | K31: 1060.48 | L31: 02/2023 | M31: SANTA CRUZ DAS PALMEIRAS | N31: Mariane Americo Vergilio | O31: 17/04/2023 às 07:28:47
A32: 2023-04-17 | B32: 38.278.706/0001-92 | C32: SÃO LUIZ AGROINDUSTRIA S.A | E32: ISSQN | F32: 67.47 | G32: 0 | H32: 67.47 | I32: 0 | J32: 0 | K32: 67.47 | L32: 02/2023 | M32: SANTA RITA DO PASSA QUATRO | N32: Mariane Americo Vergilio | O32: 17/04/2023 às 07:29:54
A33: 2023-04-17 | B33: 38.278.706/0001-92 | C33: SÃO LUIZ AGROINDUSTRIA S.A | E33: ISSQN | F33: 577.83 | G33: 0 | H33: 577.83 | I33: 0 | J33: 0 | K33: 577.83 | L33: 02/2023 | M33: SANTA ROSA DE VITERBO | N33: Mariane Americo Vergilio | O33: 17/04/2023 às 07:32:09
A34: 2023-04-17 | B34: 38.278.706/0001-92 | C34: SÃO LUIZ AGROINDUSTRIA S.A | E34: ISSQN | F34: 728.39 | G34: 0 | H34: 728.39 | I34: 0 | J34: 0 | K34: 728.39 | L34: 02/2023 | M34: SÃO JOSE DO RIO PARDO | N34: Mariane Americo Vergilio | O34: 17/04/2023 às 07:33:02
A35: 2023-04-17 | B35: 38.278.706/0001-92 | C35: SÃO LUIZ AGROINDUSTRIA S.A | E35: ISSQN | F35: 402.13 | G35: 0 | H35: 402.13 | I35: 0 | J35: 0 | K35: 402.13 | L35: 02/2023 | M35: TAMBAU | N35: Mariane Americo Vergilio | O35: 17/04/2023 às 07:34:09
A36: 2023-04-17 | B36: 38.278.706/0001-92 | C36: SÃO LUIZ AGROINDUSTRIA S.A | E36: ISSQN | F36: 14.97 | G36: 0 | H36: 14.97 | I36: 0 | J36: 0 | K36: 14.97 | L36: 02/2023 | M36: TAPIRATIBA | N36: Mariane Americo Vergilio | O36: 17/04/2023 às 07:34:55
A37: 2023-08-21 | B37: 38.278.706/0008-69 | C37: SÃO LUIZ AGROINDUSTRIA S/A | E37: ISSQN | F37: 2766.43 | G37: 0 | H37: 2766.43 | I37: 15.56 | J37: 2.92 | K37: 2784.91 | L37: 02/2023 | M37: STA CRUZ DAS PALMEIRAS | N37: Mariane Americo Vergilio | O37: 21/08/2023 às 13:50:47
A38: 2023-04-05 | B38: 38.278.706/0001-92 | C38: SÃO LUIZ AGROINDUSTRIA S.A | E38: ISSQN | F38: 55.56 | G38: 0 | H38: 55.56 | I38: 3.42 | J38: 0 | K38: 58.98 | L38: 03/2022 | M38: AGUAI | N38: Mariane Americo Vergilio | O38: 05/04/2023 às 08:38:27
A39: 2023-04-05 | B39: 38.278.706/0001-92 | C39: SÃO LUIZ AGROINDUSTRIA S.A | E39: ISSQN | F39: 103.39 | G39: 0 | H39: 103.39 | I39: 0 | J39: 0 | K39: 103.39 | L39: 03/2022 | M39: ANALANDIA | N39: Mariane Americo Vergilio | O39: 05/04/2023 às 08:40:14
A40: 2023-04-05 | B40: 38.278.706/0001-92 | C40: SÃO LUIZ AGROINDUSTRIA S.A | E40: ISSQN | F40: 4847.58 | G40: 0 | H40: 4847.58 | I40: 0 | J40: 0 | K40: 4847.58 | L40: 03/2022 | M40: CASA BRANCA | N40: Mariane Americo Vergilio | O40: 05/04/2023 às 08:41:29
A41: 2023-04-05 | B41: 38.278.706/0001-92 | C41: SÃO LUIZ AGROINDUSTRIA S.A | E41: ISSQN | F41: 82.82 | G41: 0 | H41: 82.82 | I41: 0 | J41: 0 | K41: 82.82 | L41: 03/2022 | M41: MOCOCA | N41: Mariane Americo Vergilio | O41: 05/04/2023 às 08:44:04
A42: 2023-04-05 | B42: 38.278.706/0001-92 | C42: SÃO LUIZ AGROINDUSTRIA S.A | E42: ISSQN | F42: 38.14 | G42: 0 | H42: 38.14 | I42: 2.71 | J42: 0 | K42: 40.85 | L42: 03/2022 | M42: MOGI GUAÇU | N42: Mariane Americo Vergilio | O42: 05/04/2023 às 08:44:59
A43: 2023-04-05 | B43: 38.278.706/0001-92 | C43: SÃO LUIZ AGROINDUSTRIA S.A | E43: ISSQN | F43: 17372.4 | G43: 0 | H43: 17372.4 | I43: 114.27 | J43: 0 | K43: 17486.67 | L43: 03/2022 | M43: PIRASSUNUNGA | N43: Mariane Americo Vergilio | O43: 05/04/2023 às 08:47:05
A44: 2023-04-05 | B44: 38.278.706/0001-92 | C44: SÃO LUIZ AGROINDUSTRIA S.A | E44: ISSQN | F44: 200.05 | G44: 0 | H44: 200.05 | I44: 0 | J44: 0 | K44: 200.05 | L44: 03/2022 | M44: PORTO FERREIRA | N44: Mariane Americo Vergilio | O44: 05/04/2023 às 08:50:15
A45: 2023-04-05 | B45: 38.278.706/0001-92 | C45: SÃO LUIZ AGROINDUSTRIA S.A | E45: ISSQN | F45: 3768.88 | G45: 0 | H45: 3768.88 | I45: 0 | J45: 0 | K45: 3768.88 | L45: 03/2022 | M45: SANTA CRUZ DAS PALMEIRAS | N45: Mariane Americo Vergilio | O45: 05/04/2023 às 09:06:48
A46: 2023-04-05 | B46: 38.278.706/0001-92 | C46: SÃO LUIZ AGROINDUSTRIA S.A | E46: ISSQN | F46: 280.39 | G46: 0 | H46: 280.39 | I46: 0 | J46: 0 | K46: 280.39 | L46: 03/2022 | M46: SANTA RITA DO PASSA QUATRO | N46: Mariane Americo Vergilio | O46: 05/04/2023 às 09:11:54
A47: 2023-04-05 | B47: 38.278.706/0001-92 | C47: SÃO LUIZ AGROINDUSTRIA S.A | E47: ISSQN | F47: 691.76 | G47: 0 | H47: 691.76 | I47: 0 | J47: 0 | K47: 691.76 | L47: 03/2022 | M47: SANTA ROSA DE VITERBO | N47: Mariane Americo Vergilio | O47: 05/04/2023 às 09:13:13
A48: 2023-04-05 | B48: 38.278.706/0001-92 | C48: SÃO LUIZ AGROINDUSTRIA S.A | E48: ISSQN | F48: 946.71 | G48: 0 | H48: 946.71 | I48: 1.45 | J48: 0 | K48: 948.16 | L48: 03/2022 | M48: SÃO JOÃO DA BOA VISTA | N48: Mariane Americo Vergilio | O48: 05/04/2023 às 09:14:37
A49: 2023-04-05 | B49: 38.278.706/0001-92 | C49: SÃO LUIZ AGROINDUSTRIA S.A | E49: ISSQN | F49: 531.71 | G49: 0 | H49: 531.71 | I49: 0 | J49: 0 | K49: 531.71 | L49: 03/2022 | M49: SÃO JOSE DO RIO PARDO | N49: Mariane Americo Vergilio | O49: 05/04/2023 às 09:18:07
A50: 2023-04-05 | B50: 38.278.706/0001-92 | C50: SÃO LUIZ AGROINDUSTRIA S.A | E50: ISSQN | F50: 3951.05 | G50: 0 | H50: 3951.05 | I50: 0 | J50: 0 | K50: 3951.05 | L50: 03/2022 | M50: TAMBAU | N50: Mariane Americo Vergilio | O50: 05/04/2023 às 09:20:17
A51: 2023-04-05 | B51: 38.278.706/0001-92 | C51: SÃO LUIZ AGROINDUSTRIA S.A | E51: ISSQN | F51: 7.61 | G51: 0 | H51: 7.61 | I51: 0 | J51: 0 | K51: 7.61 | L51: 03/2022 | M51: VARGEM GRANDE DO SUL | N51: Mariane Americo Vergilio | O51: 05/04/2023 às 09:21:36
A52: 2023-04-26 | B52: 38.278.706/0001-92 | C52: SÃO LUIZ AGROINDUSTRIA S.A | E52: ISSQN | F52: 43.48 | G52: 0 | H52: 43.48 | I52: 0 | J52: 0 | K52: 43.48 | L52: 03/2023 | M52: AGUAI | N52: Mariane Americo Vergilio | O52: 26/04/2023 às 13:22:20
A53: 2023-04-26 | B53: 38.278.706/0001-92 | C53: SÃO LUIZ AGROINDUSTRIA S.A | E53: ISSQN | F53: 79.04 | G53: 0 | H53: 79.04 | I53: 0 | J53: 0 | K53: 79.04 | L53: 03/2023 | M53: ANALANDIA | N53: Mariane Americo Vergilio | O53: 26/04/2023 às 13:22:42
A54: 2023-04-26 | B54: 38.278.706/0001-92 | C54: SÃO LUIZ AGROINDUSTRIA S.A | E54: ISSQN | F54: 2125.19 | G54: 0 | H54: 2125.19 | I54: 0 | J54: 0 | K54: 2125.19 | L54: 03/2023 | M54: CASA BRANCA | N54: Mariane Americo Vergilio | O54: 26/04/2023 às 13:23:14
A55: 2023-04-26 | B55: 38.278.706/0001-92 | C55: SÃO LUIZ AGROINDUSTRIA S.A | E55: ISSQN | F55: 58.11 | G55: 0 | H55: 58.11 | I55: 0 | J55: 0 | K55: 58.11 | L55: 03/2023 | M55: ITOBI | N55: Mariane Americo Vergilio | O55: 26/04/2023 às 13:23:36
A56: 2023-04-26 | B56: 38.278.706/0001-92 | C56: SÃO LUIZ AGROINDUSTRIA S.A | E56: ISSQN | F56: 252.52 | G56: 0 | H56: 252.52 | I56: 0 | J56: 0 | K56: 252.52 | L56: 03/2023 | M56: MOCOCA | N56: Mariane Americo Vergilio | O56: 26/04/2023 às 13:26:17
A57: 2023-04-26 | B57: 38.278.706/0001-92 | C57: SÃO LUIZ AGROINDUSTRIA S.A | E57: ISSQN | F57: 15037.11 | G57: 0 | H57: 15037.11 | I57: 0 | J57: 0 | K57: 15037.11 | L57: 03/2023 | M57: PIRASSUNUNGA | N57: Mariane Americo Vergilio | O57: 26/04/2023 às 13:27:06
A58: 2023-04-26 | B58: 38.278.706/0001-92 | C58: SÃO LUIZ AGROINDUSTRIA S.A | E58: ISSQN | F58: 190.05 | G58: 0 | H58: 190.05 | I58: 0 | J58: 0 | K58: 190.05 | L58: 03/2023 | M58: PORTO FERREIRA | N58: Mariane Americo Vergilio | O58: 26/04/2023 às 13:27:29
A59: 2023-04-26 | B59: 38.278.706/0001-92 | C59: SÃO LUIZ AGROINDUSTRIA S.A | E59: ISSQN | F59: 1818.06 | G59: 0 | H59: 1818.06 | I59: 0 | J59: 0 | K59: 1818.06 | L59: 03/2023 | M59: SANTA CRUZ DAS PALMEIRAS | N59: Mariane Americo Vergilio | O59: 26/04/2023 às 13:27:55
A60: 2023-04-26 | B60: 38.278.706/0001-92 | C60: SÃO LUIZ AGROINDUSTRIA S.A | E60: ISSQN | F60: 23.41 | G60: 0 | H60: 23.41 | I60: 0 | J60: 0 | K60: 23.41 | L60: 03/2023 | M60: SANTA RITA DO PASSA QUATRO | N60: Mariane Americo Vergilio | O60: 26/04/2023 às 13:28:26
A61: 2023-04-26 | B61: 38.278.706/0001-92 | C61: SÃO LUIZ AGROINDUSTRIA S.A | E61: ISSQN | F61: 105.37 | G61: 0 | H61: 105.37 | I61: 0 | J61: 0 | K61: 105.37 | L61: 03/2023 | M61: SANTA ROSA DE VITERBO | N61: Mariane Americo Vergilio | O61: 26/04/2023 às 13:28:51
A62: 2023-04-26 | B62: 38.278.706/0001-92 | C62: SÃO LUIZ AGROINDUSTRIA S.A | E62: ISSQN | F62: 803.82 | G62: 0 | H62: 803.82 | I62: 0 | J62: 0 | K62: 803.82 | L62: 03/2023 | M62: SÃO JOSE DO RIO PARDO | N62: Mariane Americo Vergilio | O62: 26/04/2023 às 13:29:31
A63: 2023-04-26 | B63: 38.278.706/0001-92 | C63: SÃO LUIZ AGROINDUSTRIA S.A | E63: ISSQN | F63: 2114.9 | G63: 0 | H63: 2114.9 | I63: 0 | J63: 0 | K63: 2114.9 | L63: 03/2023 | M63: TAMBAU | N63: Mariane Americo Vergilio | O63: 26/04/2023 às 13:30:22
A64: 2023-08-21 | B64: 38.278.706/0008-69 | C64: SÃO LUIZ AGROINDUSTRIA S/A | E64: ISSQN | F64: 3529.38 | G64: 0 | H64: 3529.38 | I64: 0 | J64: 0 | K64: 3529.38 | L64: 03/2023 | M64: STA CRUZ DAS PALMEIRAS | N64: Mariane Americo Vergilio | O64: 21/08/2023 às 13:51:40
A65: 2023-04-05 | B65: 38.278.706/0001-92 | C65: SÃO LUIZ AGROINDUSTRIA S.A | E65: ISSQN | F65: 86.29 | G65: 0 | H65: 86.29 | I65: 0 | J65: 0 | K65: 86.29 | L65: 04/2022 | M65: AGUAI | N65: Mariane Americo Vergilio | O65: 05/04/2023 às 09:37:21
A66: 2023-04-05 | B66: 38.278.706/0001-92 | C66: SÃO LUIZ AGROINDUSTRIA S.A | E66: ISSQN | F66: 713.24 | G66: 0 | H66: 713.24 | I66: 0 | J66: 0 | K66: 713.24 | L66: 04/2022 | M66: CASA BRANCA | N66: Mariane Americo Vergilio | O66: 05/04/2023 às 09:39:12
A67: 2023-04-05 | B67: 38.278.706/0001-92 | C67: SÃO LUIZ AGROINDUSTRIA S.A | E67: ISSQN | F67: 128.06 | G67: 0 | H67: 128.06 | I67: 0 | J67: 0 | K67: 128.06 | L67: 04/2022 | M67: ESPIRITO SANTO DO PINHAL | N67: Mariane Americo Vergilio | O67: 05/04/2023 às 09:40:53
A68: 2023-04-05 | B68: 38.278.706/0001-92 | C68: SÃO LUIZ AGROINDUSTRIA S.A | E68: ISSQN | F68: 13604.34 | G68: 0 | H68: 13604.34 | I68: 14.56 | J68: 0 | K68: 13618.9 | L68: 04/2022 | M68: PIRASSUNUNGA | N68: Mariane Americo Vergilio | O68: 05/04/2023 às 09:42:49
A69: 2023-04-05 | B69: 38.278.706/0001-92 | C69: SÃO LUIZ AGROINDUSTRIA S.A | E69: ISSQN | F69: 38.3 | G69: 0 | H69: 38.3 | I69: 0 | J69: 0 | K69: 38.3 | L69: 04/2022 | M69: PORTO FERREIRA | N69: Mariane Americo Vergilio | O69: 05/04/2023 às 09:47:57
A70: 2023-04-05 | B70: 38.278.706/0001-92 | C70: SÃO LUIZ AGROINDUSTRIA S.A | E70: ISSQN | F70: 1536.05 | G70: 0 | H70: 1536.05 | I70: 0 | J70: 0 | K70: 1536.05 | L70: 04/2022 | M70: SANTA CRUZ DAS PALMEIRAS | N70: Mariane Americo Vergilio | O70: 05/04/2023 às 09:55:56
A71: 2023-04-05 | B71: 38.278.706/0001-92 | C71: SÃO LUIZ AGROINDUSTRIA S.A | E71: ISSQN | F71: 1053.18 | G71: 0 | H71: 1053.18 | I71: 0 | J71: 0 | K71: 1053.18 | L71: 04/2022 | M71: SANTA ROSA DE VITERBO | N71: Mariane Americo Vergilio | O71: 05/04/2023 às 09:57:31
A72: 2023-04-05 | B72: 38.278.706/0001-92 | C72: SÃO LUIZ AGROINDUSTRIA S.A | E72: ISSQN | F72: 716.01 | G72: 0 | H72: 716.01 | I72: 1.45 | J72: 0 | K72: 717.46 | L72: 04/2022 | M72: SÃO JOÃO DA BOA VISTA | N72: Mariane Americo Vergilio | O72: 05/04/2023 às 10:00:31
A73: 2023-04-05 | B73: 38.278.706/0001-92 | C73: SÃO LUIZ AGROINDUSTRIA S.A | E73: ISSQN | F73: 39.7 | G73: 0 | H73: 39.7 | I73: 0 | J73: 0 | K73: 39.7 | L73: 04/2022 | M73: SÃO JOSE DO RIO PARDO | N73: Mariane Americo Vergilio | O73: 05/04/2023 às 10:02:28
A74: 2023-04-05 | B74: 38.278.706/0001-92 | C74: SÃO LUIZ AGROINDUSTRIA S.A | E74: ISSQN | F74: 2531 | G74: 0 | H74: 2531 | I74: 102.54 | J74: 0 | K74: 2633.54 | L74: 04/2022 | M74: TAMBAU | N74: Mariane Americo Vergilio | O74: 05/04/2023 às 10:04:07
A75: 2023-08-21 | B75: 38.278.706/0001-92 | C75: SÃO LUIZ AGROINDUSTRIA S.A | E75: ISSQN | F75: 6233.39 | G75: 0 | H75: 6233.39 | I75: 0 | J75: 0 | K75: 6233.39 | L75: 04/2023 | M75: CASA BRANCA | N75: Mariane Americo Vergilio | O75: 21/08/2023 às 13:42:17
A76: 2023-08-21 | B76: 38.278.706/0001-92 | C76: SÃO LUIZ AGROINDUSTRIA S.A | E76: ISSQN | F76: 88.02 | G76: 0 | H76: 88.02 | I76: 0 | J76: 0 | K76: 88.02 | L76: 04/2023 | M76: MOCOCA | N76: Mariane Americo Vergilio | O76: 21/08/2023 às 13:42:43
A77: 2023-08-21 | B77: 38.278.706/0001-92 | C77: SÃO LUIZ AGROINDUSTRIA S.A | E77: ISSQN | F77: 21678.16 | G77: 0 | H77: 21678.16 | I77: 0 | J77: 0 | K77: 21678.16 | L77: 04/2023 | M77: PIRASSUNUNGA | N77: Mariane Americo Vergilio | O77: 21/08/2023 às 13:43:05
A78: 2023-08-21 | B78: 38.278.706/0001-92 | C78: SÃO LUIZ AGROINDUSTRIA S.A | E78: ISSQN | F78: 428.94 | G78: 0 | H78: 428.94 | I78: 0 | J78: 0 | K78: 428.94 | L78: 04/2023 | M78: PORTO FERREIRA | N78: Mariane Americo Vergilio | O78: 21/08/2023 às 13:43:30
A79: 2023-08-21 | B79: 38.278.706/0001-92 | C79: SÃO LUIZ AGROINDUSTRIA S.A | E79: ISSQN | F79: 1496.78 | G79: 0 | H79: 1496.78 | I79: 0 | J79: 0 | K79: 1496.78 | L79: 04/2023 | M79: STA CRUZ DAS PALMEIRAS | N79: Mariane Americo Vergilio | O79: 21/08/2023 às 13:44:43
A80: 2023-08-21 | B80: 38.278.706/0001-92 | C80: SÃO LUIZ AGROINDUSTRIA S.A | E80: ISSQN | F80: 1508.6 | G80: 0 | H80: 1508.6 | I80: 0 | J80: 0 | K80: 1508.6 | L80: 04/2023 | M80: SÃO JOSE DO RIO PARDO | N80: Mariane Americo Vergilio | O80: 21/08/2023 às 13:45:17
A81: 2023-08-21 | B81: 38.278.706/0001-92 | C81: SÃO LUIZ AGROINDUSTRIA S.A | E81: ISSQN | F81: 358.89 | G81: 0 | H81: 358.89 | I81: 0 | J81: 0 | K81: 358.89 | L81: 04/2023 | M81: TAMBAU | N81: Mariane Americo Vergilio | O81: 21/08/2023 às 13:45:44
A82: 2023-08-21 | B82: 38.278.706/0001-92 | C82: SÃO LUIZ AGROINDUSTRIA S.A | E82: ISSQN | F82: 195.66 | G82: 0 | H82: 195.66 | I82: 0 | J82: 0 | K82: 195.66 | L82: 04/2023 | M82: TAPIRATIBA | N82: Mariane Americo Vergilio | O82: 21/08/2023 às 13:46:13
A83: 2023-08-21 | B83: 38.278.706/0008-69 | C83: SÃO LUIZ AGROINDUSTRIA S/A | E83: ISSQN | F83: 1734.03 | G83: 0 | H83: 1734.03 | I83: 0 | J83: 0 | K83: 1734.03 | L83: 04/2023 | M83: STA CRUZ DAS PALMEIRAS | N83: Mariane Americo Vergilio | O83: 21/08/2023 às 13:48:47
A84: 2023-04-05 | B84: 38.278.706/0001-92 | C84: SÃO LUIZ AGROINDUSTRIA S.A | E84: ISSQN | F84: 483.49 | G84: 0 | H84: 483.49 | I84: 0 | J84: 0 | K84: 483.49 | L84: 05/2022 | M84: CASA BRANCA | N84: Mariane Americo Vergilio | O84: 05/04/2023 às 10:19:11
A85: 2023-04-05 | B85: 38.278.706/0001-92 | C85: SÃO LUIZ AGROINDUSTRIA S.A | E85: ISSQN | F85: 1980.77 | G85: 0 | H85: 1980.77 | I85: 0 | J85: 0 | K85: 1980.77 | L85: 05/2022 | M85: ESPIRITO SANTO DO PINHAL | N85: Mariane Americo Vergilio | O85: 05/04/2023 às 10:21:21
A86: 2023-04-05 | B86: 38.278.706/0001-92 | C86: SÃO LUIZ AGROINDUSTRIA S.A | E86: ISSQN | F86: 715.63 | G86: 0 | H86: 715.63 | I86: 0 | J86: 0 | K86: 715.63 | L86: 05/2022 | M86: MOCOCA | N86: Mariane Americo Vergilio | O86: 05/04/2023 às 10:22:49
A87: 2023-04-05 | B87: 38.278.706/0001-92 | C87: SÃO LUIZ AGROINDUSTRIA S.A | E87: ISSQN | F87: 10526.9 | G87: 0 | H87: 10526.9 | I87: 307.47 | J87: 0 | K87: 10834.37 | L87: 05/2022 | M87: PIRASSUNUNGA | N87: Mariane Americo Vergilio | O87: 05/04/2023 às 10:26:47
A88: 2023-04-05 | B88: 38.278.706/0001-92 | C88: SÃO LUIZ AGROINDUSTRIA S.A | E88: ISSQN | F88: 13.82 | G88: 0 | H88: 13.82 | I88: 0 | J88: 0 | K88: 13.82 | L88: 05/2022 | M88: PORTO FERREIRA | N88: Mariane Americo Vergilio | O88: 05/04/2023 às 10:31:03
A89: 2023-04-05 | B89: 38.278.706/0001-92 | C89: SÃO LUIZ AGROINDUSTRIA S.A | E89: ISSQN | F89: 2548.71 | G89: 0 | H89: 2548.71 | I89: 0 | J89: 0 | K89: 2548.71 | L89: 05/2022 | M89: SANTA CRUZ DAS PALMEIRAS | N89: Mariane Americo Vergilio | O89: 05/04/2023 às 10:33:07
A90: 2023-04-05 | B90: 38.278.706/0001-92 | C90: SÃO LUIZ AGROINDUSTRIA S.A | E90: ISSQN | F90: 212.63 | G90: 0 | H90: 212.63 | I90: 1.45 | J90: 0 | K90: 214.08 | L90: 05/2022 | M90: SÃO JOÃO DA BOA VISTA | N90: Mariane Americo Vergilio | O90: 05/04/2023 às 10:34:19
A91: 2023-04-05 | B91: 38.278.706/0001-92 | C91: SÃO LUIZ AGROINDUSTRIA S.A | E91: ISSQN | F91: 601.98 | G91: 0 | H91: 601.98 | I91: 15.05 | J91: 0 | K91: 617.03 | L91: 05/2022 | M91: SÃO JOSÉ DO RIO PARDO | N91: Mariane Americo Vergilio | O91: 05/04/2023 às 10:36:39
A92: 2023-04-05 | B92: 38.278.706/0001-92 | C92: SÃO LUIZ AGROINDUSTRIA S.A | E92: ISSQN | F92: 1169.58 | G92: 0 | H92: 1169.58 | I92: 0 | J92: 0 | K92: 1169.58 | L92: 05/2022 | M92: TAMBAU | N92: Mariane Americo Vergilio | O92: 05/04/2023 às 10:39:09
A93: 2023-04-05 | B93: 38.278.706/0001-92 | C93: SÃO LUIZ AGROINDUSTRIA S.A | E93: ISSQN | F93: 61.49 | G93: 0 | H93: 61.49 | I93: 0 | J93: 0 | K93: 61.49 | L93: 05/2022 | M93: VARGEM GRANDE DO SUL | N93: Mariane Americo Vergilio | O93: 05/04/2023 às 10:40:37
A94: 2023-08-21 | B94: 38.278.706/0001-92 | C94: SÃO LUIZ AGROINDUSTRIA S.A | E94: ISSQN | F94: 707.62 | G94: 0 | H94: 707.62 | I94: 0 | J94: 0 | K94: 707.62 | L94: 05/2023 | M94: ARARAS | N94: Mariane Americo Vergilio | O94: 21/08/2023 às 13:55:43
A95: 2023-08-21 | B95: 38.278.706/0001-92 | C95: SÃO LUIZ AGROINDUSTRIA S.A | E95: ISSQN | F95: 1787.73 | G95: 0 | H95: 1787.73 | I95: 0 | J95: 0 | K95: 1787.73 | L95: 05/2023 | M95: CASA BRANCA | N95: Mariane Americo Vergilio | O95: 21/08/2023 às 13:56:13
A96: 2023-08-21 | B96: 38.278.706/0001-92 | C96: SÃO LUIZ AGROINDUSTRIA S.A | E96: ISSQN | F96: 229.48 | G96: 0 | H96: 229.48 | I96: 0 | J96: 0 | K96: 229.48 | L96: 05/2023 | M96: MOCOCA | N96: Mariane Americo Vergilio | O96: 21/08/2023 às 13:57:12
A97: 2023-08-21 | B97: 38.278.706/0001-92 | C97: SÃO LUIZ AGROINDUSTRIA S.A | E97: ISSQN | F97: 30907.3 | G97: 0 | H97: 30907.3 | I97: 0 | J97: 0 | K97: 30907.3 | L97: 05/2023 | M97: PIRASSUNUNGA | N97: Mariane Americo Vergilio | O97: 21/08/2023 às 13:58:33
A98: 2023-08-21 | B98: 38.278.706/0001-92 | C98: SÃO LUIZ AGROINDUSTRIA S.A | E98: ISSQN | F98: 6142.78 | G98: 0 | H98: 6142.78 | I98: 0 | J98: 0 | K98: 6142.78 | L98: 05/2023 | M98: STA CRUZ DAS PALMEIRAS | N98: Mariane Americo Vergilio | O98: 21/08/2023 às 14:01:30
A99: 2023-08-21 | B99: 38.278.706/0001-92 | C99: SÃO LUIZ AGROINDUSTRIA S.A | E99: ISSQN | F99: 1965.36 | G99: 0 | H99: 1965.36 | I99: 0 | J99: 0 | K99: 1965.36 | L99: 05/2023 | M99: STA RITA DO PASSA QUATRO | N99: Mariane Americo Vergilio | O99: 21/08/2023 às 14:02:04
A100: 2023-08-21 | B100: 38.278.706/0001-92 | C100: SÃO LUIZ AGROINDUSTRIA S.A | E100: ISSQN | F100: 4715.01 | G100: 0 | H100: 4715.01 | I100: 0 | J100: 0 | K100: 4715.01 | L100: 05/2023 | M100: SÃO JOSE DO RIO PARDO | N100: Mariane Americo Vergilio | O100: 21/08/2023 às 14:03:38
A101: 2023-08-21 | B101: 38.278.706/0001-92 | C101: SÃO LUIZ AGROINDUSTRIA S.A | E101: ISSQN | F101: 2665.69 | G101: 0 | H101: 2665.69 | I101: 0 | J101: 0 | K101: 2665.69 | L101: 05/2023 | M101: TAMBAU | N101: Mariane Americo Vergilio | O101: 21/08/2023 às 14:04:55
A102: 2023-08-21 | B102: 38.278.706/0001-92 | C102: SÃO LUIZ AGROINDUSTRIA S.A | E102: ISSQN | F102: 179.37 | G102: 0 | H102: 179.37 | I102: 0 | J102: 0 | K102: 179.37 | L102: 05/2023 | M102: TAPIRATIBA | N102: Mariane Americo Vergilio | O102: 21/08/2023 às 14:05:44
A103: 2023-08-21 | B103: 38.278.706/0008-69 | C103: SÃO LUIZ AGROINDUSTRIA S/A | E103: ISSQN | F103: 1800.88 | G103: 0 | H103: 1800.88 | I103: 0 | J103: 0 | K103: 1800.88 | L103: 05/2023 | M103: STA CRUZ DAS PALMEIRAS | N103: Mariane Americo Vergilio | O103: 21/08/2023 às 14:06:17
A104: 2023-04-05 | B104: 38.278.706/0001-92 | C104: SÃO LUIZ AGROINDUSTRIA S.A | E104: ISSQN | F104: 6.28 | G104: 0 | H104: 6.28 | I104: 0 | J104: 0 | K104: 6.28 | L104: 06/2022 | M104: AGUAI | N104: Mariane Americo Vergilio | O104: 05/04/2023 às 11:08:12
A105: 2023-04-05 | B105: 38.278.706/0001-92 | C105: SÃO LUIZ AGROINDUSTRIA S.A | E105: ISSQN | F105: 4.73 | G105: 0 | H105: 4.73 | I105: 0 | J105: 0 | K105: 4.73 | L105: 06/2022 | M105: ANALANDIA | N105: Mariane Americo Vergilio | O105: 05/04/2023 às 11:09:58
A106: 2023-04-05 | B106: 38.278.706/0001-92 | C106: SÃO LUIZ AGROINDUSTRIA S.A | E106: ISSQN | F106: 3566.67 | G106: 0 | H106: 3566.67 | I106: 0 | J106: 0 | K106: 3566.67 | L106: 06/2022 | M106: ARARAS | N106: Mariane Americo Vergilio | O106: 05/04/2023 às 11:11:16
A107: 2023-04-05 | B107: 38.278.706/0001-92 | C107: SÃO LUIZ AGROINDUSTRIA S.A | E107: ISSQN | F107: 1617.4 | G107: 0 | H107: 1617.4 | I107: 0 | J107: 0 | K107: 1617.4 | L107: 06/2022 | M107: CASA BRANCA | N107: Mariane Americo Vergilio | O107: 05/04/2023 às 11:14:17
A108: 2023-04-05 | B108: 38.278.706/0001-92 | C108: SÃO LUIZ AGROINDUSTRIA S.A | E108: ISSQN | F108: 6.02 | G108: 0 | H108: 6.02 | I108: 0 | J108: 0 | K108: 6.02 | L108: 06/2022 | M108: ITOBI | N108: Mariane Americo Vergilio | O108: 05/04/2023 às 11:15:29
A109: 2023-04-05 | B109: 38.278.706/0001-92 | C109: SÃO LUIZ AGROINDUSTRIA S.A | E109: ISSQN | F109: 339.05 | G109: 0 | H109: 339.05 | I109: 0 | J109: 0 | K109: 339.05 | L109: 06/2022 | M109: LEME | N109: Mariane Americo Vergilio | O109: 05/04/2023 às 11:16:57
A110: 2023-04-05 | B110: 38.278.706/0001-92 | C110: SÃO LUIZ AGROINDUSTRIA S.A | E110: ISSQN | F110: 30.26 | G110: 0 | H110: 30.26 | I110: 0 | J110: 0 | K110: 30.26 | L110: 06/2022 | M110: MOCOCA | N110: Mariane Americo Vergilio | O110: 05/04/2023 às 11:30:25
A111: 2023-04-05 | B111: 38.278.706/0001-92 | C111: SÃO LUIZ AGROINDUSTRIA S.A | E111: ISSQN | F111: 4.82 | G111: 0 | H111: 4.82 | I111: 0 | J111: 0 | K111: 4.82 | L111: 06/2022 | M111: MOGI GUAÇU | N111: Mariane Americo Vergilio | O111: 05/04/2023 às 11:31:35
A112: 2023-04-05 | B112: 38.278.706/0001-92 | C112: SÃO LUIZ AGROINDUSTRIA S.A | E112: ISSQN | F112: 41572.19 | G112: 0 | H112: 41572.19 | I112: 264.31 | J112: 0 | K112: 41836.5 | L112: 06/2022 | M112: PIRASSUNUNGA | N112: Mariane Americo Vergilio | O112: 05/04/2023 às 11:33:59
A113: 2023-04-05 | B113: 38.278.706/0001-92 | C113: SÃO LUIZ AGROINDUSTRIA S.A | E113: ISSQN | F113: 386.62 | G113: 0 | H113: 386.62 | I113: 0 | J113: 0 | K113: 386.62 | L113: 06/2022 | M113: PORTO FERREIRA | N113: Mariane Americo Vergilio | O113: 05/04/2023 às 11:37:48
A114: 2023-04-05 | B114: 38.278.706/0001-92 | C114: SÃO LUIZ AGROINDUSTRIA S.A | E114: ISSQN | F114: 2637.03 | G114: 0 | H114: 2637.03 | I114: 0 | J114: 0 | K114: 2637.03 | L114: 06/2022 | M114: SANTA CRUZ DAS PALMEIRAS | N114: Mariane Americo Vergilio | O114: 05/04/2023 às 11:39:25
A115: 2023-04-05 | B115: 38.278.706/0001-92 | C115: SÃO LUIZ AGROINDUSTRIA S.A | E115: ISSQN | F115: 8.91 | G115: 0 | H115: 8.91 | I115: 0 | J115: 0 | K115: 8.91 | L115: 06/2022 | M115: SANTA RITA DO PASSA QUATRO | N115: Mariane Americo Vergilio | O115: 05/04/2023 às 11:41:46
A116: 2023-04-05 | B116: 38.278.706/0001-92 | C116: SÃO LUIZ AGROINDUSTRIA S.A | E116: ISSQN | F116: 8.5 | G116: 0 | H116: 8.5 | I116: 0 | J116: 0 | K116: 8.5 | L116: 06/2022 | M116: SANTA ROSA DE VITERBO | N116: Mariane Americo Vergilio | O116: 05/04/2023 às 11:42:58
A117: 2023-04-05 | B117: 38.278.706/0001-92 | C117: SÃO LUIZ AGROINDUSTRIA S.A | E117: ISSQN | F117: 3430.41 | G117: 0 | H117: 3430.41 | I117: 1.45 | J117: 0 | K117: 3431.86 | L117: 06/2022 | M117: SÃO JOÃO DA BOA VISTA | N117: Mariane Americo Vergilio | O117: 05/04/2023 às 11:44:29
A118: 2023-04-05 | B118: 38.278.706/0001-92 | C118: SÃO LUIZ AGROINDUSTRIA S.A | E118: ISSQN | F118: 5569.27 | G118: 0 | H118: 5569.27 | I118: 0 | J118: 0 | K118: 5569.27 | L118: 06/2022 | M118: SÃO JOSE DO RIO PARDO | N118: Mariane Americo Vergilio | O118: 05/04/2023 às 11:46:24
A119: 2023-04-05 | B119: 38.278.706/0001-92 | C119: SÃO LUIZ AGROINDUSTRIA S.A | E119: ISSQN | F119: 974.21 | G119: 0 | H119: 974.21 | I119: 0 | J119: 0 | K119: 974.21 | L119: 06/2022 | M119: TAMBAU | N119: Mariane Americo Vergilio | O119: 05/04/2023 às 11:47:32
A120: 2023-04-05 | B120: 38.278.706/0001-92 | C120: SÃO LUIZ AGROINDUSTRIA S.A | E120: ISSQN | F120: 4.1 | G120: 0 | H120: 4.1 | I120: 0 | J120: 0 | K120: 4.1 | L120: 06/2022 | M120: TAPIRATIBA | N120: Mariane Americo Vergilio | O120: 05/04/2023 às 11:49:23
A121: 2023-04-05 | B121: 38.278.706/0001-92 | C121: SÃO LUIZ AGROINDUSTRIA S.A | E121: ISSQN | F121: 799.17 | G121: 0 | H121: 799.17 | I121: 0 | J121: 0 | K121: 799.17 | L121: 06/2022 | M121: VARGEM GRANDE DO SUL | N121: Mariane Americo Vergilio | O121: 05/04/2023 às 11:50:24
A122: 2023-08-21 | B122: 38.278.706/0001-92 | C122: SÃO LUIZ AGROINDUSTRIA S.A | E122: ISSQN | F122: 2668.27 | G122: 0 | H122: 2668.27 | I122: 0 | J122: 0 | K122: 2668.27 | L122: 06/2023 | M122: ARARAS | N122: Mariane Americo Vergilio | O122: 21/08/2023 às 14:11:26
A123: 2023-08-21 | B123: 38.278.706/0001-92 | C123: SÃO LUIZ AGROINDUSTRIA S.A | E123: ISSQN | F123: 734.01 | G123: 0 | H123: 734.01 | I123: 0 | J123: 0 | K123: 734.01 | L123: 06/2023 | M123: CASA BRANCA | N123: Mariane Americo Vergilio | O123: 21/08/2023 às 14:11:56
A124: 2023-08-21 | B124: 38.278.706/0001-92 | C124: SÃO LUIZ AGROINDUSTRIA S.A | E124: ISSQN | F124: 117.08 | G124: 0 | H124: 117.08 | I124: 0 | J124: 0 | K124: 117.08 | L124: 06/2023 | M124: LEME | N124: Mariane Americo Vergilio | O124: 21/08/2023 às 14:12:21
A125: 2023-08-21 | B125: 38.278.706/0001-92 | C125: SÃO LUIZ AGROINDUSTRIA S.A | E125: ISSQN | F125: 37555.67 | G125: 0 | H125: 37555.67 | I125: 494.09 | J125: 56.4 | K125: 38106.16 | L125: 06/2023 | M125: PIRASSUNUNGA | N125: Mariane Americo Vergilio | O125: 21/08/2023 às 14:12:47
A126: 2023-08-21 | B126: 38.278.706/0001-92 | C126: SÃO LUIZ AGROINDUSTRIA S.A | E126: ISSQN | F126: 136.62 | G126: 0 | H126: 136.62 | I126: 0 | J126: 0 | K126: 136.62 | L126: 06/2023 | M126: PORTO FERREIRA | N126: Mariane Americo Vergilio | O126: 21/08/2023 às 14:14:13
A127: 2023-08-21 | B127: 38.278.706/0001-92 | C127: SÃO LUIZ AGROINDUSTRIA S.A | E127: ISSQN | F127: 5992.68 | G127: 0 | H127: 5992.68 | I127: 0 | J127: 0 | K127: 5992.68 | L127: 06/2023 | M127: STA CRUZ DAS PALMEIRAS | N127: Mariane Americo Vergilio | O127: 21/08/2023 às 14:14:38
A128: 2023-08-21 | B128: 38.278.706/0001-92 | C128: SÃO LUIZ AGROINDUSTRIA S.A | E128: ISSQN | F128: 2705.04 | G128: 0 | H128: 2705.04 | I128: 0 | J128: 0 | K128: 2705.04 | L128: 06/2023 | M128: STA ROSA DE VITERBO | N128: Mariane Americo Vergilio | O128: 21/08/2023 às 14:17:04
A129: 2023-08-21 | B129: 38.278.706/0001-92 | C129: SÃO LUIZ AGROINDUSTRIA S.A | E129: ISSQN | F129: 276.05 | G129: 0 | H129: 276.05 | I129: 0 | J129: 0 | K129: 276.05 | L129: 06/2023 | M129: SÃO JOSE DO RIO PARDO | N129: Mariane Americo Vergilio | O129: 21/08/2023 às 14:17:30
A130: 2023-08-21 | B130: 38.278.706/0001-92 | C130: SÃO LUIZ AGROINDUSTRIA S.A | E130: ISSQN | F130: 2449.82 | G130: 0 | H130: 2449.82 | I130: 0 | J130: 0 | K130: 2449.82 | L130: 06/2023 | M130: TAMBAU | N130: Mariane Americo Vergilio | O130: 21/08/2023 às 14:17:50
A131: 2023-08-21 | B131: 38.278.706/0008-69 | C131: SÃO LUIZ AGROINDUSTRIA S/A | E131: ISSQN | F131: 1933.32 | G131: 0 | H131: 1933.32 | I131: 0 | J131: 0 | K131: 1933.32 | L131: 06/2023 | M131: STA CRUZ DAS PALMEIRAS | N131: Mariane Americo Vergilio | O131: 21/08/2023 às 14:18:28
A132: 2023-08-21 | B132: 38.278.706/0001-92 | C132: SÃO LUIZ AGROINDUSTRIA S.A | E132: ISSQN | F132: 898.69 | G132: 0 | H132: 898.69 | I132: 0 | J132: 0 | K132: 898.69 | L132: 06/2023 | M132: STA RITA DO PASSA QUATRO | N132: Mariane Americo Vergilio | O132: 21/08/2023 às 14:22:21
A133: 2023-04-04 | B133: 38.278.706/0001-92 | C133: SÃO LUIZ AGROINDUSTRIA S.A | E133: ISSQN | F133: 1000.29 | G133: 0 | H133: 1000.29 | I133: 0 | J133: 0 | K133: 1000.29 | L133: 07/2021 | M133: PIRASSUNUNGA | N133: Mariane Americo Vergilio | O133: 04/04/2023 às 10:32:12
A134: 2023-04-05 | B134: 38.278.706/0001-92 | C134: SÃO LUIZ AGROINDUSTRIA S.A | E134: ISSQN | F134: 2180.22 | G134: 0 | H134: 2180.22 | I134: 0 | J134: 0 | K134: 2180.22 | L134: 07/2022 | M134: AGUAI | N134: Mariane Americo Vergilio | O134: 05/04/2023 às 13:43:18
A135: 2023-04-05 | B135: 38.278.706/0001-92 | C135: SÃO LUIZ AGROINDUSTRIA S.A | E135: ISSQN | F135: 524.38 | G135: 0 | H135: 524.38 | I135: 0 | J135: 0 | K135: 524.38 | L135: 07/2022 | M135: ARARAS | N135: Mariane Americo Vergilio | O135: 05/04/2023 às 13:49:49
A136: 2023-04-05 | B136: 38.278.706/0001-92 | C136: SÃO LUIZ AGROINDUSTRIA S.A | E136: ISSQN | F136: 1363.38 | G136: 0 | H136: 1363.38 | I136: 0 | J136: 0 | K136: 1363.38 | L136: 07/2022 | M136: CASA BRANCA | N136: Mariane Americo Vergilio | O136: 05/04/2023 às 13:51:20
A137: 2023-04-05 | B137: 38.278.706/0001-92 | C137: SÃO LUIZ AGROINDUSTRIA S.A | E137: ISSQN | F137: 1066.21 | G137: 0 | H137: 1066.21 | I137: 0 | J137: 0 | K137: 1066.21 | L137: 07/2022 | M137: ITOBI | N137: Mariane Americo Vergilio | O137: 05/04/2023 às 13:53:14
A138: 2023-04-05 | B138: 38.278.706/0001-92 | C138: SÃO LUIZ AGROINDUSTRIA S.A | E138: ISSQN | F138: 1210.15 | G138: 0 | H138: 1210.15 | I138: 0 | J138: 0 | K138: 1210.15 | L138: 07/2022 | M138: LEME | N138: Mariane Americo Vergilio | O138: 05/04/2023 às 13:57:41
A139: 2023-04-05 | B139: 38.278.706/0001-92 | C139: SÃO LUIZ AGROINDUSTRIA S.A | E139: ISSQN | F139: 34724.45 | G139: 0 | H139: 34724.45 | I139: 1.22 | J139: 0 | K139: 34725.67 | L139: 07/2022 | M139: PIRASSUNUNGA | N139: Mariane Americo Vergilio | O139: 05/04/2023 às 14:01:17
A140: 2023-04-05 | B140: 38.278.706/0001-92 | C140: SÃO LUIZ AGROINDUSTRIA S.A | E140: ISSQN | F140: 2259.3 | G140: 0 | H140: 2259.3 | I140: 0 | J140: 0 | K140: 2259.3 | L140: 07/2022 | M140: SANTA CRUZ DAS PALMEIRAS | N140: Mariane Americo Vergilio | O140: 05/04/2023 às 14:04:43
A141: 2023-04-05 | B141: 38.278.706/0001-92 | C141: SÃO LUIZ AGROINDUSTRIA S.A | E141: ISSQN | F141: 1008.39 | G141: 0 | H141: 1008.39 | I141: 0 | J141: 0 | K141: 1008.39 | L141: 07/2022 | M141: SANTA RITA DO PASSA QUATRO | N141: Mariane Americo Vergilio | O141: 05/04/2023 às 14:10:16
A142: 2023-04-05 | B142: 38.278.706/0001-92 | C142: SÃO LUIZ AGROINDUSTRIA S.A | E142: ISSQN | F142: 21.62 | G142: 0 | H142: 21.62 | I142: 1.45 | J142: 0 | K142: 23.07 | L142: 07/2022 | M142: SÃO JOÃO DA BOA VISTA | N142: Mariane Americo Vergilio | O142: 05/04/2023 às 14:11:45
A143: 2023-04-05 | B143: 38.278.706/0001-92 | C143: SÃO LUIZ AGROINDUSTRIA S.A | E143: ISSQN | F143: 2619.13 | G143: 0 | H143: 2619.13 | I143: 0 | J143: 0 | K143: 2619.13 | L143: 07/2022 | M143: SÃO JOSE DO RIO PARDO | N143: Mariane Americo Vergilio | O143: 05/04/2023 às 14:26:06
A144: 2023-04-05 | B144: 38.278.706/0001-92 | C144: SÃO LUIZ AGROINDUSTRIA S.A | E144: ISSQN | F144: 586.28 | G144: 0 | H144: 586.28 | I144: 0 | J144: 0 | K144: 586.28 | L144: 07/2022 | M144: TAMBAU | N144: Mariane Americo Vergilio | O144: 05/04/2023 às 14:28:39
A145: 2023-04-05 | B145: 38.278.706/0001-92 | C145: SÃO LUIZ AGROINDUSTRIA S.A | E145: ISSQN | F145: 1271.02 | G145: 0 | H145: 1271.02 | I145: 0 | J145: 0 | K145: 1271.02 | L145: 07/2022 | M145: VARGEM GRANDE DO SUL | N145: Mariane Americo Vergilio | O145: 05/04/2023 às 14:30:04
A146: 2023-08-21 | B146: 38.278.706/0001-92 | C146: SÃO LUIZ AGROINDUSTRIA S.A | E146: ISSQN | F146: 7928.14 | G146: 0 | H146: 7928.14 | I146: 0 | J146: 0 | K146: 7928.14 | L146: 07/2023 | M146: ARARAS | N146: Mariane Americo Vergilio | O146: 21/08/2023 às 14:33:33
A147: 2023-08-21 | B147: 38.278.706/0001-92 | C147: SÃO LUIZ AGROINDUSTRIA S.A | E147: ISSQN | F147: 4491.68 | G147: 0 | H147: 4491.68 | I147: 0 | J147: 0 | K147: 4491.68 | L147: 07/2023 | M147: CASA BRANCA | N147: Mariane Americo Vergilio | O147: 21/08/2023 às 14:36:32
A148: 2023-08-21 | B148: 38.278.706/0001-92 | C148: SÃO LUIZ AGROINDUSTRIA S.A | E148: ISSQN | F148: 36525.17 | G148: 0 | H148: 36525.17 | I148: 0 | J148: 0 | K148: 36525.17 | L148: 07/2023 | M148: PIRASSUNUNGA | N148: Mariane Americo Vergilio | O148: 21/08/2023 às 14:36:57
A149: 2023-08-21 | B149: 38.278.706/0001-92 | C149: SÃO LUIZ AGROINDUSTRIA S.A | E149: ISSQN | F149: 4846.55 | G149: 0 | H149: 4846.55 | I149: 0 | J149: 0 | K149: 4846.55 | L149: 07/2023 | M149: STA CRUZ DAS PALMEIRAS | N149: Mariane Americo Vergilio | O149: 21/08/2023 às 14:37:22
A150: 2023-08-21 | B150: 38.278.706/0001-92 | C150: SÃO LUIZ AGROINDUSTRIA S.A | E150: ISSQN | F150: 224.35 | G150: 0 | H150: 224.35 | I150: 0 | J150: 0 | K150: 224.35 | L150: 07/2023 | M150: STA ROSA DE VITERBO | N150: Mariane Americo Vergilio | O150: 21/08/2023 às 14:37:49
A151: 2023-08-21 | B151: 38.278.706/0001-92 | C151: SÃO LUIZ AGROINDUSTRIA S.A | E151: ISSQN | F151: 5681.03 | G151: 0 | H151: 5681.03 | I151: 0 | J151: 0 | K151: 5681.03 | L151: 07/2023 | M151: TAMBAU | N151: Mariane Americo Vergilio | O151: 21/08/2023 às 14:38:11
A152: 2023-08-21 | B152: 38.278.706/0008-69 | C152: SÃO LUIZ AGROINDUSTRIA S/A | E152: ISSQN | F152: 3379.79 | G152: 0 | H152: 3379.79 | I152: 0 | J152: 0 | K152: 3379.79 | L152: 07/2023 | M152: STA CRUZ DAS PALMEIRAS | N152: Mariane Americo Vergilio | O152: 21/08/2023 às 14:39:03
A153: 2023-04-04 | B153: 38.278.706/0001-92 | C153: SÃO LUIZ AGROINDUSTRIA S.A | E153: ISSQN | F153: 2029.22 | G153: 0 | H153: 2029.22 | I153: 0 | J153: 0 | K153: 2029.22 | L153: 08/2021 | M153: PIRASSUNUNGA | N153: Mariane Americo Vergilio | O153: 04/04/2023 às 10:48:54
A154: 2023-04-05 | B154: 38.278.706/0001-92 | C154: SÃO LUIZ AGROINDUSTRIA S.A | E154: ISSQN | F154: 925.54 | G154: 0 | H154: 925.54 | I154: 0 | J154: 0 | K154: 925.54 | L154: 08/2022 | M154: AGUAI | N154: Mariane Americo Vergilio | O154: 05/04/2023 às 14:42:56
A155: 2023-04-05 | B155: 38.278.706/0001-92 | C155: SÃO LUIZ AGROINDUSTRIA S.A | E155: ISSQN | F155: 88.69 | G155: 0 | H155: 88.69 | I155: 0 | J155: 0 | K155: 88.69 | L155: 08/2022 | M155: ANALANDIA | N155: Mariane Americo Vergilio | O155: 05/04/2023 às 14:45:39
A156: 2023-04-10 | B156: 38.278.706/0001-92 | C156: SÃO LUIZ AGROINDUSTRIA S.A | E156: ISSQN | F156: 3644.07 | G156: 0 | H156: 3644.07 | I156: 0 | J156: 0 | K156: 3644.07 | L156: 08/2022 | M156: CASA BRANCA | N156: Mariane Americo Vergilio | O156: 10/04/2023 às 08:02:59
A157: 2023-04-10 | B157: 38.278.706/0001-92 | C157: SÃO LUIZ AGROINDUSTRIA S.A | E157: ISSQN | F157: 1236.39 | G157: 0 | H157: 1236.39 | I157: 0 | J157: 0 | K157: 1236.39 | L157: 08/2022 | M157: ITOBI | N157: Mariane Americo Vergilio | O157: 10/04/2023 às 08:04:24
A158: 2023-04-10 | B158: 38.278.706/0001-92 | C158: SÃO LUIZ AGROINDUSTRIA S.A | E158: ISSQN | F158: 29753.51 | G158: 0 | H158: 29753.51 | I158: 0 | J158: 0 | K158: 29753.51 | L158: 08/2022 | M158: PIRASSUNUNGA | N158: Mariane Americo Vergilio | O158: 10/04/2023 às 08:06:50
A159: 2023-04-10 | B159: 38.278.706/0001-92 | C159: SÃO LUIZ AGROINDUSTRIA S.A | E159: ISSQN | F159: 3370.18 | G159: 0 | H159: 3370.18 | I159: 0 | J159: 0 | K159: 3370.18 | L159: 08/2022 | M159: SANTA CRUZ DAS PALMEIRAS | N159: Mariane Americo Vergilio | O159: 10/04/2023 às 08:08:13
A160: 2023-04-10 | B160: 38.278.706/0001-92 | C160: SÃO LUIZ AGROINDUSTRIA S.A | E160: ISSQN | F160: 3519.36 | G160: 0 | H160: 3519.36 | I160: 1.45 | J160: 0 | K160: 3520.81 | L160: 08/2022 | M160: SÃO JOÃO DA BOA VISTA | N160: Mariane Americo Vergilio | O160: 10/04/2023 às 08:10:45
A161: 2023-04-11 | B161: 38.278.706/0001-92 | C161: SÃO LUIZ AGROINDUSTRIA S.A | E161: ISSQN | F161: 231.52 | G161: 0 | H161: 231.52 | I161: 0 | J161: 0 | K161: 231.52 | L161: 08/2022 | M161: SÃO JOSE DO RIO PARDO | N161: Mariane Americo Vergilio | O161: 11/04/2023 às 11:20:16
A162: 2023-04-11 | B162: 38.278.706/0001-92 | C162: SÃO LUIZ AGROINDUSTRIA S.A | E162: ISSQN | F162: 487.72 | G162: 0 | H162: 487.72 | I162: 0 | J162: 0 | K162: 487.72 | L162: 08/2022 | M162: TAMBAU | N162: Mariane Americo Vergilio | O162: 11/04/2023 às 11:22:11
A163: 2023-04-11 | B163: 38.278.706/0001-92 | C163: SÃO LUIZ AGROINDUSTRIA S.A | E163: ISSQN | F163: 238.05 | G163: 0 | H163: 238.05 | I163: 0 | J163: 0 | K163: 238.05 | L163: 08/2022 | M163: TAPIRATIBA | N163: Mariane Americo Vergilio | O163: 11/04/2023 às 11:23:25
A164: 2023-04-11 | B164: 38.278.706/0001-92 | C164: SÃO LUIZ AGROINDUSTRIA S.A | E164: ISSQN | F164: 557.34 | G164: 0 | H164: 557.34 | I164: 0 | J164: 0 | K164: 557.34 | L164: 08/2022 | M164: VARGEM GRANDE DO SUL | N164: Mariane Americo Vergilio | O164: 11/04/2023 às 11:26:50
A165: 2023-04-04 | B165: 38.278.706/0001-92 | C165: SÃO LUIZ AGROINDUSTRIA S.A | E165: ISSQN | F165: 1908.81 | G165: 0 | H165: 1908.81 | I165: 0 | J165: 0 | K165: 1908.81 | L165: 09/2021 | M165: PIRASSUNUNGA | N165: Mariane Americo Vergilio | O165: 04/04/2023 às 10:51:41
A166: 2023-04-11 | B166: 38.278.706/0001-92 | C166: SÃO LUIZ AGROINDUSTRIA S.A | E166: ISSQN | F166: 178.05 | G166: 0 | H166: 178.05 | I166: 0 | J166: 0 | K166: 178.05 | L166: 09/2022 | M166: ANALANDIA | N166: Mariane Americo Vergilio | O166: 11/04/2023 às 11:39:00
A167: 2023-04-11 | B167: 38.278.706/0001-92 | C167: SÃO LUIZ AGROINDUSTRIA S.A | E167: ISSQN | F167: 1785.52 | G167: 0 | H167: 1785.52 | I167: 0 | J167: 0 | K167: 1785.52 | L167: 09/2022 | M167: CASA BRANCA | N167: Mariane Americo Vergilio | O167: 11/04/2023 às 11:41:06
A168: 2023-04-12 | B168: 38.278.706/0001-92 | C168: SÃO LUIZ AGROINDUSTRIA S.A | E168: ISSQN | F168: 122.49 | G168: 0 | H168: 122.49 | I168: 0 | J168: 0 | K168: 122.49 | L168: 09/2022 | M168: MOGI GUAÇU | N168: Mariane Americo Vergilio | O168: 12/04/2023 às 15:18:09
A169: 2023-04-12 | B169: 38.278.706/0001-92 | C169: SÃO LUIZ AGROINDUSTRIA S.A | E169: ISSQN | F169: 25621.58 | G169: 0 | H169: 25621.58 | I169: 157.34 | J169: 0 | K169: 25778.92 | L169: 09/2022 | M169: PIRASSUNUNGA | N169: Mariane Americo Vergilio | O169: 12/04/2023 às 15:21:23
A170: 2023-04-12 | B170: 38.278.706/0001-92 | C170: SÃO LUIZ AGROINDUSTRIA S.A | E170: ISSQN | F170: 252.34 | G170: 0 | H170: 252.34 | I170: 0 | J170: 0 | K170: 252.34 | L170: 09/2022 | M170: PORTO FERREIRA | N170: Mariane Americo Vergilio | O170: 12/04/2023 às 15:58:01
A171: 2023-04-12 | B171: 38.278.706/0001-92 | C171: SÃO LUIZ AGROINDUSTRIA S.A | E171: ISSQN | F171: 867.77 | G171: 0 | H171: 867.77 | I171: 0 | J171: 0 | K171: 867.77 | L171: 09/2022 | M171: SANTA CRUZ DAS PALMEIRAS | N171: Mariane Americo Vergilio | O171: 12/04/2023 às 15:59:19
A172: 2023-04-12 | B172: 38.278.706/0001-92 | C172: SÃO LUIZ AGROINDUSTRIA S.A | E172: ISSQN | F172: 49.22 | G172: 0 | H172: 49.22 | I172: 0 | J172: 0 | K172: 49.22 | L172: 09/2022 | M172: SANTA RITA DO PASSA QUATRO | N172: Mariane Americo Vergilio | O172: 12/04/2023 às 16:00:19
A173: 2023-04-12 | B173: 38.278.706/0001-92 | C173: SÃO LUIZ AGROINDUSTRIA S.A | E173: ISSQN | F173: 436.65 | G173: 0 | H173: 436.65 | I173: 0 | J173: 0 | K173: 436.65 | L173: 09/2022 | M173: SANTA ROSA DE VITERBO | N173: Mariane Americo Vergilio | O173: 12/04/2023 às 16:01:33
A174: 2023-04-12 | B174: 38.278.706/0001-92 | C174: SÃO LUIZ AGROINDUSTRIA S.A | E174: ISSQN | F174: 2686.26 | G174: 0 | H174: 2686.26 | I174: 1.45 | J174: 0 | K174: 2687.71 | L174: 09/2022 | M174: SÃO JOÃO DA BOA VISTA | N174: Mariane Americo Vergilio | O174: 12/04/2023 às 16:03:05
A175: 2023-04-12 | B175: 38.278.706/0001-92 | C175: SÃO LUIZ AGROINDUSTRIA S.A | E175: ISSQN | F175: 951.35 | G175: 0 | H175: 951.35 | I175: 0 | J175: 0 | K175: 951.35 | L175: 09/2022 | M175: SÃO JOSE DO RIO PARDO | N175: Mariane Americo Vergilio | O175: 12/04/2023 às 16:04:35
A176: 2023-04-12 | B176: 38.278.706/0001-92 | C176: SÃO LUIZ AGROINDUSTRIA S.A | E176: ISSQN | F176: 6654.79 | G176: 0 | H176: 6654.79 | I176: 0 | J176: 0 | K176: 6654.79 | L176: 09/2022 | M176: TAMBAU | N176: Mariane Americo Vergilio | O176: 12/04/2023 às 16:05:56
A177: 2023-04-12 | B177: 38.278.706/0001-92 | C177: SÃO LUIZ AGROINDUSTRIA S.A | E177: ISSQN | F177: 1561.17 | G177: 0 | H177: 1561.17 | I177: 0 | J177: 0 | K177: 1561.17 | L177: 09/2022 | M177: VARGEM GRANDE DO SUL | N177: Mariane Americo Vergilio | O177: 12/04/2023 às 16:07:38
A178: 2023-04-04 | B178: 38.278.706/0001-92 | C178: SÃO LUIZ AGROINDUSTRIA S.A | E178: ISSQN | F178: 11785.19 | G178: 0 | H178: 11785.19 | I178: 3.57 | J178: 0 | K178: 11788.76 | L178: 10/2021 | M178: PIRASSUNUNGA | N178: Mariane Americo Vergilio | O178: 04/04/2023 às 10:57:01
A179: 2023-04-12 | B179: 38.278.706/0001-92 | C179: SÃO LUIZ AGROINDUSTRIA S.A | E179: ISSQN | F179: 100.06 | G179: 0 | H179: 100.06 | I179: 0 | J179: 0 | K179: 100.06 | L179: 10/2022 | M179: AGUAI | N179: Mariane Americo Vergilio | O179: 12/04/2023 às 16:33:58
A180: 2023-04-12 | B180: 38.278.706/0001-92 | C180: SÃO LUIZ AGROINDUSTRIA S.A | E180: ISSQN | F180: 1011 | G180: 0 | H180: 1011 | I180: 0 | J180: 0 | K180: 1011 | L180: 10/2022 | M180: CASA BRANCA | N180: Mariane Americo Vergilio | O180: 12/04/2023 às 16:39:42
A181: 2023-04-12 | B181: 38.278.706/0001-92 | C181: SÃO LUIZ AGROINDUSTRIA S.A | E181: ISSQN | F181: 2267.11 | G181: 0 | H181: 2267.11 | I181: 0 | J181: 0 | K181: 2267.11 | L181: 10/2022 | M181: ESPIRITO SANTO DO PINHAL | N181: Mariane Americo Vergilio | O181: 12/04/2023 às 16:40:46
A182: 2023-04-12 | B182: 38.278.706/0001-92 | C182: SÃO LUIZ AGROINDUSTRIA S.A | E182: ISSQN | F182: 415.34 | G182: 0 | H182: 415.34 | I182: 0 | J182: 0 | K182: 415.34 | L182: 10/2022 | M182: MOGI GUAÇU | N182: Mariane Americo Vergilio | O182: 12/04/2023 às 16:42:01
A183: 2023-04-12 | B183: 38.278.706/0001-92 | C183: SÃO LUIZ AGROINDUSTRIA S.A | E183: ISSQN | F183: 23750.26 | G183: 0 | H183: 23750.26 | I183: 0 | J183: 0 | K183: 23750.26 | L183: 10/2022 | M183: PIRASSUNUNGA | N183: Mariane Americo Vergilio | O183: 12/04/2023 às 16:45:13
A184: 2023-04-12 | B184: 38.278.706/0001-92 | C184: SÃO LUIZ AGROINDUSTRIA S.A | E184: ISSQN | F184: 3154.05 | G184: 0 | H184: 3154.05 | I184: 0 | J184: 0 | K184: 3154.05 | L184: 10/2022 | M184: SANTA CRUZ DAS PALMEIRAS | N184: Mariane Americo Vergilio | O184: 12/04/2023 às 16:46:22
A185: 2023-04-12 | B185: 38.278.706/0001-92 | C185: SÃO LUIZ AGROINDUSTRIA S.A | E185: ISSQN | F185: 152.29 | G185: 0 | H185: 152.29 | I185: 0 | J185: 0 | K185: 152.29 | L185: 10/2022 | M185: SANTA ROSA DE VITERBO | N185: Mariane Americo Vergilio | O185: 12/04/2023 às 16:49:58
A186: 2023-04-12 | B186: 38.278.706/0001-92 | C186: SÃO LUIZ AGROINDUSTRIA S.A | E186: ISSQN | F186: 317.72 | G186: 0 | H186: 317.72 | I186: 1.45 | J186: 0 | K186: 319.17 | L186: 10/2022 | M186: SÃO JOÃO DA BOA VISTA | N186: Mariane Americo Vergilio | O186: 12/04/2023 às 16:56:52
A187: 2023-04-13 | B187: 38.278.706/0001-92 | C187: SÃO LUIZ AGROINDUSTRIA S.A | E187: ISSQN | F187: 878.33 | G187: 0 | H187: 878.33 | I187: 0 | J187: 0 | K187: 878.33 | L187: 10/2022 | M187: TAMBAU | N187: Mariane Americo Vergilio | O187: 13/04/2023 às 07:44:55
A188: 2023-04-13 | B188: 38.278.706/0001-92 | C188: SÃO LUIZ AGROINDUSTRIA S.A | E188: ISSQN | F188: 2174.67 | G188: 0 | H188: 2174.67 | I188: 0 | J188: 0 | K188: 2174.67 | L188: 10/2022 | M188: VARGEM GRANDE DO SUL | N188: Mariane Americo Vergilio | O188: 13/04/2023 às 07:46:08
A189: 2023-04-04 | B189: 38.278.706/0001-92 | C189: SÃO LUIZ AGROINDUSTRIA S.A | E189: ISSQN | F189: 790.84 | G189: 0 | H189: 790.84 | I189: 0 | J189: 0 | K189: 790.84 | L189: 11/2021 | M189: AGUAI | N189: Mariane Americo Vergilio | O189: 04/04/2023 às 11:25:37
A190: 2023-04-04 | B190: 38.278.706/0001-92 | C190: SÃO LUIZ AGROINDUSTRIA S.A | E190: ISSQN | F190: 10730.07 | G190: 0 | H190: 10730.07 | I190: 0 | J190: 0 | K190: 10730.07 | L190: 11/2021 | M190: ANALANDIA | N190: Mariane Americo Vergilio | O190: 04/04/2023 às 11:27:56
A191: 2023-04-04 | B191: 38.278.706/0001-92 | C191: SÃO LUIZ AGROINDUSTRIA S.A | E191: ISSQN | F191: 8337.89 | G191: 0 | H191: 8337.89 | I191: 0 | J191: 0 | K191: 8337.89 | L191: 11/2021 | M191: CASA BRANCA | N191: Mariane Americo Vergilio | O191: 04/04/2023 às 11:29:16
A192: 2023-04-04 | B192: 38.278.706/0001-92 | C192: SÃO LUIZ AGROINDUSTRIA S.A | E192: ISSQN | F192: 714.94 | G192: 0 | H192: 714.94 | I192: 0 | J192: 0 | K192: 714.94 | L192: 11/2021 | M192: ESPIRITO SANTO DO PINHAL | N192: Mariane Americo Vergilio | O192: 04/04/2023 às 11:30:28
A193: 2023-04-04 | B193: 38.278.706/0001-92 | C193: SÃO LUIZ AGROINDUSTRIA S.A | E193: ISSQN | F193: 1945.09 | G193: 0 | H193: 1945.09 | I193: 0 | J193: 0 | K193: 1945.09 | L193: 11/2021 | M193: ITOBI | N193: Mariane Americo Vergilio | O193: 04/04/2023 às 11:31:41
A194: 2023-04-04 | B194: 38.278.706/0001-92 | C194: SÃO LUIZ AGROINDUSTRIA S.A | E194: ISSQN | F194: 727.09 | G194: 0 | H194: 727.09 | I194: 0 | J194: 0 | K194: 727.09 | L194: 11/2021 | M194: MOCOCA | N194: Mariane Americo Vergilio | O194: 04/04/2023 às 11:32:34
A195: 2023-04-04 | B195: 38.278.706/0001-92 | C195: SÃO LUIZ AGROINDUSTRIA S.A | E195: ISSQN | F195: 679.97 | G195: 0 | H195: 679.97 | I195: 0 | J195: 0 | K195: 679.97 | L195: 11/2021 | M195: MOGI GUAÇU | N195: Mariane Americo Vergilio | O195: 04/04/2023 às 11:33:40
A196: 2023-04-04 | B196: 38.278.706/0001-92 | C196: SÃO LUIZ AGROINDUSTRIA S.A | E196: ISSQN | F196: 43130.04 | G196: 0 | H196: 43130.04 | I196: 76.5 | J196: 7.72 | K196: 43214.26 | L196: 11/2021 | M196: PIRASSUNUNGA | N196: Mariane Americo Vergilio | O196: 04/04/2023 às 11:34:50
A197: 2023-04-04 | B197: 38.278.706/0001-92 | C197: SÃO LUIZ AGROINDUSTRIA S.A | E197: ISSQN | F197: 2204.42 | G197: 0 | H197: 2204.42 | I197: 0 | J197: 0 | K197: 2204.42 | L197: 11/2021 | M197: PORTO FERREIRA | N197: Mariane Americo Vergilio | O197: 04/04/2023 às 11:45:07
A198: 2023-04-04 | B198: 38.278.706/0001-92 | C198: SÃO LUIZ AGROINDUSTRIA S.A | E198: ISSQN | F198: 1.07 | G198: 0 | H198: 1.07 | I198: 0 | J198: 0 | K198: 1.07 | L198: 11/2021 | M198: SANTA CRUZ DA CONCEIÇÃO | N198: Mariane Americo Vergilio | O198: 04/04/2023 às 11:46:01
A199: 2023-04-04 | B199: 38.278.706/0001-92 | C199: SÃO LUIZ AGROINDUSTRIA S.A | E199: ISSQN | F199: 10409.61 | G199: 0 | H199: 10409.61 | I199: 0 | J199: 0 | K199: 10409.61 | L199: 11/2021 | M199: SANTA CRUZ DAS PALMEIRAS | N199: Mariane Americo Vergilio | O199: 04/04/2023 às 11:47:05
A200: 2023-04-04 | B200: 38.278.706/0001-92 | C200: SÃO LUIZ AGROINDUSTRIA S.A | E200: ISSQN | F200: 474.8 | G200: 0 | H200: 474.8 | I200: 0 | J200: 0 | K200: 474.8 | L200: 11/2021 | M200: SANTA RITA DO PASSA QUATRO | N200: Mariane Americo Vergilio | O200: 04/04/2023 às 11:52:21
... 67 more rows

Sheet Filtro
A1: PARÂMETROS - PESQUISA:
A2: Data Dig. | B2: CNPJ/CPF | C2: Prestador | D2: Documento/NF | E2: Cód. Receita | F2: Valor | G2: Base de Cálculo | H2: Vlr.Principal | I2: Multa | J2: Juros | K2: Vlr. Total Recolhido | L2: Competência | M2: Observações | N2: Usuário | O2: Salvo?
B3: 38.278.706/0001-92 | L3: 09/2023
A11: RESULTADOS - PESQUISA: | D11: TOTAIS | F11: =SUM(F13:F5050) -> 61189.15 | G11: =SUM(G13:G5050) -> 0 | H11: 0 | I11: =SUM(I13:I5050) -> 0 | J11: =SUM(J13:J5050) -> 0 | K11: =SUM(K13:K5050) -> 61189.15
A12: Data Dig. | B12: CNPJ/CPF | C12: Prestador | D12: Documento/NF | E12: Cód. Receita | F12: Valor | G12: Base de Cálculo | H12: Vlr.Principal | I12: Multa | J12: Juros | K12: Vlr. Total Recolhido | L12: Competência | M12: Observações | N12: Usuário | O12: Salvo?
A13: 2023-10-27 | B13: 38.278.706/0001-92 | C13: SÃO LUIZ AGROINDUSTRIA S.A | E13: ISSQN | F13: 152.38 | G13: 0 | I13: 0 | J13: 0 | K13: =F13+I13+J13 -> 152.38 | L13: 09/2023 | M13: AGUAI | N13: Mariane Americo Vergilio | O13: 27/10/2023 às 15:21:50
A14: 2023-10-27 | B14: 38.278.706/0001-92 | C14: SÃO LUIZ AGROINDUSTRIA S.A | E14: ISSQN | F14: 272.79 | G14: 0 | I14: 0 | J14: 0 | K14: =F14+I14+J14 -> 272.79 | L14: 09/2023 | M14: CASA BRANCA | N14: Mariane Americo Vergilio | O14: 27/10/2023 às 15:22:28
A15: 2023-10-27 | B15: 38.278.706/0001-92 | C15: SÃO LUIZ AGROINDUSTRIA S.A | E15: ISSQN | F15: 750.91 | G15: 0 | I15: 0 | J15: 0 | K15: 750.91 | L15: 09/2023 | M15: ITOBI | N15: Mariane Americo Vergilio | O15: 27/10/2023 às 15:23:00
A16: 2023-10-27 | B16: 38.278.706/0001-92 | C16: SÃO LUIZ AGROINDUSTRIA S.A | E16: ISSQN | F16: 7.21 | G16: 0 | I16: 0 | J16: 0 | K16: 7.21 | L16: 09/2023 | M16: MOCOCA | N16: Mariane Americo Vergilio | O16: 27/10/2023 às 15:23:38
A17: 2023-10-27 | B17: 38.278.706/0001-92 | C17: SÃO LUIZ AGROINDUSTRIA S.A | E17: ISSQN | F17: 36766.29 | G17: 0 | I17: 0 | J17: 0 | K17: 36766.29 | L17: 09/2023 | M17: PIRASSUNUNGA | N17: Mariane Americo Vergilio | O17: 27/10/2023 às 15:24:23
A18: 2023-10-27 | B18: 38.278.706/0001-92 | C18: SÃO LUIZ AGROINDUSTRIA S.A | E18: ISSQN | F18: 15805.41 | G18: 0 | I18: 0 | J18: 0 | K18: 15805.41 | L18: 09/2023 | M18: SANTA CRUZ DAS PALMEIRAS | N18: Mariane Americo Vergilio | O18: 27/10/2023 às 15:26:35
A19: 2023-10-27 | B19: 38.278.706/0001-92 | C19: SÃO LUIZ AGROINDUSTRIA S.A | E19: ISSQN | F19: 4.71 | G19: 0 | I19: 0 | J19: 0 | K19: 4.71 | L19: 09/2023 | M19: SANTA RITA DO PASSA QUATRO | N19: Mariane Americo Vergilio | O19: 27/10/2023 às 15:28:20
A20: 2023-10-27 | B20: 38.278.706/0001-92 | C20: SÃO LUIZ AGROINDUSTRIA S.A | E20: ISSQN | F20: 22.94 | G20: 0 | I20: 0 | J20: 0 | K20: 22.94 | L20: 09/2023 | M20: SANTA ROSA DE VITERBO | N20: Mariane Americo Vergilio | O20: 27/10/2023 às 15:28:54
A21: 2023-10-27 | B21: 38.278.706/0001-92 | C21: SÃO LUIZ AGROINDUSTRIA S.A | E21: ISSQN | F21: 3001.94 | G21: 0 | I21: 0 | J21: 0 | K21: 3001.94 | L21: 09/2023 | M21: SÃO JOÃO DA BOA VISTA | N21: Mariane Americo Vergilio | O21: 27/10/2023 às 15:29:29
A22: 2023-10-27 | B22: 38.278.706/0001-92 | C22: SÃO LUIZ AGROINDUSTRIA S.A | E22: ISSQN | F22: 247.45 | G22: 0 | I22: 0 | J22: 0 | K22: 247.45 | L22: 09/2023 | M22: SÃO JOSE DO RIO PARDO | N22: Mariane Americo Vergilio | O22: 27/10/2023 às 15:30:11
A23: 2023-10-27 | B23: 38.278.706/0001-92 | C23: SÃO LUIZ AGROINDUSTRIA S.A | E23: ISSQN | F23: 4143.36 | G23: 0 | I23: 0 | J23: 0 | K23: 4143.36 | L23: 09/2023 | M23: TAMBAU | N23: Mariane Americo Vergilio | O23: 27/10/2023 às 15:30:45
A24: 2023-10-27 | B24: 38.278.706/0001-92 | C24: SÃO LUIZ AGROINDUSTRIA S.A | E24: ISSQN | F24: 13.76 | G24: 0 | I24: 0 | J24: 0 | K24: 13.76 | L24: 09/2023 | M24: TAPIRATIBA | N24: Mariane Americo Vergilio | O24: 27/10/2023 às 15:31:26
